Body Name,Body,Organisational unit,Service division,Expenditure category,Date,Transacton number,Net amount,Supplier,Narrative
Tendring DC,http://statistics.data.gov.uk/id/local-authority-district/22UN,Benefits & Revenues,1560 - Cashiers Service Unit,4300 - Printing & Stationery,03/01/2012,2091649-1,25.24,2100111 - Banner Business Supplies Ltd,Paper
Tendring DC,http://statistics.data.gov.uk/id/local-authority-district/22UN,Benefits & Revenues,1580 - Head of Customer Service and Administration Service Unit,4300 - Printing & Stationery,31/01/2012,2092834-1,29.39,2100111 - Banner Business Supplies Ltd,Stamps
Tendring DC,http://statistics.data.gov.uk/id/local-authority-district/22UN,Benefits & Revenues,1580 - Head of Customer Service and Administration Service Unit,4754 - IT Consultancy,10/01/2012,2091963-1,284.7,2100116 - Bottomline Technologies Europe Ltd,Expense recharge
Tendring DC,http://statistics.data.gov.uk/id/local-authority-district/22UN,Benefits & Revenues,1580 - Head of Customer Service and Administration Service Unit,4754 - IT Consultancy,10/01/2012,2091964-1,4400,2100116 - Bottomline Technologies Europe Ltd,Professional Svs
Tendring DC,http://statistics.data.gov.uk/id/local-authority-district/22UN,Benefits & Revenues,1580 - Head of Customer Service and Administration Service Unit,1700 - Training - Courses,03/01/2012,2091591-1,370,2108862 - Hbinfo Ltd,Subsidy Workshop
Tendring DC,http://statistics.data.gov.uk/id/local-authority-district/22UN,Benefits & Revenues,1580 - Head of Customer Service and Administration Service Unit,4462 - Legal Fees incl. Bailiffs re debt recovery,17/01/2012,2092364-1,60,2107058 - HMCTS,Legal Fees
Tendring DC,http://statistics.data.gov.uk/id/local-authority-district/22UN,Benefits & Revenues,1580 - Head of Customer Service and Administration Service Unit,4753 - Computer - Application Software,31/01/2012,2092826-1,4224.97,2101204 - Northgate Information Solutions UK Ltd,Support and Maintenance
Tendring DC,http://statistics.data.gov.uk/id/local-authority-district/22UN,Benefits & Revenues,1580 - Head of Customer Service and Administration Service Unit,5500 - Miscellaneous Expenses,03/01/2012,2091590-1,75,2101078 - Pier Avenue Baptist Church,Hall Hire
Tendring DC,http://statistics.data.gov.uk/id/local-authority-district/22UN,Benefits & Revenues,1580 - Head of Customer Service and Administration Service Unit,4094 - Other Equipment Hire/Leasing,03/01/2012,2091740-1,56.4,2101111 - Pressure Coolers Limited,Cooler Rental
Tendring DC,http://statistics.data.gov.uk/id/local-authority-district/22UN,Benefits & Revenues,1580 - Head of Customer Service and Administration Service Unit,4350 - Photocopier Hire,03/01/2012,2091583-1,37.65,2101090 - Ricoh UK Ltd,Rental
Tendring DC,http://statistics.data.gov.uk/id/local-authority-district/22UN,Benefits & Revenues,1580 - Head of Customer Service and Administration Service Unit,4350 - Photocopier Hire,03/01/2012,2091584-1,1.21,2101090 - Ricoh UK Ltd,Click Charges
Tendring DC,http://statistics.data.gov.uk/id/local-authority-district/22UN,Benefits & Revenues,1580 - Head of Customer Service and Administration Service Unit,4350 - Photocopier Hire,03/01/2012,2091585-1,4.69,2101090 - Ricoh UK Ltd,Click Charges
Tendring DC,http://statistics.data.gov.uk/id/local-authority-district/22UN,Benefits & Revenues,1580 - Head of Customer Service and Administration Service Unit,4350 - Photocopier Hire,03/01/2012,2091586-1,37.65,2101090 - Ricoh UK Ltd,rental
Tendring DC,http://statistics.data.gov.uk/id/local-authority-district/22UN,Benefits & Revenues,1580 - Head of Customer Service and Administration Service Unit,4350 - Photocopier Hire,31/01/2012,2092809-1,18.61,2101090 - Ricoh UK Ltd,Click Charges
Tendring DC,http://statistics.data.gov.uk/id/local-authority-district/22UN,Benefits & Revenues,1580 - Head of Customer Service and Administration Service Unit,4350 - Photocopier Hire,31/01/2012,2092810-1,36.93,2101090 - Ricoh UK Ltd,Click Charges
Tendring DC,http://statistics.data.gov.uk/id/local-authority-district/22UN,Benefits & Revenues,1580 - Head of Customer Service and Administration Service Unit,4350 - Photocopier Hire,31/01/2012,2092811-1,13.45,2101090 - Ricoh UK Ltd,Click Charges
Tendring DC,http://statistics.data.gov.uk/id/local-authority-district/22UN,Benefits & Revenues,1580 - Head of Customer Service and Administration Service Unit,4350 - Photocopier Hire,31/01/2012,2092812-1,4.92,2101090 - Ricoh UK Ltd,Click Charges
Tendring DC,http://statistics.data.gov.uk/id/local-authority-district/22UN,Benefits & Revenues,1580 - Head of Customer Service and Administration Service Unit,4350 - Photocopier Hire,31/01/2012,2092813-1,15.07,2101090 - Ricoh UK Ltd,Click Charges
Tendring DC,http://statistics.data.gov.uk/id/local-authority-district/22UN,Benefits & Revenues,1580 - Head of Customer Service and Administration Service Unit,4350 - Photocopier Hire,31/01/2012,2092814-1,41.66,2101090 - Ricoh UK Ltd,Rental
Tendring DC,http://statistics.data.gov.uk/id/local-authority-district/22UN,Benefits & Revenues,1580 - Head of Customer Service and Administration Service Unit,4350 - Photocopier Hire,31/01/2012,2092815-1,47.37,2101090 - Ricoh UK Ltd,Rental
Tendring DC,http://statistics.data.gov.uk/id/local-authority-district/22UN,Benefits & Revenues,1580 - Head of Customer Service and Administration Service Unit,4350 - Photocopier Hire,31/01/2012,2092816-1,46.9,2101090 - Ricoh UK Ltd,Rental
Tendring DC,http://statistics.data.gov.uk/id/local-authority-district/22UN,Benefits & Revenues,1580 - Head of Customer Service and Administration Service Unit,4300 - Printing & Stationery,03/01/2012,2091588-1,271.86,2107546 - XMA Limited,Toner + Drum
Tendring DC,http://statistics.data.gov.uk/id/local-authority-district/22UN,Benefits & Revenues,1580 - Head of Customer Service and Administration Service Unit,4300 - Printing & Stationery,03/01/2012,2091589-1,492.32,2107546 - XMA Limited,Cartridges
Tendring DC,http://statistics.data.gov.uk/id/local-authority-district/22UN,Benefits & Revenues,1580 - Head of Customer Service and Administration Service Unit,4300 - Printing & Stationery,17/01/2012,2092176-1,723.7,2107546 - XMA Limited,Cartridges
Tendring DC,http://statistics.data.gov.uk/id/local-authority-district/22UN,Community Services,6920 - Youth Initiatives,3300 - Public Transport - Officers,17/01/2012,2092011-1,154,2100768 - A2B Taxis,TYA Transport
Tendring DC,http://statistics.data.gov.uk/id/local-authority-district/22UN,Community Services,5360 - Sheltered Units,2702 - Window Cleaning,17/01/2012,2092177-1,1350,2102096 - Alan Lillington,Window Cleaning at Schemes
Tendring DC,http://statistics.data.gov.uk/id/local-authority-district/22UN,Community Services,5360 - Sheltered Units,4601 - Hired services - Cleaning,17/01/2012,2092178-1,200,2102096 - Alan Lillington,Litter Picking at Schemes
Tendring DC,http://statistics.data.gov.uk/id/local-authority-district/22UN,Community Services,1580 - Head of Customer Service and Administration Service Unit,4462 - Legal Fees incl. Bailiffs re debt recovery,31/01/2012,2092627-1,51.49,2111631 - Anglia Courier Express (East Anglia) Ltd,Courier Service for Court 09/01/12
Tendring DC,http://statistics.data.gov.uk/id/local-authority-district/22UN,Community Services,1565 - Careline / CCTV Service Unit,4300 - Printing & Stationery,10/01/2012,2091890-1,86.26,REDACTED PERSONAL DATA,REDACTED PERSONAL DATA
Tendring DC,http://statistics.data.gov.uk/id/local-authority-district/22UN,Community Services,1580 - Head of Customer Service and Administration Service Unit,4300 - Printing & Stationery,31/01/2012,2092853-1,149.78,2100111 - Banner Business Supplies Ltd,Combbind & CD Labels
Tendring DC,http://statistics.data.gov.uk/id/local-authority-district/22UN,Community Services,6740 - Careline,2304 - Energy Costs - Electricity,17/01/2012,2092029-1,158.98,2100197 - British Gas Trading Ltd,British Gas Electric
Tendring DC,http://statistics.data.gov.uk/id/local-authority-district/22UN,Community Services,6740 - Careline,2304 - Energy Costs - Electricity,24/01/2012,2092436-1,69.02,2100197 - British Gas Trading Ltd,British Gas Bill - Jan
Tendring DC,http://statistics.data.gov.uk/id/local-authority-district/22UN,Community Services,6740 - Careline,4710 - Telephones - Charges,10/01/2012,1047078-1,291.36,2100168 - British Telecommunications plc,BT BILL-DECEMBER
Tendring DC,http://statistics.data.gov.uk/id/local-authority-district/22UN,Community Services,6740 - Careline,4710 - Telephones - Charges,24/01/2012,1047150-1,288.92,2100168 - British Telecommunications plc,BT - JAN
Tendring DC,http://statistics.data.gov.uk/id/local-authority-district/22UN,Community Services,5360 - Sheltered Units,2700 - Cleaning Materials,10/01/2012,1047076-1,25.68,2101624 - Bunzl,CLEANING SUPPLIES FOR GREENFIELDS
Tendring DC,http://statistics.data.gov.uk/id/local-authority-district/22UN,Community Services,5360 - Sheltered Units,2700 - Cleaning Materials,03/01/2012,2091597-1,115.27,2101624 - Bunzl,Cleaning Supplies Greenfields
Tendring DC,http://statistics.data.gov.uk/id/local-authority-district/22UN,Community Services,5360 - Sheltered Units,2700 - Cleaning Materials,17/01/2012,2092179-1,30.24,2101624 - Bunzl,Cleaning Supplies for Groom
Tendring DC,http://statistics.data.gov.uk/id/local-authority-district/22UN,Community Services,5360 - Sheltered Units,2700 - Cleaning Materials,17/01/2012,2092180-1,147.98,2101624 - Bunzl,Cleaning Supplies for Groom
Tendring DC,http://statistics.data.gov.uk/id/local-authority-district/22UN,Community Services,1560 - Cashiers Service Unit,4753 - Computer - Application Software,17/01/2012,2092191-1,248.75,2100202 - Capita Business Services Ltd,E Returns S&M
Tendring DC,http://statistics.data.gov.uk/id/local-authority-district/22UN,Community Services,1580 - Head of Customer Service and Administration Service Unit,3312 - Car Allowances - Car Hire,10/01/2012,2091898-1,22.5,REDACTED PERSONAL DATA,REDACTED PERSONAL DATA
Tendring DC,http://statistics.data.gov.uk/id/local-authority-district/22UN,Community Services,1580 - Head of Customer Service and Administration Service Unit,3062 - Running Costs - Petrol,10/01/2012,2091898-2,5,REDACTED PERSONAL DATA,REDACTED PERSONAL DATA
Tendring DC,http://statistics.data.gov.uk/id/local-authority-district/22UN,Community Services,1580 - Head of Customer Service and Administration Service Unit,4462 - Legal Fees incl. Bailiffs re debt recovery,03/01/2012,2091617-1,50,2100381 - Collect Services Ltd,Vat on fees Collected NNDR
Tendring DC,http://statistics.data.gov.uk/id/local-authority-district/22UN,Community Services,1580 - Head of Customer Service and Administration Service Unit,4462 - Legal Fees incl. Bailiffs re debt recovery,03/01/2012,2091617-2,-50,2100381 - Collect Services Ltd,Vat on fees Collected NNDR
Tendring DC,http://statistics.data.gov.uk/id/local-authority-district/22UN,Community Services,1580 - Head of Customer Service and Administration Service Unit,4462 - Legal Fees incl. Bailiffs re debt recovery,03/01/2012,2091617-3,72.35,2100381 - Collect Services Ltd,Vat on fees Collected NNDR
Tendring DC,http://statistics.data.gov.uk/id/local-authority-district/22UN,Community Services,1580 - Head of Customer Service and Administration Service Unit,4462 - Legal Fees incl. Bailiffs re debt recovery,03/01/2012,2091617-4,-72.35,2100381 - Collect Services Ltd,Vat on fees Collected NNDR
Tendring DC,http://statistics.data.gov.uk/id/local-authority-district/22UN,Community Services,1580 - Head of Customer Service and Administration Service Unit,4462 - Legal Fees incl. Bailiffs re debt recovery,03/01/2012,2091618-1,107.5,2100381 - Collect Services Ltd,VAT on fees collected CT
Tendring DC,http://statistics.data.gov.uk/id/local-authority-district/22UN,Community Services,1580 - Head of Customer Service and Administration Service Unit,4462 - Legal Fees incl. Bailiffs re debt recovery,03/01/2012,2091618-2,-107.5,2100381 - Collect Services Ltd,VAT on fees collected CT
Tendring DC,http://statistics.data.gov.uk/id/local-authority-district/22UN,Community Services,1580 - Head of Customer Service and Administration Service Unit,4462 - Legal Fees incl. Bailiffs re debt recovery,03/01/2012,2091618-3,225.17,2100381 - Collect Services Ltd,VAT on fees collected CT
Tendring DC,http://statistics.data.gov.uk/id/local-authority-district/22UN,Community Services,1580 - Head of Customer Service and Administration Service Unit,4462 - Legal Fees incl. Bailiffs re debt recovery,03/01/2012,2091618-4,-225.17,2100381 - Collect Services Ltd,VAT on fees collected CT
Tendring DC,http://statistics.data.gov.uk/id/local-authority-district/22UN,Community Services,1580 - Head of Customer Service and Administration Service Unit,4462 - Legal Fees incl. Bailiffs re debt recovery,03/01/2012,2091618-5,2301.94,2100381 - Collect Services Ltd,VAT on fees collected CT
Tendring DC,http://statistics.data.gov.uk/id/local-authority-district/22UN,Community Services,1580 - Head of Customer Service and Administration Service Unit,4462 - Legal Fees incl. Bailiffs re debt recovery,03/01/2012,2091618-6,-2301.94,2100381 - Collect Services Ltd,VAT on fees collected CT
Tendring DC,http://statistics.data.gov.uk/id/local-authority-district/22UN,Community Services,1580 - Head of Customer Service and Administration Service Unit,4462 - Legal Fees incl. Bailiffs re debt recovery,10/01/2012,2091960-1,103.4,2100381 - Collect Services Ltd,VAT on Fees Collected NNDR
Tendring DC,http://statistics.data.gov.uk/id/local-authority-district/22UN,Community Services,1580 - Head of Customer Service and Administration Service Unit,4462 - Legal Fees incl. Bailiffs re debt recovery,10/01/2012,2091960-2,-103.4,2100381 - Collect Services Ltd,VAT on Fees Collected NNDR
Tendring DC,http://statistics.data.gov.uk/id/local-authority-district/22UN,Community Services,1580 - Head of Customer Service and Administration Service Unit,4462 - Legal Fees incl. Bailiffs re debt recovery,10/01/2012,2091960-3,42.5,2100381 - Collect Services Ltd,VAT on Fees Collected NNDR
Tendring DC,http://statistics.data.gov.uk/id/local-authority-district/22UN,Community Services,1580 - Head of Customer Service and Administration Service Unit,4462 - Legal Fees incl. Bailiffs re debt recovery,10/01/2012,2091960-4,-42.5,2100381 - Collect Services Ltd,VAT on Fees Collected NNDR
Tendring DC,http://statistics.data.gov.uk/id/local-authority-district/22UN,Community Services,1580 - Head of Customer Service and Administration Service Unit,4462 - Legal Fees incl. Bailiffs re debt recovery,10/01/2012,2091961-1,3689.7,2100381 - Collect Services Ltd,VAT on fees Collected CT
Tendring DC,http://statistics.data.gov.uk/id/local-authority-district/22UN,Community Services,1580 - Head of Customer Service and Administration Service Unit,4462 - Legal Fees incl. Bailiffs re debt recovery,10/01/2012,2091961-2,-3689.7,2100381 - Collect Services Ltd,VAT on fees Collected CT
Tendring DC,http://statistics.data.gov.uk/id/local-authority-district/22UN,Community Services,1580 - Head of Customer Service and Administration Service Unit,4462 - Legal Fees incl. Bailiffs re debt recovery,10/01/2012,2091961-3,342.95,2100381 - Collect Services Ltd,VAT on fees Collected CT
Tendring DC,http://statistics.data.gov.uk/id/local-authority-district/22UN,Community Services,1580 - Head of Customer Service and Administration Service Unit,4462 - Legal Fees incl. Bailiffs re debt recovery,10/01/2012,2091961-4,-342.95,2100381 - Collect Services Ltd,VAT on fees Collected CT
Tendring DC,http://statistics.data.gov.uk/id/local-authority-district/22UN,Community Services,1580 - Head of Customer Service and Administration Service Unit,4462 - Legal Fees incl. Bailiffs re debt recovery,10/01/2012,2091961-5,460.62,2100381 - Collect Services Ltd,VAT on fees Collected CT
Tendring DC,http://statistics.data.gov.uk/id/local-authority-district/22UN,Community Services,1580 - Head of Customer Service and Administration Service Unit,4462 - Legal Fees incl. Bailiffs re debt recovery,10/01/2012,2091961-6,-460.62,2100381 - Collect Services Ltd,VAT on fees Collected CT
Tendring DC,http://statistics.data.gov.uk/id/local-authority-district/22UN,Community Services,1580 - Head of Customer Service and Administration Service Unit,4462 - Legal Fees incl. Bailiffs re debt recovery,10/01/2012,2091962-1,305.6,2100381 - Collect Services Ltd,Commission on Monies Recovered
Tendring DC,http://statistics.data.gov.uk/id/local-authority-district/22UN,Community Services,1580 - Head of Customer Service and Administration Service Unit,4462 - Legal Fees incl. Bailiffs re debt recovery,24/01/2012,2092527-1,204.82,REDACTED PERSONAL DATA,REDACTED PERSONAL DATA
Tendring DC,http://statistics.data.gov.uk/id/local-authority-district/22UN,Community Services,1580 - Head of Customer Service and Administration Service Unit,4462 - Legal Fees incl. Bailiffs re debt recovery,24/01/2012,2092527-2,-204.82,REDACTED PERSONAL DATA,REDACTED PERSONAL DATA
Tendring DC,http://statistics.data.gov.uk/id/local-authority-district/22UN,Community Services,1580 - Head of Customer Service and Administration Service Unit,4462 - Legal Fees incl. Bailiffs re debt recovery,24/01/2012,2092528-1,1631.76,REDACTED PERSONAL DATA,REDACTED PERSONAL DATA
Tendring DC,http://statistics.data.gov.uk/id/local-authority-district/22UN,Community Services,1580 - Head of Customer Service and Administration Service Unit,4462 - Legal Fees incl. Bailiffs re debt recovery,24/01/2012,2092528-2,-1631.76,REDACTED PERSONAL DATA,REDACTED PERSONAL DATA
Tendring DC,http://statistics.data.gov.uk/id/local-authority-district/22UN,Community Services,1580 - Head of Customer Service and Administration Service Unit,4462 - Legal Fees incl. Bailiffs re debt recovery,24/01/2012,2092528-3,368.2,REDACTED PERSONAL DATA,REDACTED PERSONAL DATA
Tendring DC,http://statistics.data.gov.uk/id/local-authority-district/22UN,Community Services,1580 - Head of Customer Service and Administration Service Unit,4462 - Legal Fees incl. Bailiffs re debt recovery,24/01/2012,2092528-4,-368.2,REDACTED PERSONAL DATA,REDACTED PERSONAL DATA
Tendring DC,http://statistics.data.gov.uk/id/local-authority-district/22UN,Community Services,1580 - Head of Customer Service and Administration Service Unit,4462 - Legal Fees incl. Bailiffs re debt recovery,24/01/2012,2092528-5,53.75,REDACTED PERSONAL DATA,REDACTED PERSONAL DATA
Tendring DC,http://statistics.data.gov.uk/id/local-authority-district/22UN,Community Services,1580 - Head of Customer Service and Administration Service Unit,4462 - Legal Fees incl. Bailiffs re debt recovery,24/01/2012,2092528-6,-53.75,REDACTED PERSONAL DATA,REDACTED PERSONAL DATA
Tendring DC,http://statistics.data.gov.uk/id/local-authority-district/22UN,Community Services,1580 - Head of Customer Service and Administration Service Unit,4462 - Legal Fees incl. Bailiffs re debt recovery,31/01/2012,2092628-1,1937.71,2100381 - Collect Services Ltd,VAT on Fees Collected CT
Tendring DC,http://statistics.data.gov.uk/id/local-authority-district/22UN,Community Services,1580 - Head of Customer Service and Administration Service Unit,4462 - Legal Fees incl. Bailiffs re debt recovery,31/01/2012,2092628-2,-1937.71,2100381 - Collect Services Ltd,VAT on Fees Collected CT
Tendring DC,http://statistics.data.gov.uk/id/local-authority-district/22UN,Community Services,1580 - Head of Customer Service and Administration Service Unit,4462 - Legal Fees incl. Bailiffs re debt recovery,31/01/2012,2092628-3,198.24,2100381 - Collect Services Ltd,VAT on Fees Collected CT
Tendring DC,http://statistics.data.gov.uk/id/local-authority-district/22UN,Community Services,1580 - Head of Customer Service and Administration Service Unit,4462 - Legal Fees incl. Bailiffs re debt recovery,31/01/2012,2092628-4,-198.24,2100381 - Collect Services Ltd,VAT on Fees Collected CT
Tendring DC,http://statistics.data.gov.uk/id/local-authority-district/22UN,Community Services,1580 - Head of Customer Service and Administration Service Unit,4462 - Legal Fees incl. Bailiffs re debt recovery,31/01/2012,2092628-5,51.39,2100381 - Collect Services Ltd,VAT on Fees Collected CT
Tendring DC,http://statistics.data.gov.uk/id/local-authority-district/22UN,Community Services,1580 - Head of Customer Service and Administration Service Unit,4462 - Legal Fees incl. Bailiffs re debt recovery,31/01/2012,2092628-6,-51.39,2100381 - Collect Services Ltd,VAT on Fees Collected CT
Tendring DC,http://statistics.data.gov.uk/id/local-authority-district/22UN,Community Services,1580 - Head of Customer Service and Administration Service Unit,4462 - Legal Fees incl. Bailiffs re debt recovery,31/01/2012,2092629-1,307.2,2100381 - Collect Services Ltd,Vat on fees collected NNDR
Tendring DC,http://statistics.data.gov.uk/id/local-authority-district/22UN,Community Services,1580 - Head of Customer Service and Administration Service Unit,4462 - Legal Fees incl. Bailiffs re debt recovery,31/01/2012,2092629-2,-307.2,2100381 - Collect Services Ltd,Vat on fees collected NNDR
Tendring DC,http://statistics.data.gov.uk/id/local-authority-district/22UN,Community Services,1580 - Head of Customer Service and Administration Service Unit,4462 - Legal Fees incl. Bailiffs re debt recovery,31/01/2012,2092629-3,50,2100381 - Collect Services Ltd,Vat on fees collected NNDR
Tendring DC,http://statistics.data.gov.uk/id/local-authority-district/22UN,Community Services,1580 - Head of Customer Service and Administration Service Unit,4462 - Legal Fees incl. Bailiffs re debt recovery,31/01/2012,2092629-4,-50,2100381 - Collect Services Ltd,Vat on fees collected NNDR
Tendring DC,http://statistics.data.gov.uk/id/local-authority-district/22UN,Community Services,1580 - Head of Customer Service and Administration Service Unit,4462 - Legal Fees incl. Bailiffs re debt recovery,31/01/2012,2092827-1,14.85,2100381 - Collect Services Ltd,VAT on fees collected NNDR
Tendring DC,http://statistics.data.gov.uk/id/local-authority-district/22UN,Community Services,1580 - Head of Customer Service and Administration Service Unit,4462 - Legal Fees incl. Bailiffs re debt recovery,31/01/2012,2092827-2,-14.85,2100381 - Collect Services Ltd,VAT on fees collected NNDR
Tendring DC,http://statistics.data.gov.uk/id/local-authority-district/22UN,Community Services,1580 - Head of Customer Service and Administration Service Unit,4462 - Legal Fees incl. Bailiffs re debt recovery,31/01/2012,2092828-1,1724.02,2100381 - Collect Services Ltd,Vat on fees collected CT
Tendring DC,http://statistics.data.gov.uk/id/local-authority-district/22UN,Community Services,1580 - Head of Customer Service and Administration Service Unit,4462 - Legal Fees incl. Bailiffs re debt recovery,31/01/2012,2092828-2,-1724.02,2100381 - Collect Services Ltd,Vat on fees collected CT
Tendring DC,http://statistics.data.gov.uk/id/local-authority-district/22UN,Community Services,1580 - Head of Customer Service and Administration Service Unit,4462 - Legal Fees incl. Bailiffs re debt recovery,31/01/2012,2092828-3,75.07,2100381 - Collect Services Ltd,Vat on fees collected CT
Tendring DC,http://statistics.data.gov.uk/id/local-authority-district/22UN,Community Services,1580 - Head of Customer Service and Administration Service Unit,4462 - Legal Fees incl. Bailiffs re debt recovery,31/01/2012,2092828-4,-75.07,2100381 - Collect Services Ltd,Vat on fees collected CT
Tendring DC,http://statistics.data.gov.uk/id/local-authority-district/22UN,Community Services,1580 - Head of Customer Service and Administration Service Unit,4462 - Legal Fees incl. Bailiffs re debt recovery,31/01/2012,2092828-5,58.75,2100381 - Collect Services Ltd,Vat on fees collected CT
Tendring DC,http://statistics.data.gov.uk/id/local-authority-district/22UN,Community Services,1580 - Head of Customer Service and Administration Service Unit,4462 - Legal Fees incl. Bailiffs re debt recovery,31/01/2012,2092828-6,-58.75,2100381 - Collect Services Ltd,Vat on fees collected CT
Tendring DC,http://statistics.data.gov.uk/id/local-authority-district/22UN,Community Services,1580 - Head of Customer Service and Administration Service Unit,4462 - Legal Fees incl. Bailiffs re debt recovery,23/01/2012,2092425-1,5,2105795 - Companies House,Companies House
Tendring DC,http://statistics.data.gov.uk/id/local-authority-district/22UN,Community Services,6740 - Careline,4040 - Equipment & Tools,31/01/2012,2092745-1,267.95,2111942 - Connevans Ltd,Minicom Text Phone
Tendring DC,http://statistics.data.gov.uk/id/local-authority-district/22UN,Community Services,1580 - Head of Customer Service and Administration Service Unit,4462 - Legal Fees incl. Bailiffs re debt recovery,23/01/2012,2092424-1,1247,2100304 - CO-OP Bank,HM Court Services & Car Park
Tendring DC,http://statistics.data.gov.uk/id/local-authority-district/22UN,Community Services,1580 - Head of Customer Service and Administration Service Unit,4462 - Legal Fees incl. Bailiffs re debt recovery,23/01/2012,2092424-2,5.83,2100304 - CO-OP Bank,HM Court Services & Car Park
Tendring DC,http://statistics.data.gov.uk/id/local-authority-district/22UN,Community Services,5360 - Sheltered Units,4710 - Telephones - Charges,03/01/2012,2091615-1,65.97,2106704 - Daisy Communications Ltd,Daisy Bill - November
Tendring DC,http://statistics.data.gov.uk/id/local-authority-district/22UN,Community Services,7025 - CDRP Support,4900 - Grants,10/01/2012,2091977-1,120,2102946 - Dream 100.2fm,SOS Bus Radio advert
Tendring DC,http://statistics.data.gov.uk/id/local-authority-district/22UN,Community Services,6740 - Careline,2304 - Energy Costs - Electricity,24/01/2012,1047149-1,33.24,2107644 - Eon,ELECTRIC BILL
Tendring DC,http://statistics.data.gov.uk/id/local-authority-district/22UN,Community Services,7025 - CDRP Support,4900 - Grants,31/01/2012,2092749-1,4000,2108768 - Essex County Fire & Rescue Service,Firebreak Course
Tendring DC,http://statistics.data.gov.uk/id/local-authority-district/22UN,Community Services,1560 - Cashiers Service Unit,4635 - Cash Collection Contract,24/01/2012,2092409-1,-44.64,2101233 - G4S Cash Services (UK) Limited,G4S Credit Missed Service
Tendring DC,http://statistics.data.gov.uk/id/local-authority-district/22UN,Community Services,1580 - Head of Customer Service and Administration Service Unit,4635 - Cash Collection Contract,24/01/2012,2092611-1,1024.65,2101233 - G4S Cash Services (UK) Limited,G4S Feb 12
Tendring DC,http://statistics.data.gov.uk/id/local-authority-district/22UN,Community Services,8520 - Frinton & Walton Swimming Pool,4635 - Cash Collection Contract,24/01/2012,2092611-10,139.13,2101233 - G4S Cash Services (UK) Limited,G4S Feb 12
Tendring DC,http://statistics.data.gov.uk/id/local-authority-district/22UN,Community Services,5860 - Manningtree Sports Centre,4635 - Cash Collection Contract,24/01/2012,2092611-11,69.57,2101233 - G4S Cash Services (UK) Limited,G4S Feb 12
Tendring DC,http://statistics.data.gov.uk/id/local-authority-district/22UN,Community Services,5820 - Harwich Sports Centre,4635 - Cash Collection Contract,24/01/2012,2092611-12,69.57,2101233 - G4S Cash Services (UK) Limited,G4S Feb 12
Tendring DC,http://statistics.data.gov.uk/id/local-authority-district/22UN,Community Services,5260 - Rent Collection And Accounting,4635 - Cash Collection Contract,24/01/2012,2092611-2,260.26,2101233 - G4S Cash Services (UK) Limited,G4S Feb 12
Tendring DC,http://statistics.data.gov.uk/id/local-authority-district/22UN,Community Services,5260 - Rent Collection And Accounting,4635 - Cash Collection Contract,24/01/2012,2092611-3,42.26,2101233 - G4S Cash Services (UK) Limited,G4S Feb 12
Tendring DC,http://statistics.data.gov.uk/id/local-authority-district/22UN,Community Services,1560 - Cashiers Service Unit,4635 - Cash Collection Contract,24/01/2012,2092611-4,63.02,2101233 - G4S Cash Services (UK) Limited,G4S Feb 12
Tendring DC,http://statistics.data.gov.uk/id/local-authority-district/22UN,Community Services,8025 - Car Parks - Off St,4635 - Cash Collection Contract,24/01/2012,2092611-5,147.99,2101233 - G4S Cash Services (UK) Limited,G4S Feb 12
Tendring DC,http://statistics.data.gov.uk/id/local-authority-district/22UN,Community Services,8530 - Brightlingsea Swimming Pool,4635 - Cash Collection Contract,24/01/2012,2092611-6,69.57,2101233 - G4S Cash Services (UK) Limited,G4S Feb 12
Tendring DC,http://statistics.data.gov.uk/id/local-authority-district/22UN,Community Services,8540 - Leisure Centre Clacton,4635 - Cash Collection Contract,24/01/2012,2092611-7,208.7,2101233 - G4S Cash Services (UK) Limited,G4S Feb 12
Tendring DC,http://statistics.data.gov.uk/id/local-authority-district/22UN,Community Services,8510 - Dovercourt Swimming Pool & All Weather Facilities,4635 - Cash Collection Contract,24/01/2012,2092611-8,139.13,2101233 - G4S Cash Services (UK) Limited,G4S Feb 12
Tendring DC,http://statistics.data.gov.uk/id/local-authority-district/22UN,Community Services,5800 - Brightlingsea Sports Centre,4635 - Cash Collection Contract,24/01/2012,2092611-9,69.57,2101233 - G4S Cash Services (UK) Limited,G4S Feb 12
Tendring DC,http://statistics.data.gov.uk/id/local-authority-district/22UN,Community Services,6740 - Careline,5500 - Miscellaneous Expenses,03/01/2012,2091647-1,168.42,2108293 - GB Office Group Ltd,Personal Files
Tendring DC,http://statistics.data.gov.uk/id/local-authority-district/22UN,Community Services,5360 - Sheltered Units,4000 - Furniture,10/01/2012,2091886-1,119,REDACTED PERSONAL DATA,REDACTED PERSONAL DATA
Tendring DC,http://statistics.data.gov.uk/id/local-authority-district/22UN,Community Services,5360 - Sheltered Units,4000 - Furniture,10/01/2012,2091887-1,797.5,REDACTED PERSONAL DATA,REDACTED PERSONAL DATA
Tendring DC,http://statistics.data.gov.uk/id/local-authority-district/22UN,Community Services,5360 - Sheltered Units,4000 - Furniture,10/01/2012,2091888-1,792,REDACTED PERSONAL DATA,REDACTED PERSONAL DATA
Tendring DC,http://statistics.data.gov.uk/id/local-authority-district/22UN,Community Services,7020 - SSCF - Crime Reduction,4900 - Grants,24/01/2012,1047128-1,73.78,2100546 - GCS Alarms,REPAIR MONITOR ON FAST RESPONSE UNIT
Tendring DC,http://statistics.data.gov.uk/id/local-authority-district/22UN,Community Services,7000 - CCTV,2103 - Repairs and Maintenance,03/01/2012,2091595-1,198,2100546 - GCS Alarms,Repair & Refit Monitor
Tendring DC,http://statistics.data.gov.uk/id/local-authority-district/22UN,Community Services,7020 - SSCF - Crime Reduction,4900 - Grants,10/01/2012,2091953-1,250,REDACTED PERSONAL DATA,REDACTED PERSONAL DATA
Tendring DC,http://statistics.data.gov.uk/id/local-authority-district/22UN,Community Services,7020 - SSCF - Crime Reduction,4900 - Grants,10/01/2012,2091954-1,100,REDACTED PERSONAL DATA,REDACTED PERSONAL DATA
Tendring DC,http://statistics.data.gov.uk/id/local-authority-district/22UN,Community Services,7020 - SSCF - Crime Reduction,4900 - Grants,10/01/2012,2091955-1,150,REDACTED PERSONAL DATA,REDACTED PERSONAL DATA
Tendring DC,http://statistics.data.gov.uk/id/local-authority-district/22UN,Community Services,7000 - CCTV,2103 - Repairs and Maintenance,17/01/2012,2092186-1,50,2100546 - GCS Alarms,Re-install & Reset Radio links
Tendring DC,http://statistics.data.gov.uk/id/local-authority-district/22UN,Community Services,7020 - SSCF - Crime Reduction,4900 - Grants,31/01/2012,2092825-1,70,2100546 - GCS Alarms,To attend site & remove WCCTV camera
Tendring DC,http://statistics.data.gov.uk/id/local-authority-district/22UN,Community Services,1580 - Head of Customer Service and Administration Service Unit,4810 - Conference Bookings,24/01/2012,2092542-1,189,2108862 - Hbinfo Ltd,HBinfo conference
Tendring DC,http://statistics.data.gov.uk/id/local-authority-district/22UN,Community Services,6740 - Careline,5160 - Advertising,17/01/2012,2092051-1,895,2100751 - Impact Marketing & Publicity LTD,Ad in Indepence Guide
Tendring DC,http://statistics.data.gov.uk/id/local-authority-district/22UN,Community Services,6740 - Careline,4880 - Subscriptions Paid,17/01/2012,2092181-1,890,2110906 - Insight Certification Ltd,Annual Audit Visit
Tendring DC,http://statistics.data.gov.uk/id/local-authority-district/22UN,Community Services,5360 - Sheltered Units,4601 - Hired services - Cleaning,17/01/2012,2092183-1,374,2100851 - KO-SHEEN Contract Cleaning Ltd,Cleaning @ Spendells - December
Tendring DC,http://statistics.data.gov.uk/id/local-authority-district/22UN,Community Services,5360 - Sheltered Units,4601 - Hired services - Cleaning,17/01/2012,2092184-1,588.88,2100851 - KO-SHEEN Contract Cleaning Ltd,Cleaning @ Belmans - December
Tendring DC,http://statistics.data.gov.uk/id/local-authority-district/22UN,Community Services,6740 - Careline,5500 - Miscellaneous Expenses,31/01/2012,1045537-1,60,2103500 - Liquidline,SERVICE WATER BOILER
Tendring DC,http://statistics.data.gov.uk/id/local-authority-district/22UN,Community Services,7100 - Community Health/Safety,4300 - Printing & Stationery,10/01/2012,2091952-1,57.52,REDACTED PERSONAL DATA,REDACTED PERSONAL DATA
Tendring DC,http://statistics.data.gov.uk/id/local-authority-district/22UN,Community Services,1565 - Careline / CCTV Service Unit,4300 - Printing & Stationery,17/01/2012,2092185-1,55.98,2110099 - Lyreco UK Ltd,Stationery - December
Tendring DC,http://statistics.data.gov.uk/id/local-authority-district/22UN,Community Services,5360 - Sheltered Units,4300 - Printing & Stationery,17/01/2012,2092185-2,57.6,2110099 - Lyreco UK Ltd,Stationery - December
Tendring DC,http://statistics.data.gov.uk/id/local-authority-district/22UN,Community Services,5360 - Sheltered Units,4300 - Printing & Stationery,31/01/2012,2092746-1,22.59,2110099 - Lyreco UK Ltd,"Notice board, Clipboard & Clips"
Tendring DC,http://statistics.data.gov.uk/id/local-authority-district/22UN,Community Services,1565 - Careline / CCTV Service Unit,4300 - Printing & Stationery,31/01/2012,2092746-2,26,2110099 - Lyreco UK Ltd,"Notice board, Clipboard & Clips"
Tendring DC,http://statistics.data.gov.uk/id/local-authority-district/22UN,Community Services,1580 - Head of Customer Service and Administration Service Unit,4300 - Printing & Stationery,31/01/2012,2092855-1,10.3,2110099 - Lyreco UK Ltd,Pens / Cones / Notes
Tendring DC,http://statistics.data.gov.uk/id/local-authority-district/22UN,Community Services,1580 - Head of Customer Service and Administration Service Unit,4300 - Printing & Stationery,31/01/2012,2092854-1,100.68,2100939 - Neopost Limited,Sealing Fluid
Tendring DC,http://statistics.data.gov.uk/id/local-authority-district/22UN,Community Services,1580 - Head of Customer Service and Administration Service Unit,4753 - Computer - Application Software,10/01/2012,2091976-1,230,2101204 - Northgate Information Solutions UK Ltd,S&M HB Summ not Module
Tendring DC,http://statistics.data.gov.uk/id/local-authority-district/22UN,Community Services,1580 - Head of Customer Service and Administration Service Unit,4753 - Computer - Application Software,31/01/2012,2092852-1,4000,2101204 - Northgate Information Solutions UK Ltd,A/B Support
Tendring DC,http://statistics.data.gov.uk/id/local-authority-district/22UN,Community Services,1580 - Head of Customer Service and Administration Service Unit,4355 - Books & Periodicals,17/01/2012,2092057-1,645,2101987 - Rating & Valuation Reporter,Subscription
Tendring DC,http://statistics.data.gov.uk/id/local-authority-district/22UN,Community Services,1580 - Head of Customer Service and Administration Service Unit,4700 - Postage,03/01/2012,2091725-1,1611.19,2101139 - Royal Mail,Outgoing Post Dec 11
Tendring DC,http://statistics.data.gov.uk/id/local-authority-district/22UN,Community Services,1580 - Head of Customer Service and Administration Service Unit,4700 - Postage,10/01/2012,2091822-1,2324.72,2101139 - Royal Mail,Outgoing Post Dec 11
Tendring DC,http://statistics.data.gov.uk/id/local-authority-district/22UN,Community Services,1580 - Head of Customer Service and Administration Service Unit,4700 - Postage,10/01/2012,2091823-1,76.8,2101139 - Royal Mail,Response Plus Dec 11
Tendring DC,http://statistics.data.gov.uk/id/local-authority-district/22UN,Community Services,7030 - Crime and Disorder - Police Grant,4900 - Grants,10/01/2012,2091956-1,165.64,REDACTED PERSONAL DATA,REDACTED PERSONAL DATA
Tendring DC,http://statistics.data.gov.uk/id/local-authority-district/22UN,Community Services,1580 - Head of Customer Service and Administration Service Unit,4700 - Postage,24/01/2012,2092540-1,1483.93,2101139 - Royal Mail,Outgoing Post Jan 2012
Tendring DC,http://statistics.data.gov.uk/id/local-authority-district/22UN,Community Services,7030 - Crime and Disorder - Police Grant,4900 - Grants,31/01/2012,2092748-1,9.02,2101139 - Royal Mail,Response Plus Service
Tendring DC,http://statistics.data.gov.uk/id/local-authority-district/22UN,Community Services,1580 - Head of Customer Service and Administration Service Unit,4700 - Postage,31/01/2012,2092857-1,2129.53,2101139 - Royal Mail,Outgoing Post
Tendring DC,http://statistics.data.gov.uk/id/local-authority-district/22UN,Community Services,7025 - CDRP Support,4900 - Grants,24/01/2012,1047127-1,660,2100032 - Signs Made Easy,MAGNETIC ISGNS FOR SOS BUS
Tendring DC,http://statistics.data.gov.uk/id/local-authority-district/22UN,Community Services,5360 - Sheltered Units,4710 - Telephones - Charges,17/01/2012,2092036-1,41.68,2108907 - Southern Communications Ltd,Southern Comms - Dec 2011
Tendring DC,http://statistics.data.gov.uk/id/local-authority-district/22UN,Community Services,5360 - Sheltered Units,4710 - Telephones - Charges,17/01/2012,2092036-10,25.6,2108907 - Southern Communications Ltd,Southern Comms - Dec 2011
Tendring DC,http://statistics.data.gov.uk/id/local-authority-district/22UN,Community Services,6740 - Careline,4710 - Telephones - Charges,17/01/2012,2092036-11,792.7,2108907 - Southern Communications Ltd,792
Tendring DC,http://statistics.data.gov.uk/id/local-authority-district/22UN,Community Services,7000 - CCTV,4718 - Fixed Communication Lines,17/01/2012,2092036-12,63.9,2108907 - Southern Communications Ltd,792
Tendring DC,http://statistics.data.gov.uk/id/local-authority-district/22UN,Community Services,5360 - Sheltered Units,4710 - Telephones - Charges,17/01/2012,2092036-2,41.54,2108907 - Southern Communications Ltd,Southern Comms - Dec 2011
Tendring DC,http://statistics.data.gov.uk/id/local-authority-district/22UN,Community Services,5360 - Sheltered Units,4710 - Telephones - Charges,17/01/2012,2092036-3,42.2,2108907 - Southern Communications Ltd,Southern Comms - Dec 2011
Tendring DC,http://statistics.data.gov.uk/id/local-authority-district/22UN,Community Services,5360 - Sheltered Units,4710 - Telephones - Charges,17/01/2012,2092036-4,61.12,2108907 - Southern Communications Ltd,Southern Comms - Dec 2011
Tendring DC,http://statistics.data.gov.uk/id/local-authority-district/22UN,Community Services,5360 - Sheltered Units,4710 - Telephones - Charges,17/01/2012,2092036-5,51.92,2108907 - Southern Communications Ltd,Southern Comms - Dec 2011
Tendring DC,http://statistics.data.gov.uk/id/local-authority-district/22UN,Community Services,5360 - Sheltered Units,4710 - Telephones - Charges,17/01/2012,2092036-6,29.41,2108907 - Southern Communications Ltd,Southern Comms - Dec 2011
Tendring DC,http://statistics.data.gov.uk/id/local-authority-district/22UN,Community Services,5360 - Sheltered Units,4710 - Telephones - Charges,17/01/2012,2092036-7,46.35,2108907 - Southern Communications Ltd,Southern Comms - Dec 2011
Tendring DC,http://statistics.data.gov.uk/id/local-authority-district/22UN,Community Services,5360 - Sheltered Units,4710 - Telephones - Charges,17/01/2012,2092036-8,48.28,2108907 - Southern Communications Ltd,Southern Comms - Dec 2011
Tendring DC,http://statistics.data.gov.uk/id/local-authority-district/22UN,Community Services,5360 - Sheltered Units,4710 - Telephones - Charges,17/01/2012,2092036-9,41.68,2108907 - Southern Communications Ltd,Southern Comms - Dec 2011
Tendring DC,http://statistics.data.gov.uk/id/local-authority-district/22UN,Community Services,9900 - General Fund Balance Sheet,B382 - Rechargeable Works - Other,10/01/2012,2091837-1,90,REDACTED PERSONAL DATA,REDACTED PERSONAL DATA
Tendring DC,http://statistics.data.gov.uk/id/local-authority-district/22UN,Community Services,9900 - General Fund Balance Sheet,B382 - Rechargeable Works - Other,24/01/2012,2092442-1,105,REDACTED PERSONAL DATA,REDACTED PERSONAL DATA
Tendring DC,http://statistics.data.gov.uk/id/local-authority-district/22UN,Community Services,9900 - General Fund Balance Sheet,B382 - Rechargeable Works - Other,31/01/2012,2092785-1,105,REDACTED PERSONAL DATA,REDACTED PERSONAL DATA
Tendring DC,http://statistics.data.gov.uk/id/local-authority-district/22UN,Community Services,7025 - CDRP Support,4900 - Grants,10/01/2012,2091951-1,15,REDACTED PERSONAL DATA,REDACTED PERSONAL DATA
Tendring DC,http://statistics.data.gov.uk/id/local-authority-district/22UN,Community Services,6740 - Careline,5500 - Miscellaneous Expenses,03/01/2012,1047032-1,2.48,2106638 - Tendring District Council,PETTY CASH
Tendring DC,http://statistics.data.gov.uk/id/local-authority-district/22UN,Community Services,6740 - Careline,4000 - Furniture,03/01/2012,1047032-10,10.39,2106638 - Tendring District Council,PETTY CASH
Tendring DC,http://statistics.data.gov.uk/id/local-authority-district/22UN,Community Services,5360 - Sheltered Units,4000 - Furniture,03/01/2012,1047032-11,3.33,2106638 - Tendring District Council,PETTY CASH
Tendring DC,http://statistics.data.gov.uk/id/local-authority-district/22UN,Community Services,5360 - Sheltered Units,4000 - Furniture,03/01/2012,1047032-12,0.64,2106638 - Tendring District Council,PETTY CASH
Tendring DC,http://statistics.data.gov.uk/id/local-authority-district/22UN,Community Services,5360 - Sheltered Units,4000 - Furniture,03/01/2012,1047032-13,3.33,2106638 - Tendring District Council,PETTY CASH
Tendring DC,http://statistics.data.gov.uk/id/local-authority-district/22UN,Community Services,5360 - Sheltered Units,4000 - Furniture,03/01/2012,1047032-14,18.25,2106638 - Tendring District Council,PETTY CASH
Tendring DC,http://statistics.data.gov.uk/id/local-authority-district/22UN,Community Services,5360 - Sheltered Units,4000 - Furniture,03/01/2012,1047032-2,19.96,2106638 - Tendring District Council,PETTY CASH
Tendring DC,http://statistics.data.gov.uk/id/local-authority-district/22UN,Community Services,5360 - Sheltered Units,4000 - Furniture,03/01/2012,1047032-3,4.99,2106638 - Tendring District Council,PETTY CASH
Tendring DC,http://statistics.data.gov.uk/id/local-authority-district/22UN,Community Services,5360 - Sheltered Units,4000 - Furniture,03/01/2012,1047032-4,9.98,2106638 - Tendring District Council,PETTY CASH
Tendring DC,http://statistics.data.gov.uk/id/local-authority-district/22UN,Community Services,6740 - Careline,3060 - Running Costs - Diesel,03/01/2012,1047032-5,4.13,2106638 - Tendring District Council,PETTY CASH
Tendring DC,http://statistics.data.gov.uk/id/local-authority-district/22UN,Community Services,6740 - Careline,5500 - Miscellaneous Expenses,03/01/2012,1047032-6,6,2106638 - Tendring District Council,PETTY CASH
Tendring DC,http://statistics.data.gov.uk/id/local-authority-district/22UN,Community Services,6740 - Careline,5500 - Miscellaneous Expenses,03/01/2012,1047032-7,1.18,2106638 - Tendring District Council,PETTY CASH
Tendring DC,http://statistics.data.gov.uk/id/local-authority-district/22UN,Community Services,6740 - Careline,4710 - Telephones - Charges,03/01/2012,1047032-8,12.5,2106638 - Tendring District Council,PETTY CASH
Tendring DC,http://statistics.data.gov.uk/id/local-authority-district/22UN,Community Services,6740 - Careline,5500 - Miscellaneous Expenses,03/01/2012,1047032-9,18.75,2106638 - Tendring District Council,PETTY CASH
Tendring DC,http://statistics.data.gov.uk/id/local-authority-district/22UN,Community Services,1580 - Head of Customer Service and Administration Service Unit,4822 - Staff Allowances - Conference,31/01/2012,2092626-1,225,2101471 - The Institute of Revenues Rating & Valuation,IRRV Bens Conference
Tendring DC,http://statistics.data.gov.uk/id/local-authority-district/22UN,Community Services,5360 - Sheltered Units,4000 - Furniture,17/01/2012,2092182-1,100.85,2101474 - Thompson Cooper Ltd,Cutlery for Mead House
Tendring DC,http://statistics.data.gov.uk/id/local-authority-district/22UN,Community Services,5360 - Sheltered Units,4000 - Furniture,31/01/2012,2092747-1,40.35,2101474 - Thompson Cooper Ltd,Repair Hoover @ Mead
Tendring DC,http://statistics.data.gov.uk/id/local-authority-district/22UN,Community Services,1580 - Head of Customer Service and Administration Service Unit,4880 - Subscriptions Paid,31/01/2012,2092856-1,2975,2111607 - Training Synergy Ltd,HB & CT Overview
Tendring DC,http://statistics.data.gov.uk/id/local-authority-district/22UN,Community Services,5360 - Sheltered Units,4040 - Equipment & Tools,24/01/2012,2092467-1,183.91,REDACTED PERSONAL DATA,REDACTED PERSONAL DATA
Tendring DC,http://statistics.data.gov.uk/id/local-authority-district/22UN,Community Services,6740 - Careline,4710 - Telephones - Charges,31/01/2012,2092744-1,377.63,2101522 - Vodafone Corporate,Vodafone Bill - Careline
Tendring DC,http://statistics.data.gov.uk/id/local-authority-district/22UN,Community Services,1580 - Head of Customer Service and Administration Service Unit,4716 - Mobile Telephone Costs,31/01/2012,2092867-1,174.93,2101522 - Vodafone Corporate,Mobiles Pier Ave Held
Tendring DC,http://statistics.data.gov.uk/id/local-authority-district/22UN,Community Services,7025 - CDRP Support,4900 - Grants,10/01/2012,2091950-1,299.52,REDACTED PERSONAL DATA,REDACTED PERSONAL DATA
Tendring DC,http://statistics.data.gov.uk/id/local-authority-district/22UN,Community Services,7200 - LSP/Community Strategy,4500 - Consultancy Fees,24/01/2012,2092607-1,119.9,2111961 - Webvision,LSP Web Vision
Tendring DC,http://statistics.data.gov.uk/id/local-authority-district/22UN,Community Services,5360 - Sheltered Units,4300 - Printing & Stationery,10/01/2012,1047077-1,41.12,2107546 - XMA Limited,INKS FOR BARNES HOUSE
Tendring DC,http://statistics.data.gov.uk/id/local-authority-district/22UN,Community Services,1565 - Careline / CCTV Service Unit,4300 - Printing & Stationery,10/01/2012,1047077-2,93.63,2107546 - XMA Limited,INKS FOR BARNES HOUSE
Tendring DC,http://statistics.data.gov.uk/id/local-authority-district/22UN,Community Services,1565 - Careline / CCTV Service Unit,4300 - Printing & Stationery,03/01/2012,2091598-1,235.26,2107546 - XMA Limited,
Tendring DC,http://statistics.data.gov.uk/id/local-authority-district/22UN,Community Services,1565 - Careline / CCTV Service Unit,4300 - Printing & Stationery,03/01/2012,2091599-1,14.15,2107546 - XMA Limited,Inks 1
Tendring DC,http://statistics.data.gov.uk/id/local-authority-district/22UN,Community Services,1580 - Head of Customer Service and Administration Service Unit,4300 - Printing & Stationery,24/01/2012,2092543-1,543.12,2107546 - XMA Limited,Laserjet Dual Pack
Tendring DC,http://statistics.data.gov.uk/id/local-authority-district/22UN,Corporate Performance,1580 - Head of Customer Service and Administration Service Unit,4718 - Fixed Communication Lines,10/01/2012,1047074-1,15.25,2106860 - Avanquest UK Ltd,TEXTING
Tendring DC,http://statistics.data.gov.uk/id/local-authority-district/22UN,Corporate Performance,1580 - Head of Customer Service and Administration Service Unit,4718 - Fixed Communication Lines,17/01/2012,2092173-1,9.02,2106860 - Avanquest UK Ltd,Texting
Tendring DC,http://statistics.data.gov.uk/id/local-authority-district/22UN,Corporate Performance,1210 - Facilities Management Service Unit,4300 - Printing & Stationery,24/01/2012,2092428-1,46.69,2100111 - Banner Business Supplies Ltd,Banner
Tendring DC,http://statistics.data.gov.uk/id/local-authority-district/22UN,Corporate Performance,1580 - Head of Customer Service and Administration Service Unit,4753 - Computer - Application Software,17/01/2012,2092172-1,500,2100116 - Bottomline Technologies Europe Ltd,Paybase Upgrade
Tendring DC,http://statistics.data.gov.uk/id/local-authority-district/22UN,Corporate Performance,1200 - Exchequer Service Unit,4753 - Computer - Application Software,17/01/2012,2092172-2,500,2100116 - Bottomline Technologies Europe Ltd,Paybase Upgrade
Tendring DC,http://statistics.data.gov.uk/id/local-authority-district/22UN,Corporate Performance,1760 - IT Direct Service Costs,4715 - Data Communication Charge,10/01/2012,2091779-1,54.03,2100168 - British Telecommunications plc,
Tendring DC,http://statistics.data.gov.uk/id/local-authority-district/22UN,Corporate Performance,1760 - IT Direct Service Costs,4715 - Data Communication Charge,10/01/2012,2091780-1,49.33,2100168 - British Telecommunications plc,3377 0166 Qtr
Tendring DC,http://statistics.data.gov.uk/id/local-authority-district/22UN,Corporate Performance,1760 - IT Direct Service Costs,4715 - Data Communication Charge,10/01/2012,2091781-1,49.33,2100168 - British Telecommunications plc,35258827 Qtr 3
Tendring DC,http://statistics.data.gov.uk/id/local-authority-district/22UN,Corporate Performance,1760 - IT Direct Service Costs,4715 - Data Communication Charge,10/01/2012,2091782-1,49.36,2100168 - British Telecommunications plc,3526 7071 Qtr 3
Tendring DC,http://statistics.data.gov.uk/id/local-authority-district/22UN,Corporate Performance,1760 - IT Direct Service Costs,4715 - Data Communication Charge,10/01/2012,2091783-1,49.36,2100168 - British Telecommunications plc,35267075 Qtr 3
Tendring DC,http://statistics.data.gov.uk/id/local-authority-district/22UN,Corporate Performance,1760 - IT Direct Service Costs,4715 - Data Communication Charge,10/01/2012,2091784-1,49.33,2100168 - British Telecommunications plc,3698 8418 Qtr 3
Tendring DC,http://statistics.data.gov.uk/id/local-authority-district/22UN,Corporate Performance,1760 - IT Direct Service Costs,4715 - Data Communication Charge,10/01/2012,2091785-1,59.28,2100168 - British Telecommunications plc,4015 2531 Qtr 3
Tendring DC,http://statistics.data.gov.uk/id/local-authority-district/22UN,Corporate Performance,1760 - IT Direct Service Costs,4715 - Data Communication Charge,10/01/2012,2091786-1,210,2100168 - British Telecommunications plc,3625 9059 Qtr 4
Tendring DC,http://statistics.data.gov.uk/id/local-authority-district/22UN,Corporate Performance,1760 - IT Direct Service Costs,4715 - Data Communication Charge,17/01/2012,2092175-1,72,2100168 - British Telecommunications plc,3892 3144 Qtr 3
Tendring DC,http://statistics.data.gov.uk/id/local-authority-district/22UN,Corporate Performance,1760 - IT Direct Service Costs,4715 - Data Communication Charge,17/01/2012,2092082-1,15.46,2100304 - CO-OP Bank,Talk Talk
Tendring DC,http://statistics.data.gov.uk/id/local-authority-district/22UN,Corporate Performance,1760 - IT Direct Service Costs,4715 - Data Communication Charge,17/01/2012,2092082-2,24.99,2100304 - CO-OP Bank,Talk Talk
Tendring DC,http://statistics.data.gov.uk/id/local-authority-district/22UN,Corporate Performance,8520 - Frinton & Walton Swimming Pool,4880 - Subscriptions Paid,17/01/2012,2092082-3,82.5,2100304 - CO-OP Bank,Talk Talk
Tendring DC,http://statistics.data.gov.uk/id/local-authority-district/22UN,Corporate Performance,8510 - Dovercourt Swimming Pool & All Weather Facilities,4880 - Subscriptions Paid,17/01/2012,2092082-4,82.5,2100304 - CO-OP Bank,Talk Talk
Tendring DC,http://statistics.data.gov.uk/id/local-authority-district/22UN,Corporate Performance,6620 - Corporate Management - General,5190 - Bank Commission Charges,17/01/2012,2092082-5,2,2100304 - CO-OP Bank,Talk Talk
Tendring DC,http://statistics.data.gov.uk/id/local-authority-district/22UN,Corporate Performance,1760 - IT Direct Service Costs,4715 - Data Communication Charge,24/01/2012,2092402-1,4836,REDACTED PERSONAL DATA,REDACTED PERSONAL DATA
Tendring DC,http://statistics.data.gov.uk/id/local-authority-district/22UN,Corporate Performance,1760 - IT Direct Service Costs,4715 - Data Communication Charge,24/01/2012,2092402-2,987,REDACTED PERSONAL DATA,REDACTED PERSONAL DATA
Tendring DC,http://statistics.data.gov.uk/id/local-authority-district/22UN,Corporate Performance,1760 - IT Direct Service Costs,4751 - Hardware & Service Maintenance,31/01/2012,1047227-1,906.98,2100902 - Dormir (UK) Ltd,DRIVES & K'BRD MOUSE
Tendring DC,http://statistics.data.gov.uk/id/local-authority-district/22UN,Corporate Performance,1760 - IT Direct Service Costs,4751 - Hardware & Service Maintenance,10/01/2012,2091777-1,36.48,2100902 - Dormir (UK) Ltd,K'Brd & Mouse
Tendring DC,http://statistics.data.gov.uk/id/local-authority-district/22UN,Corporate Performance,1520 - Planning Management & Administration Service Unit,4400 - Maintenance Under Service Agreements,10/01/2012,2091775-1,21036.31,2100458 - ESRI (UK) Ltd,ESRI Maint
Tendring DC,http://statistics.data.gov.uk/id/local-authority-district/22UN,Corporate Performance,C350 - Hardware rolling replacement programme,C275 - Hardware,10/01/2012,1047075-1,560.98,2100782 - Insight Direct (uk) Limited,LAPTOP
Tendring DC,http://statistics.data.gov.uk/id/local-authority-district/22UN,Corporate Performance,1760 - IT Direct Service Costs,4751 - Hardware & Service Maintenance,24/01/2012,1047142-1,51.55,2100782 - Insight Direct (uk) Limited,BLACKBERRY CHARGERS
Tendring DC,http://statistics.data.gov.uk/id/local-authority-district/22UN,Corporate Performance,1760 - IT Direct Service Costs,4751 - Hardware & Service Maintenance,24/01/2012,1047143-1,383.05,2100782 - Insight Direct (uk) Limited,USB MEMORY
Tendring DC,http://statistics.data.gov.uk/id/local-authority-district/22UN,Corporate Performance,1100 - Executive Corporate Support Manager Service Unit,4300 - Printing & Stationery,03/01/2012,2091662-1,28.59,2100782 - Insight Direct (uk) Limited,Headphones
Tendring DC,http://statistics.data.gov.uk/id/local-authority-district/22UN,Corporate Performance,1760 - IT Direct Service Costs,4751 - Hardware & Service Maintenance,24/01/2012,2092401-1,43.23,REDACTED PERSONAL DATA,REDACTED PERSONAL DATA
Tendring DC,http://statistics.data.gov.uk/id/local-authority-district/22UN,Corporate Performance,1807 - Recruitment & Relocation,1500 - Advertising - Recruitment,17/01/2012,2092366-1,1615.68,2100894 - Liberata UK Ltd,E-learn & Rm Hire
Tendring DC,http://statistics.data.gov.uk/id/local-authority-district/22UN,Corporate Performance,1432 - TDC Website,4500 - Consultancy Fees,17/01/2012,2092366-2,120,2100894 - Liberata UK Ltd,E-learn & Rm Hire
Tendring DC,http://statistics.data.gov.uk/id/local-authority-district/22UN,Corporate Performance,1760 - IT Direct Service Costs,6320 - IT Services Agreements Payment,17/01/2012,2092367-1,49222.13,2100894 - Liberata UK Ltd,ICT Contract - Jan 12
Tendring DC,http://statistics.data.gov.uk/id/local-authority-district/22UN,Corporate Performance,1100 - Executive Corporate Support Manager Service Unit,4300 - Printing & Stationery,10/01/2012,2091970-1,18.13,2110099 - Lyreco UK Ltd,Lyreco
Tendring DC,http://statistics.data.gov.uk/id/local-authority-district/22UN,Corporate Performance,1210 - Facilities Management Service Unit,4300 - Printing & Stationery,24/01/2012,2092529-1,43.06,REDACTED PERSONAL DATA,REDACTED PERSONAL DATA
Tendring DC,http://statistics.data.gov.uk/id/local-authority-district/22UN,Corporate Performance,1210 - Facilities Management Service Unit,4300 - Printing & Stationery,24/01/2012,2092530-1,23.05,REDACTED PERSONAL DATA,REDACTED PERSONAL DATA
Tendring DC,http://statistics.data.gov.uk/id/local-authority-district/22UN,Corporate Performance,1100 - Executive Corporate Support Manager Service Unit,4300 - Printing & Stationery,24/01/2012,2092530-2,33.2,REDACTED PERSONAL DATA,REDACTED PERSONAL DATA
Tendring DC,http://statistics.data.gov.uk/id/local-authority-district/22UN,Corporate Performance,1180 - Benefit Fraud Investigation Service Unit,4300 - Printing & Stationery,24/01/2012,2092530-3,16.19,REDACTED PERSONAL DATA,REDACTED PERSONAL DATA
Tendring DC,http://statistics.data.gov.uk/id/local-authority-district/22UN,Corporate Performance,1220 - Finance and Procurement Manager Service Unit,4300 - Printing & Stationery,31/01/2012,2092880-1,62.63,2110099 - Lyreco UK Ltd,
Tendring DC,http://statistics.data.gov.uk/id/local-authority-district/22UN,Corporate Performance,1760 - IT Direct Service Costs,4715 - Data Communication Charge,10/01/2012,2091776-1,3672,2100922 - Micrologic UK Limited,Back Up Internet @ Weeley
Tendring DC,http://statistics.data.gov.uk/id/local-authority-district/22UN,Corporate Performance,C387 - Server Upgrade and Maintenance,C275 - Hardware,31/01/2012,1047225-1,9990,2110623 - Midland Computer Services Ltd,DELL ISCSI ARRAY
Tendring DC,http://statistics.data.gov.uk/id/local-authority-district/22UN,Corporate Performance,C350 - Hardware rolling replacement programme,C275 - Hardware,17/01/2012,2092171-1,3948,2110623 - Midland Computer Services Ltd,Server
Tendring DC,http://statistics.data.gov.uk/id/local-authority-district/22UN,Corporate Performance,5880 - Management Of Sport & Leisure Facilities,2100 - Building Repairs,24/01/2012,1047140-1,35.99,2101818 - Misco,WEBCAM
Tendring DC,http://statistics.data.gov.uk/id/local-authority-district/22UN,Corporate Performance,5880 - Management Of Sport & Leisure Facilities,2100 - Building Repairs,24/01/2012,1047141-1,39.98,2101818 - Misco,WEBCAM
Tendring DC,http://statistics.data.gov.uk/id/local-authority-district/22UN,Corporate Performance,1930 - Asset Management,4460 - Legal & Professional Expenses,24/01/2012,2092566-1,3777.75,2111951 - NPS Property Consultants Ltd,NPS Group
Tendring DC,http://statistics.data.gov.uk/id/local-authority-district/22UN,Corporate Performance,1930 - Asset Management,4460 - Legal & Professional Expenses,10/01/2012,2091975-1,2410,2104823 - NPS South East,NPS
Tendring DC,http://statistics.data.gov.uk/id/local-authority-district/22UN,Corporate Performance,1760 - IT Direct Service Costs,4880 - Subscriptions Paid,31/01/2012,1047224-1,637.5,2109369 - PDP Training,PRIVACY & DATA PROT
Tendring DC,http://statistics.data.gov.uk/id/local-authority-district/22UN,Corporate Performance,1760 - IT Direct Service Costs,4753 - Computer - Application Software,31/01/2012,1047230-1,2223,2107305 - Planet IT Ltd,KASPERSKY
Tendring DC,http://statistics.data.gov.uk/id/local-authority-district/22UN,Corporate Performance,1150 - Head of Resources Management & Central Admin Service Unit,5500 - Miscellaneous Expenses,10/01/2012,2091969-1,100.1,2101148 - Rochford District Council,Rochford District Council
Tendring DC,http://statistics.data.gov.uk/id/local-authority-district/22UN,Corporate Performance,1760 - IT Direct Service Costs,6325 - Additional ICT Services,31/01/2012,1047228-1,8790.88,2103677 - SecureData Europe Ltd,JUNIPER
Tendring DC,http://statistics.data.gov.uk/id/local-authority-district/22UN,Corporate Performance,1760 - IT Direct Service Costs,4753 - Computer - Application Software,31/01/2012,1047229-1,3067.36,REDACTED COMMERCIAL CONFIDENTIALITY,REDACTED COMMERCIAL CONFIDENTIALITY
Tendring DC,http://statistics.data.gov.uk/id/local-authority-district/22UN,Corporate Performance,1180 - Benefit Fraud Investigation Service Unit,4300 - Printing & Stationery,03/01/2012,2091663-1,27.89,2101284 - Shaw & Sons Ltd,Shaw & Sons
Tendring DC,http://statistics.data.gov.uk/id/local-authority-district/22UN,Corporate Performance,1432 - TDC Website,4753 - Computer - Application Software,17/01/2012,2092188-1,4000,2101296 - SOCITM Limited,Drupal
Tendring DC,http://statistics.data.gov.uk/id/local-authority-district/22UN,Corporate Performance,1432 - TDC Website,4753 - Computer - Application Software,17/01/2012,2092188-2,2000,2101296 - SOCITM Limited,Drupal
Tendring DC,http://statistics.data.gov.uk/id/local-authority-district/22UN,Corporate Performance,1300 - Legal Services Service Unit,1700 - Training - Courses,17/01/2012,2092187-1,50,2111037 - Thurrock Council,Thurrock Council
Tendring DC,http://statistics.data.gov.uk/id/local-authority-district/22UN,Corporate Performance,1760 - IT Direct Service Costs,4751 - Hardware & Service Maintenance,31/01/2012,1047226-1,27.45,2101521 - Videk Limited,USB A TO MINI B
Tendring DC,http://statistics.data.gov.uk/id/local-authority-district/22UN,Corporate Performance,1760 - IT Direct Service Costs,4751 - Hardware & Service Maintenance,17/01/2012,2092170-1,43.9,2101521 - Videk Limited,SCSI Cable
Tendring DC,http://statistics.data.gov.uk/id/local-authority-district/22UN,Corporate Performance,1760 - IT Direct Service Costs,4715 - Data Communication Charge,10/01/2012,2091778-1,13.75,2101532 - Vodafone Ltd,Mob ICT
Tendring DC,http://statistics.data.gov.uk/id/local-authority-district/22UN,Corporate Performance,1760 - IT Direct Service Costs,4715 - Data Communication Charge,10/01/2012,2091778-2,52.36,2101532 - Vodafone Ltd,Mob ICT
Tendring DC,http://statistics.data.gov.uk/id/local-authority-district/22UN,Corporate Performance,1100 - Executive Corporate Support Manager Service Unit,4300 - Printing & Stationery,24/01/2012,2092544-1,8.03,2107546 - XMA Limited,XMA
Tendring DC,http://statistics.data.gov.uk/id/local-authority-district/22UN,Corporate Performance,1100 - Executive Corporate Support Manager Service Unit,4300 - Printing & Stationery,24/01/2012,2092545-1,59.21,2107546 - XMA Limited,XMA
Tendring DC,http://statistics.data.gov.uk/id/local-authority-district/22UN,Environmental Services,4820 - Public Conveniences,2100 - Building Repairs,03/01/2012,2091743-1,430.36,2100051 - A L Wicken Carpenter & Building Contractor,Week D
Tendring DC,http://statistics.data.gov.uk/id/local-authority-district/22UN,Environmental Services,4820 - Public Conveniences,2100 - Building Repairs,03/01/2012,2091743-2,718.06,2100051 - A L Wicken Carpenter & Building Contractor,Week D
Tendring DC,http://statistics.data.gov.uk/id/local-authority-district/22UN,Environmental Services,4820 - Public Conveniences,2100 - Building Repairs,10/01/2012,2091980-1,155.37,2100051 - A L Wicken Carpenter & Building Contractor,Week A
Tendring DC,http://statistics.data.gov.uk/id/local-authority-district/22UN,Environmental Services,4820 - Public Conveniences,2100 - Building Repairs,10/01/2012,2091980-2,852.41,2100051 - A L Wicken Carpenter & Building Contractor,Week A
Tendring DC,http://statistics.data.gov.uk/id/local-authority-district/22UN,Environmental Services,4820 - Public Conveniences,2100 - Building Repairs,17/01/2012,2092370-1,209.72,2100051 - A L Wicken Carpenter & Building Contractor,Week B
Tendring DC,http://statistics.data.gov.uk/id/local-authority-district/22UN,Environmental Services,4820 - Public Conveniences,2100 - Building Repairs,17/01/2012,2092370-2,446.82,2100051 - A L Wicken Carpenter & Building Contractor,Week B
Tendring DC,http://statistics.data.gov.uk/id/local-authority-district/22UN,Environmental Services,4820 - Public Conveniences,2100 - Building Repairs,17/01/2012,2092371-1,331.76,2100051 - A L Wicken Carpenter & Building Contractor,Week C
Tendring DC,http://statistics.data.gov.uk/id/local-authority-district/22UN,Environmental Services,4820 - Public Conveniences,2100 - Building Repairs,17/01/2012,2092371-2,545.34,2100051 - A L Wicken Carpenter & Building Contractor,Week C
Tendring DC,http://statistics.data.gov.uk/id/local-authority-district/22UN,Environmental Services,4820 - Public Conveniences,2100 - Building Repairs,24/01/2012,2092612-1,65.56,2100051 - A L Wicken Carpenter & Building Contractor,Week D
Tendring DC,http://statistics.data.gov.uk/id/local-authority-district/22UN,Environmental Services,4820 - Public Conveniences,2100 - Building Repairs,24/01/2012,2092612-2,280.04,2100051 - A L Wicken Carpenter & Building Contractor,Week D
Tendring DC,http://statistics.data.gov.uk/id/local-authority-district/22UN,Environmental Services,H920 - DFGs,C400 - Grant payments,31/01/2012,2092846-1,1500,REDACTED PERSONAL DATA,REDACTED PERSONAL DATA
Tendring DC,http://statistics.data.gov.uk/id/local-authority-district/22UN,Environmental Services,4820 - Public Conveniences,4080 - Materials & Consumables,24/01/2012,2092538-1,28.91,2102663 - Argos Business Solutions Ltd,Kettle
Tendring DC,http://statistics.data.gov.uk/id/local-authority-district/22UN,Environmental Services,4640 - Port Health,4880 - Subscriptions Paid,31/01/2012,2092654-1,895,2101969 - Association of Port Health Authorities,AG Memb 2012 APHA
Tendring DC,http://statistics.data.gov.uk/id/local-authority-district/22UN,Environmental Services,H920 - DFGs,C400 - Grant payments,10/01/2012,2091845-1,50,REDACTED PERSONAL DATA,REDACTED PERSONAL DATA
Tendring DC,http://statistics.data.gov.uk/id/local-authority-district/22UN,Environmental Services,H920 - DFGs,C400 - Grant payments,24/01/2012,2092445-1,50,REDACTED PERSONAL DATA,REDACTED PERSONAL DATA
Tendring DC,http://statistics.data.gov.uk/id/local-authority-district/22UN,Environmental Services,H920 - DFGs,C400 - Grant payments,24/01/2012,2092446-1,50,REDACTED PERSONAL DATA,REDACTED PERSONAL DATA
Tendring DC,http://statistics.data.gov.uk/id/local-authority-district/22UN,Environmental Services,H920 - DFGs,C400 - Grant payments,24/01/2012,2092449-1,50,REDACTED PERSONAL DATA,REDACTED PERSONAL DATA
Tendring DC,http://statistics.data.gov.uk/id/local-authority-district/22UN,Environmental Services,H920 - DFGs,C400 - Grant payments,31/01/2012,2092795-1,50,REDACTED PERSONAL DATA,REDACTED PERSONAL DATA
Tendring DC,http://statistics.data.gov.uk/id/local-authority-district/22UN,Environmental Services,H920 - DFGs,C400 - Grant payments,31/01/2012,2092850-1,50,REDACTED PERSONAL DATA,REDACTED PERSONAL DATA
Tendring DC,http://statistics.data.gov.uk/id/local-authority-district/22UN,Environmental Services,8025 - Car Parks - Off St,2304 - Energy Costs - Electricity,31/01/2012,1047249-1,252.15,2100197 - British Gas Trading Ltd,MULTI INVOICE DEC11
Tendring DC,http://statistics.data.gov.uk/id/local-authority-district/22UN,Environmental Services,5960 - Recreation Grounds,2304 - Energy Costs - Electricity,31/01/2012,1047249-2,33.65,2100197 - British Gas Trading Ltd,MULTI INVOICE DEC11
Tendring DC,http://statistics.data.gov.uk/id/local-authority-district/22UN,Environmental Services,4820 - Public Conveniences,2304 - Energy Costs - Electricity,31/01/2012,1047249-3,2038.3,2100197 - British Gas Trading Ltd,MULTI INVOICE DEC11
Tendring DC,http://statistics.data.gov.uk/id/local-authority-district/22UN,Environmental Services,4820 - Public Conveniences,2304 - Energy Costs - Electricity,31/01/2012,1047249-4,1209.93,2100197 - British Gas Trading Ltd,MULTI INVOICE DEC11
Tendring DC,http://statistics.data.gov.uk/id/local-authority-district/22UN,Environmental Services,4820 - Public Conveniences,2304 - Energy Costs - Electricity,31/01/2012,1047249-5,-43.54,2100197 - British Gas Trading Ltd,MULTI INVOICE DEC11
Tendring DC,http://statistics.data.gov.uk/id/local-authority-district/22UN,Environmental Services,4820 - Public Conveniences,2304 - Energy Costs - Electricity,03/01/2012,2091721-1,4572.32,2100197 - British Gas Trading Ltd,Multi Invoice Nov 11
Tendring DC,http://statistics.data.gov.uk/id/local-authority-district/22UN,Environmental Services,8025 - Car Parks - Off St,2304 - Energy Costs - Electricity,03/01/2012,2091721-2,236.41,2100197 - British Gas Trading Ltd,Multi Invoice Nov 11
Tendring DC,http://statistics.data.gov.uk/id/local-authority-district/22UN,Environmental Services,5960 - Recreation Grounds,2304 - Energy Costs - Electricity,03/01/2012,2091721-3,62.66,2100197 - British Gas Trading Ltd,Multi Invoice Nov 11
Tendring DC,http://statistics.data.gov.uk/id/local-authority-district/22UN,Environmental Services,4820 - Public Conveniences,2304 - Energy Costs - Electricity,03/01/2012,2091721-4,2136.85,2100197 - British Gas Trading Ltd,Multi Invoice Nov 11
Tendring DC,http://statistics.data.gov.uk/id/local-authority-district/22UN,Environmental Services,4820 - Public Conveniences,2304 - Energy Costs - Electricity,03/01/2012,2091735-1,1703.74,2104953 - British Gas Trading Ltd,Pier Walton
Tendring DC,http://statistics.data.gov.uk/id/local-authority-district/22UN,Environmental Services,4820 - Public Conveniences,2304 - Energy Costs - Electricity,03/01/2012,2091735-2,102.17,2104953 - British Gas Trading Ltd,Pier Walton
Tendring DC,http://statistics.data.gov.uk/id/local-authority-district/22UN,Environmental Services,4820 - Public Conveniences,2304 - Energy Costs - Electricity,03/01/2012,2091735-3,50,2104953 - British Gas Trading Ltd,Pier Walton
Tendring DC,http://statistics.data.gov.uk/id/local-authority-district/22UN,Environmental Services,4820 - Public Conveniences,4080 - Materials & Consumables,10/01/2012,2091957-1,81.9,REDACTED PERSONAL DATA,REDACTED PERSONAL DATA
Tendring DC,http://statistics.data.gov.uk/id/local-authority-district/22UN,Environmental Services,4820 - Public Conveniences,4080 - Materials & Consumables,10/01/2012,2091958-1,245.7,REDACTED PERSONAL DATA,REDACTED PERSONAL DATA
Tendring DC,http://statistics.data.gov.uk/id/local-authority-district/22UN,Environmental Services,4820 - Public Conveniences,4080 - Materials & Consumables,31/01/2012,2092861-1,450.94,2101624 - Bunzl,Bunzl - Cleaning Sup
Tendring DC,http://statistics.data.gov.uk/id/local-authority-district/22UN,Environmental Services,4820 - Public Conveniences,4080 - Materials & Consumables,31/01/2012,2092879-1,393.9,2101624 - Bunzl,Soap Dispensers
Tendring DC,http://statistics.data.gov.uk/id/local-authority-district/22UN,Environmental Services,4740 - Environmental Protection,4040 - Equipment & Tools,31/01/2012,2092635-1,71.25,2107321 - Campbell Associates,Campbells Calibration
Tendring DC,http://statistics.data.gov.uk/id/local-authority-district/22UN,Environmental Services,4660 - Public Health,4080 - Materials & Consumables,17/01/2012,2092065-1,168.99,2110374 - Catley Cross Veterinary Clinic,AG Vet Insp Breeding
Tendring DC,http://statistics.data.gov.uk/id/local-authority-district/22UN,Environmental Services,1780 - Health & Safety,4210 - Protective Clothing,31/01/2012,2092864-1,156,2100205 - Chelmsford Safety Supplies,CI/SR Safety Shoes
Tendring DC,http://statistics.data.gov.uk/id/local-authority-district/22UN,Environmental Services,1780 - Health & Safety,4210 - Protective Clothing,31/01/2012,2092865-1,655.5,2100205 - Chelmsford Safety Supplies,CI/SR Safety Clothing
Tendring DC,http://statistics.data.gov.uk/id/local-authority-district/22UN,Environmental Services,9900 - General Fund Balance Sheet,B382 - Rechargeable Works - Other,31/01/2012,2092858-1,68,2103418 - Command Pest Control Limited T/A Pestclear,PC Agincourt Road COS
Tendring DC,http://statistics.data.gov.uk/id/local-authority-district/22UN,Environmental Services,4820 - Public Conveniences,6300 - Contract Payment,17/01/2012,2092376-1,13650.68,2110565 - Connaught Fire Services Ltd,Confee Fountains Dec
Tendring DC,http://statistics.data.gov.uk/id/local-authority-district/22UN,Environmental Services,H920 - DFGs,C400 - Grant payments,24/01/2012,2092451-1,5079.82,REDACTED PERSONAL DATA,REDACTED PERSONAL DATA
Tendring DC,http://statistics.data.gov.uk/id/local-authority-district/22UN,Environmental Services,4660 - Public Health,5500 - Miscellaneous Expenses,17/01/2012,2092064-1,35.8,2100397 - Danes of Colchester Ltd,AG Laundry
Tendring DC,http://statistics.data.gov.uk/id/local-authority-district/22UN,Environmental Services,4900 - Street Sweeping,4618 - Hired Services - Environmental Clean ups,31/01/2012,2092646-1,97.5,2108384 - DC Drains & Plumbing Services,"D C Drain - Blood, Carnarvon"
Tendring DC,http://statistics.data.gov.uk/id/local-authority-district/22UN,Environmental Services,4700 - Defective Drains,2102 - Investigation Costs,31/01/2012,2092647-1,39,REDACTED PERSONAL DATA,REDACTED PERSONAL DATA
Tendring DC,http://statistics.data.gov.uk/id/local-authority-district/22UN,Environmental Services,9900 - General Fund Balance Sheet,B382 - Rechargeable Works - Other,31/01/2012,2092648-1,39,2108384 - DC Drains & Plumbing Services,D C Drain - Agincourt Rd
Tendring DC,http://statistics.data.gov.uk/id/local-authority-district/22UN,Environmental Services,4840 - Recycling & Waste Contract,5500 - Miscellaneous Expenses,24/01/2012,2092622-1,80,2102946 - Dream 100.2fm,Dream 100 - Licence
Tendring DC,http://statistics.data.gov.uk/id/local-authority-district/22UN,Environmental Services,4820 - Public Conveniences,2304 - Energy Costs - Electricity,31/01/2012,2092877-1,50.47,2107521 - E.On,E-on 2 Compressors
Tendring DC,http://statistics.data.gov.uk/id/local-authority-district/22UN,Environmental Services,4820 - Public Conveniences,2304 - Energy Costs - Electricity,31/01/2012,2092878-1,70.01,2107521 - E.On,E-on The Leas
Tendring DC,http://statistics.data.gov.uk/id/local-authority-district/22UN,Environmental Services,4820 - Public Conveniences,2304 - Energy Costs - Electricity,31/01/2012,2092878-2,0.32,2107521 - E.On,E-on The Leas
Tendring DC,http://statistics.data.gov.uk/id/local-authority-district/22UN,Environmental Services,4660 - Public Health,4040 - Equipment & Tools,03/01/2012,2091720-1,22.75,2100485 - Electronic Temperature Instruments Ltd,ETI Probe Wipes
Tendring DC,http://statistics.data.gov.uk/id/local-authority-district/22UN,Environmental Services,4820 - Public Conveniences,2304 - Energy Costs - Electricity,03/01/2012,2091736-1,46.28,2107644 - Eon,2 Compressors
Tendring DC,http://statistics.data.gov.uk/id/local-authority-district/22UN,Environmental Services,4820 - Public Conveniences,2304 - Energy Costs - Electricity,24/01/2012,2092599-1,54.64,2107644 - Eon,Queensway Eon
Tendring DC,http://statistics.data.gov.uk/id/local-authority-district/22UN,Environmental Services,4820 - Public Conveniences,6300 - Contract Payment,03/01/2012,2091746-1,13866.74,REDACTED PERSONAL DATA,REDACTED PERSONAL DATA
Tendring DC,http://statistics.data.gov.uk/id/local-authority-district/22UN,Environmental Services,4900 - Street Sweeping,4642 - Provision of Litter Bins,10/01/2012,2091965-1,4579.35,2100567 - Glasdon UK Ltd,Litter Bins
Tendring DC,http://statistics.data.gov.uk/id/local-authority-district/22UN,Environmental Services,4740 - Environmental Protection,4614 - Hired Services - Emission Control,24/01/2012,2092595-1,40.2,2100518 - Gradko International Ltd,Gradko - Diff tube 1
Tendring DC,http://statistics.data.gov.uk/id/local-authority-district/22UN,Environmental Services,4740 - Environmental Protection,4614 - Hired Services - Emission Control,24/01/2012,2092596-1,117.35,2100518 - Gradko International Ltd,Gradko - Diff tubes 2
Tendring DC,http://statistics.data.gov.uk/id/local-authority-district/22UN,Environmental Services,4660 - Public Health,4355 - Books & Periodicals,31/01/2012,2092831-1,34,2100610 - Green Futures,AH Magazine Subs
Tendring DC,http://statistics.data.gov.uk/id/local-authority-district/22UN,Environmental Services,H920 - DFGs,C400 - Grant payments,24/01/2012,2092448-1,3851,REDACTED PERSONAL DATA,REDACTED PERSONAL DATA
Tendring DC,http://statistics.data.gov.uk/id/local-authority-district/22UN,Environmental Services,H920 - DFGs,C400 - Grant payments,31/01/2012,2092849-1,2304.65,REDACTED PERSONAL DATA,REDACTED PERSONAL DATA
Tendring DC,http://statistics.data.gov.uk/id/local-authority-district/22UN,Environmental Services,4840 - Recycling & Waste Contract,5467 - Material Collection Payments,24/01/2012,2092593-1,878.75,2101959 - Harwich Reclaim,Dec-11
Tendring DC,http://statistics.data.gov.uk/id/local-authority-district/22UN,Environmental Services,4660 - Public Health,4080 - Materials & Consumables,31/01/2012,2092796-1,25,REDACTED PERSONAL DATA,REDACTED PERSONAL DATA
Tendring DC,http://statistics.data.gov.uk/id/local-authority-district/22UN,Environmental Services,4660 - Public Health,4040 - Equipment & Tools,31/01/2012,2092829-1,408,2103448 - Health Protection Agency,AG Shellfish
Tendring DC,http://statistics.data.gov.uk/id/local-authority-district/22UN,Environmental Services,4720 - Dog Warden,4580 - Vet Fees for animal establishments,03/01/2012,2091732-1,352.5,2100606 - Highcliff Veterinary Practice,Stray Dogs
Tendring DC,http://statistics.data.gov.uk/id/local-authority-district/22UN,Environmental Services,4720 - Dog Warden,4580 - Vet Fees for animal establishments,03/01/2012,2091733-1,83.74,2100606 - Highcliff Veterinary Practice,Highcliff Vets
Tendring DC,http://statistics.data.gov.uk/id/local-authority-district/22UN,Environmental Services,4720 - Dog Warden,4580 - Vet Fees for animal establishments,24/01/2012,2092510-1,64.75,2100606 - Highcliff Veterinary Practice,Dog Wardens ST 110
Tendring DC,http://statistics.data.gov.uk/id/local-authority-district/22UN,Environmental Services,4720 - Dog Warden,4580 - Vet Fees for animal establishments,24/01/2012,2092512-1,64.75,2100606 - Highcliff Veterinary Practice,Dog Wardens ST113
Tendring DC,http://statistics.data.gov.uk/id/local-authority-district/22UN,Environmental Services,4720 - Dog Warden,4580 - Vet Fees for animal establishments,24/01/2012,2092606-1,64.75,2100606 - Highcliff Veterinary Practice,Dog Wardens ST117
Tendring DC,http://statistics.data.gov.uk/id/local-authority-district/22UN,Environmental Services,H910 - Renovation Grants,C401 - Loan,31/01/2012,2092843-1,50,REDACTED PERSONAL DATA,REDACTED PERSONAL DATA
Tendring DC,http://statistics.data.gov.uk/id/local-authority-district/22UN,Environmental Services,H920 - DFGs,C400 - Grant payments,31/01/2012,2092839-1,4056.88,REDACTED PERSONAL DATA,REDACTED PERSONAL DATA
Tendring DC,http://statistics.data.gov.uk/id/local-authority-district/22UN,Environmental Services,4660 - Public Health,5500 - Miscellaneous Expenses,10/01/2012,2091971-1,625,2106643 - Idox Software Ltd,Idox 50%Training
Tendring DC,http://statistics.data.gov.uk/id/local-authority-district/22UN,Environmental Services,1070 - Head of Public Experience and Administration Service Unit,4300 - Printing & Stationery,03/01/2012,2091737-1,41.51,2110099 - Lyreco UK Ltd,Lyreco Stationery
Tendring DC,http://statistics.data.gov.uk/id/local-authority-district/22UN,Environmental Services,1070 - Head of Public Experience and Administration Service Unit,4300 - Printing & Stationery,24/01/2012,2092407-1,-19.79,2110099 - Lyreco UK Ltd,Staples
Tendring DC,http://statistics.data.gov.uk/id/local-authority-district/22UN,Environmental Services,1070 - Head of Public Experience and Administration Service Unit,4300 - Printing & Stationery,24/01/2012,2092531-1,19.79,REDACTED PERSONAL DATA,REDACTED PERSONAL DATA
Tendring DC,http://statistics.data.gov.uk/id/local-authority-district/22UN,Environmental Services,1070 - Head of Public Experience and Administration Service Unit,4300 - Printing & Stationery,24/01/2012,2092532-1,28.7,2110099 - Lyreco UK Ltd,Stapler
Tendring DC,http://statistics.data.gov.uk/id/local-authority-district/22UN,Environmental Services,1070 - Head of Public Experience and Administration Service Unit,4300 - Printing & Stationery,31/01/2012,2092650-1,15.84,2110099 - Lyreco UK Ltd,Lyreco Stationery
Tendring DC,http://statistics.data.gov.uk/id/local-authority-district/22UN,Environmental Services,1070 - Head of Public Experience and Administration Service Unit,4300 - Printing & Stationery,31/01/2012,2092651-1,13.46,2110099 - Lyreco UK Ltd,Pink DFG Files
Tendring DC,http://statistics.data.gov.uk/id/local-authority-district/22UN,Environmental Services,4900 - Street Sweeping,4618 - Hired Services - Environmental Clean ups,17/01/2012,2092019-1,1643.44,REDACTED PERSONAL DATA,REDACTED PERSONAL DATA
Tendring DC,http://statistics.data.gov.uk/id/local-authority-district/22UN,Environmental Services,H920 - DFGs,C400 - Grant payments,31/01/2012,2092793-1,4974.01,REDACTED PERSONAL DATA,REDACTED PERSONAL DATA
Tendring DC,http://statistics.data.gov.uk/id/local-authority-district/22UN,Environmental Services,9900 - General Fund Balance Sheet,B382 - Rechargeable Works - Other,24/01/2012,2092490-1,14520,REDACTED PERSONAL DATA,REDACTED PERSONAL DATA
Tendring DC,http://statistics.data.gov.uk/id/local-authority-district/22UN,Environmental Services,9900 - General Fund Balance Sheet,B350 - Welfare Burials Holding Account,10/01/2012,2091992-1,7.26,REDACTED PERSONAL DATA,REDACTED PERSONAL DATA
Tendring DC,http://statistics.data.gov.uk/id/local-authority-district/22UN,Environmental Services,4820 - Public Conveniences,2100 - Building Repairs,31/01/2012,2092876-1,2658,2100967 - N Rudelhoff,Electrical Testing
Tendring DC,http://statistics.data.gov.uk/id/local-authority-district/22UN,Environmental Services,H920 - DFGs,C400 - Grant payments,31/01/2012,2092837-1,4153.6,REDACTED PERSONAL DATA,REDACTED PERSONAL DATA
Tendring DC,http://statistics.data.gov.uk/id/local-authority-district/22UN,Environmental Services,H920 - DFGs,C400 - Grant payments,31/01/2012,2092841-1,868.42,REDACTED PERSONAL DATA,REDACTED PERSONAL DATA
Tendring DC,http://statistics.data.gov.uk/id/local-authority-district/22UN,Environmental Services,H920 - DFGs,C400 - Grant payments,31/01/2012,2092848-1,4732.85,REDACTED PERSONAL DATA,REDACTED PERSONAL DATA
Tendring DC,http://statistics.data.gov.uk/id/local-authority-district/22UN,Environmental Services,4660 - Public Health,4080 - Materials & Consumables,24/01/2012,1047123-1,50,2110400 - Oswald Donner & Co Ltd,AG TIES
Tendring DC,http://statistics.data.gov.uk/id/local-authority-district/22UN,Environmental Services,4720 - Dog Warden,6300 - Contract Payment,03/01/2012,2091734-1,1001,2111704 - P E Longhorn,Hiskeys Farm Nov 11
Tendring DC,http://statistics.data.gov.uk/id/local-authority-district/22UN,Environmental Services,4720 - Dog Warden,6300 - Contract Payment,24/01/2012,2092604-1,1518,2111704 - P E Longhorn,Kennel Fees Dec 11
Tendring DC,http://statistics.data.gov.uk/id/local-authority-district/22UN,Environmental Services,9900 - General Fund Balance Sheet,B350 - Welfare Burials Holding Account,24/01/2012,2092537-1,840.84,REDACTED PERSONAL DATA,REDACTED PERSONAL DATA
Tendring DC,http://statistics.data.gov.uk/id/local-authority-district/22UN,Environmental Services,H920 - DFGs,C400 - Grant payments,31/01/2012,2092844-1,180,REDACTED PERSONAL DATA,REDACTED PERSONAL DATA
Tendring DC,http://statistics.data.gov.uk/id/local-authority-district/22UN,Environmental Services,H920 - DFGs,C400 - Grant payments,27/01/2012,2092845-1,180,REDACTED PERSONAL DATA,REDACTED PERSONAL DATA
Tendring DC,http://statistics.data.gov.uk/id/local-authority-district/22UN,Environmental Services,4900 - Street Sweeping,4618 - Hired Services - Environmental Clean ups,10/01/2012,2091972-1,230.5,2106681 - PHS Waste Management,PHS Waste - Frinton Road
Tendring DC,http://statistics.data.gov.uk/id/local-authority-district/22UN,Environmental Services,4900 - Street Sweeping,4618 - Hired Services - Environmental Clean ups,24/01/2012,2092590-1,206,2106681 - PHS Waste Management,PHS Frating Farm Road
Tendring DC,http://statistics.data.gov.uk/id/local-authority-district/22UN,Environmental Services,4900 - Street Sweeping,4618 - Hired Services - Environmental Clean ups,24/01/2012,2092591-1,311,2106681 - PHS Waste Management,"PHS - School Rd, Elmstead"
Tendring DC,http://statistics.data.gov.uk/id/local-authority-district/22UN,Environmental Services,4900 - Street Sweeping,4618 - Hired Services - Environmental Clean ups,24/01/2012,2092592-1,217,2106681 - PHS Waste Management,"PHS - Broad Lanes, Elms"
Tendring DC,http://statistics.data.gov.uk/id/local-authority-district/22UN,Environmental Services,4820 - Public Conveniences,2100 - Building Repairs,10/01/2012,2091966-1,95,2101134 - R J Roe & Sons Ltd,Waste Removal
Tendring DC,http://statistics.data.gov.uk/id/local-authority-district/22UN,Environmental Services,4840 - Recycling & Waste Contract,5467 - Material Collection Payments,31/01/2012,2092860-1,3706.05,2111953 - Reuse Collections Ltd,Berryman - Dec 11
Tendring DC,http://statistics.data.gov.uk/id/local-authority-district/22UN,Environmental Services,1070 - Head of Public Experience and Administration Service Unit,4400 - Maintenance Under Service Agreements,31/01/2012,2092862-1,208.22,2101090 - Ricoh UK Ltd,Ricoh - Rental
Tendring DC,http://statistics.data.gov.uk/id/local-authority-district/22UN,Environmental Services,1070 - Head of Public Experience and Administration Service Unit,4400 - Maintenance Under Service Agreements,31/01/2012,2092863-1,376.98,2101090 - Ricoh UK Ltd,Ricoh - Click Charge
Tendring DC,http://statistics.data.gov.uk/id/local-authority-district/22UN,Environmental Services,9900 - General Fund Balance Sheet,B382 - Rechargeable Works - Other,24/01/2012,2092457-1,315,REDACTED PERSONAL DATA,REDACTED PERSONAL DATA
Tendring DC,http://statistics.data.gov.uk/id/local-authority-district/22UN,Environmental Services,9900 - General Fund Balance Sheet,B382 - Rechargeable Works - Other,24/01/2012,2092457-2,915,REDACTED PERSONAL DATA,REDACTED PERSONAL DATA
Tendring DC,http://statistics.data.gov.uk/id/local-authority-district/22UN,Environmental Services,1070 - Head of Public Experience and Administration Service Unit,4700 - Postage,03/01/2012,2091738-1,17.23,2101139 - Royal Mail,Royal Mail
Tendring DC,http://statistics.data.gov.uk/id/local-authority-district/22UN,Environmental Services,1070 - Head of Public Experience and Administration Service Unit,4700 - Postage,24/01/2012,2092597-1,80.2,2101139 - Royal Mail,Royal Mail
Tendring DC,http://statistics.data.gov.uk/id/local-authority-district/22UN,Environmental Services,1070 - Head of Public Experience and Administration Service Unit,4700 - Postage,31/01/2012,2092649-1,6.24,2101139 - Royal Mail,Royal Mail
Tendring DC,http://statistics.data.gov.uk/id/local-authority-district/22UN,Environmental Services,H920 - DFGs,C400 - Grant payments,10/01/2012,2091844-1,5000,REDACTED PERSONAL DATA,REDACTED PERSONAL DATA
Tendring DC,http://statistics.data.gov.uk/id/local-authority-district/22UN,Environmental Services,4660 - Public Health,5500 - Miscellaneous Expenses,31/01/2012,2092830-1,1350,2104414 - STSE Ltd,AG Training
Tendring DC,http://statistics.data.gov.uk/id/local-authority-district/22UN,Environmental Services,4640 - Port Health,5500 - Miscellaneous Expenses,24/01/2012,1047124-1,1866.2,2101322 - Suffolk Coastal District Council,AG IMP FOOD CONTROL
Tendring DC,http://statistics.data.gov.uk/id/local-authority-district/22UN,Environmental Services,H920 - DFGs,C400 - Grant payments,24/01/2012,2092444-1,441.72,REDACTED PERSONAL DATA,REDACTED PERSONAL DATA
Tendring DC,http://statistics.data.gov.uk/id/local-authority-district/22UN,Environmental Services,H920 - DFGs,C400 - Grant payments,24/01/2012,2092447-1,4,REDACTED PERSONAL DATA,REDACTED PERSONAL DATA
Tendring DC,http://statistics.data.gov.uk/id/local-authority-district/22UN,Environmental Services,H920 - DFGs,C400 - Grant payments,24/01/2012,2092450-1,797.97,REDACTED PERSONAL DATA,REDACTED PERSONAL DATA
Tendring DC,http://statistics.data.gov.uk/id/local-authority-district/22UN,Environmental Services,H920 - DFGs,C400 - Grant payments,31/01/2012,2092794-1,746.1,REDACTED PERSONAL DATA,REDACTED PERSONAL DATA
Tendring DC,http://statistics.data.gov.uk/id/local-authority-district/22UN,Environmental Services,H920 - DFGs,C400 - Grant payments,31/01/2012,2092838-1,623.04,REDACTED PERSONAL DATA,REDACTED PERSONAL DATA
Tendring DC,http://statistics.data.gov.uk/id/local-authority-district/22UN,Environmental Services,H920 - DFGs,C400 - Grant payments,31/01/2012,2092840-1,729.03,REDACTED PERSONAL DATA,REDACTED PERSONAL DATA
Tendring DC,http://statistics.data.gov.uk/id/local-authority-district/22UN,Environmental Services,H920 - DFGs,C400 - Grant payments,31/01/2012,2092842-1,584.26,REDACTED PERSONAL DATA,REDACTED PERSONAL DATA
Tendring DC,http://statistics.data.gov.uk/id/local-authority-district/22UN,Environmental Services,H920 - DFGs,C400 - Grant payments,31/01/2012,2092847-1,938.93,REDACTED PERSONAL DATA,REDACTED PERSONAL DATA
Tendring DC,http://statistics.data.gov.uk/id/local-authority-district/22UN,Environmental Services,H920 - DFGs,C400 - Grant payments,31/01/2012,2092851-1,194.46,REDACTED PERSONAL DATA,REDACTED PERSONAL DATA
Tendring DC,http://statistics.data.gov.uk/id/local-authority-district/22UN,Environmental Services,4840 - Recycling & Waste Contract,6299 - Contractors Reuse,31/01/2012,2092655-1,770.48,2102267 - Tendring Reuse & Employment Enterprise,Tree Dec 11
Tendring DC,http://statistics.data.gov.uk/id/local-authority-district/22UN,Environmental Services,4840 - Recycling & Waste Contract,6299 - Contractors Reuse,31/01/2012,2092859-1,349.78,2101394 - The Tendring Furniture Scheme,Furn Scheme - Dec 11
Tendring DC,http://statistics.data.gov.uk/id/local-authority-district/22UN,Environmental Services,4900 - Street Sweeping,6300 - Contract Payment,03/01/2012,2091744-1,106273.53,REDACTED PERSONAL DATA,REDACTED PERSONAL DATA
Tendring DC,http://statistics.data.gov.uk/id/local-authority-district/22UN,Environmental Services,4900 - Street Sweeping,6300 - Contract Payment,03/01/2012,2091745-1,141753.33,REDACTED PERSONAL DATA,REDACTED PERSONAL DATA
Tendring DC,http://statistics.data.gov.uk/id/local-authority-district/22UN,Environmental Services,4840 - Recycling & Waste Contract,5495 - Sweepings,17/01/2012,2092372-1,5643.3,2101092 - Veolia ES (UK) Limited,Confee Street Dis Nov 11
Tendring DC,http://statistics.data.gov.uk/id/local-authority-district/22UN,Environmental Services,4900 - Street Sweeping,6300 - Contract Payment,17/01/2012,2092373-1,110291.47,2101092 - Veolia ES (UK) Limited,Confee Streets Nov 11
Tendring DC,http://statistics.data.gov.uk/id/local-authority-district/22UN,Environmental Services,4880 - Refuse Collection,6300 - Contract Payment,17/01/2012,2092374-1,141914.28,2101092 - Veolia ES (UK) Limited,Confee Waste Nov 11
Tendring DC,http://statistics.data.gov.uk/id/local-authority-district/22UN,Environmental Services,4840 - Recycling & Waste Contract,6300 - Contract Payment,17/01/2012,2092375-1,93493.28,2101092 - Veolia ES (UK) Limited,Confee Nov 11 Recycling
Tendring DC,http://statistics.data.gov.uk/id/local-authority-district/22UN,Environmental Services,4900 - Street Sweeping,6300 - Contract Payment,24/01/2012,2092613-1,-5265,2101092 - Veolia ES (UK) Limited,2011 Uplift Charges
Tendring DC,http://statistics.data.gov.uk/id/local-authority-district/22UN,Environmental Services,4880 - Refuse Collection,6300 - Contract Payment,24/01/2012,2092613-2,46287.23,2101092 - Veolia ES (UK) Limited,2011 Uplift Charges
Tendring DC,http://statistics.data.gov.uk/id/local-authority-district/22UN,Environmental Services,4900 - Street Sweeping,6300 - Contract Payment,24/01/2012,2092613-3,49080.19,2101092 - Veolia ES (UK) Limited,2011 Uplift Charges
Tendring DC,http://statistics.data.gov.uk/id/local-authority-district/22UN,Environmental Services,4840 - Recycling & Waste Contract,6300 - Contract Payment,24/01/2012,2092613-4,30413.09,2101092 - Veolia ES (UK) Limited,2011 Uplift Charges
Tendring DC,http://statistics.data.gov.uk/id/local-authority-district/22UN,Environmental Services,4820 - Public Conveniences,2500 - Water Services - Metered,24/01/2012,2092600-1,581.66,2101318 - Veolia Water East Ltd,Veolia Water Brook St
Tendring DC,http://statistics.data.gov.uk/id/local-authority-district/22UN,Environmental Services,4820 - Public Conveniences,2520 - Sewerage & Environmental Charges,24/01/2012,2092600-2,524.31,2101318 - Veolia Water East Ltd,Veolia Water Brook St
Tendring DC,http://statistics.data.gov.uk/id/local-authority-district/22UN,Environmental Services,4820 - Public Conveniences,2500 - Water Services - Metered,24/01/2012,2092601-1,302.74,2101318 - Veolia Water East Ltd,Veolia Water - Milton Rd
Tendring DC,http://statistics.data.gov.uk/id/local-authority-district/22UN,Environmental Services,4820 - Public Conveniences,2520 - Sewerage & Environmental Charges,24/01/2012,2092601-2,298.4,2101318 - Veolia Water East Ltd,Veolia Water - Milton Rd
Tendring DC,http://statistics.data.gov.uk/id/local-authority-district/22UN,Environmental Services,4820 - Public Conveniences,2500 - Water Services - Metered,24/01/2012,2092602-1,600.68,2101318 - Veolia Water East Ltd,Veolia Water
Tendring DC,http://statistics.data.gov.uk/id/local-authority-district/22UN,Environmental Services,4820 - Public Conveniences,2520 - Sewerage & Environmental Charges,24/01/2012,2092602-2,539.71,2101318 - Veolia Water East Ltd,Veolia Water
Tendring DC,http://statistics.data.gov.uk/id/local-authority-district/22UN,Environmental Services,4820 - Public Conveniences,2500 - Water Services - Metered,24/01/2012,2092603-1,179.97,2101318 - Veolia Water East Ltd,Veolia Water - Cliff Par
Tendring DC,http://statistics.data.gov.uk/id/local-authority-district/22UN,Environmental Services,4820 - Public Conveniences,2520 - Sewerage & Environmental Charges,24/01/2012,2092603-2,195.71,2101318 - Veolia Water East Ltd,Veolia Water - Cliff Par
Tendring DC,http://statistics.data.gov.uk/id/local-authority-district/22UN,Financial Services,1700 - Insurance Recharge Account,4520 - Consultants Fees C and D Food Inspections,10/01/2012,2091817-1,143.6,2104849 - Aon Limited,Plant Cover
Tendring DC,http://statistics.data.gov.uk/id/local-authority-district/22UN,Financial Services,6620 - Corporate Management - General,5180 - External Audit Fees,31/01/2012,2092630-1,14209,2102829 - Audit Commission,Inst 7 130112
Tendring DC,http://statistics.data.gov.uk/id/local-authority-district/22UN,Financial Services,1200 - Exchequer Service Unit,1700 - Training - Courses,31/01/2012,2092824-1,140,2108648 - Bond International Software (UK) Ltd,Year End 11/12
Tendring DC,http://statistics.data.gov.uk/id/local-authority-district/22UN,Financial Services,9900 - General Fund Balance Sheet,B879 - Charges made by Merchant Acquirer,23/01/2012,2092423-1,232.56,2100202 - Capita Business Services Ltd,Capita Dec 11
Tendring DC,http://statistics.data.gov.uk/id/local-authority-district/22UN,Financial Services,9900 - General Fund Balance Sheet,B879 - Charges made by Merchant Acquirer,23/01/2012,2092423-2,168.6,2100202 - Capita Business Services Ltd,Capita Dec 11
Tendring DC,http://statistics.data.gov.uk/id/local-authority-district/22UN,Financial Services,9900 - General Fund Balance Sheet,B879 - Charges made by Merchant Acquirer,23/01/2012,2092423-3,228.42,2100202 - Capita Business Services Ltd,Capita Dec 11
Tendring DC,http://statistics.data.gov.uk/id/local-authority-district/22UN,Financial Services,9900 - General Fund Balance Sheet,B879 - Charges made by Merchant Acquirer,23/01/2012,2092423-4,267.44,2100202 - Capita Business Services Ltd,Capita Dec 11
Tendring DC,http://statistics.data.gov.uk/id/local-authority-district/22UN,Financial Services,9900 - General Fund Balance Sheet,B879 - Charges made by Merchant Acquirer,23/01/2012,2092423-5,234.18,2100202 - Capita Business Services Ltd,Capita Dec 11
Tendring DC,http://statistics.data.gov.uk/id/local-authority-district/22UN,Financial Services,9900 - General Fund Balance Sheet,B879 - Charges made by Merchant Acquirer,23/01/2012,2092423-6,57.07,2100202 - Capita Business Services Ltd,Capita Dec 11
Tendring DC,http://statistics.data.gov.uk/id/local-authority-district/22UN,Financial Services,9900 - General Fund Balance Sheet,B879 - Charges made by Merchant Acquirer,23/01/2012,2092423-7,153.54,2100202 - Capita Business Services Ltd,Capita Dec 11
Tendring DC,http://statistics.data.gov.uk/id/local-authority-district/22UN,Financial Services,9900 - General Fund Balance Sheet,B879 - Charges made by Merchant Acquirer,23/01/2012,2092423-8,159.66,2100202 - Capita Business Services Ltd,Capita Dec 11
Tendring DC,http://statistics.data.gov.uk/id/local-authority-district/22UN,Financial Services,C079 - Replacement debit and credit card payment facility,C277 - Other expenditure,31/01/2012,2092645-1,146.88,2100202 - Capita Business Services Ltd,Final 5% Planning Portal
Tendring DC,http://statistics.data.gov.uk/id/local-authority-district/22UN,Financial Services,5880 - Management Of Sport & Leisure Facilities,4597 - Hired Services - Payments to Contractors,24/01/2012,1047126-1,10315.84,2108457 - CHG Meridian,EYM EQUIP LEASE
Tendring DC,http://statistics.data.gov.uk/id/local-authority-district/22UN,Financial Services,1220 - Finance and Procurement Manager Service Unit,1700 - Training - Courses,10/01/2012,2091821-1,199,2109394 - CIPFA Business Ltd,061211 Conf
Tendring DC,http://statistics.data.gov.uk/id/local-authority-district/22UN,Financial Services,1580 - Head of Customer Service and Administration Service Unit,5190 - Bank Commission Charges,23/01/2012,2092419-1,1853.43,2100269 - Co operative Bank plc,Quarterly Commission and Interest
Tendring DC,http://statistics.data.gov.uk/id/local-authority-district/22UN,Financial Services,6740 - Careline,5190 - Bank Commission Charges,23/01/2012,2092419-2,88.31,2100269 - Co operative Bank plc,Quarterly Commission and Interest
Tendring DC,http://statistics.data.gov.uk/id/local-authority-district/22UN,Financial Services,6620 - Corporate Management - General,5190 - Bank Commission Charges,23/01/2012,2092419-3,3895.43,2100269 - Co operative Bank plc,Quarterly Commission and Interest
Tendring DC,http://statistics.data.gov.uk/id/local-authority-district/22UN,Financial Services,8901 - Interest Payable and similar charges,7570 - Interest Payments,23/01/2012,2092419-4,28.15,2100269 - Co operative Bank plc,Quarterly Commission and Interest
Tendring DC,http://statistics.data.gov.uk/id/local-authority-district/22UN,Financial Services,5260 - Rent Collection And Accounting,5190 - Bank Commission Charges,23/01/2012,2092419-5,45.8,2100269 - Co operative Bank plc,Quarterly Commission and Interest
Tendring DC,http://statistics.data.gov.uk/id/local-authority-district/22UN,Financial Services,1580 - Head of Customer Service and Administration Service Unit,5190 - Bank Commission Charges,23/01/2012,2092419-6,972.1,2100269 - Co operative Bank plc,Quarterly Commission and Interest
Tendring DC,http://statistics.data.gov.uk/id/local-authority-district/22UN,Financial Services,5880 - Management Of Sport & Leisure Facilities,5190 - Bank Commission Charges,23/01/2012,2092419-7,96.35,2100269 - Co operative Bank plc,Quarterly Commission and Interest
Tendring DC,http://statistics.data.gov.uk/id/local-authority-district/22UN,Financial Services,1660 - Other Apportionable Overheads,5222 - General Write Offs/Adjustments,25/01/2012,1047200-1,-542.5,2104814 - Colchester Catering,SET OFF AGAINST OUTSTANDING INVOICES
Tendring DC,http://statistics.data.gov.uk/id/local-authority-district/22UN,Financial Services,6640 - Treasury Management,5192 - Brokerage,03/01/2012,2091716-1,77,2100304 - CO-OP Bank,FD Dec 11
Tendring DC,http://statistics.data.gov.uk/id/local-authority-district/22UN,Financial Services,6620 - Corporate Management - General,5190 - Bank Commission Charges,03/01/2012,2091716-2,203,2100304 - CO-OP Bank,FD Dec 11
Tendring DC,http://statistics.data.gov.uk/id/local-authority-district/22UN,Financial Services,1090 - Management Team Service Unit,1700 - Training - Courses,03/01/2012,2091717-1,360,2100304 - CO-OP Bank,KLN Visa Nov 11
Tendring DC,http://statistics.data.gov.uk/id/local-authority-district/22UN,Financial Services,1100 - Executive Corporate Support Manager Service Unit,4300 - Printing & Stationery,03/01/2012,2091717-2,303.78,2100304 - CO-OP Bank,KLN Visa Nov 11
Tendring DC,http://statistics.data.gov.uk/id/local-authority-district/22UN,Financial Services,6620 - Corporate Management - General,5190 - Bank Commission Charges,03/01/2012,2091717-3,2,2100304 - CO-OP Bank,KLN Visa Nov 11
Tendring DC,http://statistics.data.gov.uk/id/local-authority-district/22UN,Financial Services,6620 - Corporate Management - General,5190 - Bank Commission Charges,23/01/2012,2092421-1,100,2100304 - CO-OP Bank,Sort code Direc
Tendring DC,http://statistics.data.gov.uk/id/local-authority-district/22UN,Financial Services,1120 - Accountancy Service Unit,4753 - Computer - Application Software,23/01/2012,2092422-1,41.1,2100304 - CO-OP Bank,KLN Visa
Tendring DC,http://statistics.data.gov.uk/id/local-authority-district/22UN,Financial Services,6620 - Corporate Management - General,5190 - Bank Commission Charges,23/01/2012,2092422-2,2,2100304 - CO-OP Bank,KLN Visa
Tendring DC,http://statistics.data.gov.uk/id/local-authority-district/22UN,Financial Services,6640 - Treasury Management,5192 - Brokerage,30/01/2012,2092800-1,42,2100304 - CO-OP Bank,FD Jan 2012
Tendring DC,http://statistics.data.gov.uk/id/local-authority-district/22UN,Financial Services,6620 - Corporate Management - General,5190 - Bank Commission Charges,30/01/2012,2092800-2,205,2100304 - CO-OP Bank,FD Jan 2012
Tendring DC,http://statistics.data.gov.uk/id/local-authority-district/22UN,Financial Services,1180 - Benefit Fraud Investigation Service Unit,5500 - Miscellaneous Expenses,10/01/2012,2091945-1,45.99,REDACTED PERSONAL DATA,REDACTED PERSONAL DATA
Tendring DC,http://statistics.data.gov.uk/id/local-authority-district/22UN,Financial Services,9940 - Collection Fund Balance Sheet,B244 - CLG - NNDR Agency Balance,09/01/2012,2091923-1,1104323,REDACTED PERSONAL DATA,REDACTED PERSONAL DATA
Tendring DC,http://statistics.data.gov.uk/id/local-authority-district/22UN,Financial Services,8985 - Redistributed National Non-Domestic Rate Income,9893 - Redistributed National Non-Domestic Rate Income,09/01/2012,2091923-2,-396989,REDACTED PERSONAL DATA,REDACTED PERSONAL DATA
Tendring DC,http://statistics.data.gov.uk/id/local-authority-district/22UN,Financial Services,9940 - Collection Fund Balance Sheet,B244 - CLG - NNDR Agency Balance,23/01/2012,2092417-1,1104324,2100432 - DCLG,NNDR and RSG
Tendring DC,http://statistics.data.gov.uk/id/local-authority-district/22UN,Financial Services,8985 - Redistributed National Non-Domestic Rate Income,9893 - Redistributed National Non-Domestic Rate Income,23/01/2012,2092417-2,-396988,2100432 - DCLG,NNDR and RSG
Tendring DC,http://statistics.data.gov.uk/id/local-authority-district/22UN,Financial Services,9940 - Collection Fund Balance Sheet,B244 - CLG - NNDR Agency Balance,27/01/2012,2092799-1,1104323,2100432 - DCLG,NNDR and RSG
Tendring DC,http://statistics.data.gov.uk/id/local-authority-district/22UN,Financial Services,8985 - Redistributed National Non-Domestic Rate Income,9893 - Redistributed National Non-Domestic Rate Income,27/01/2012,2092799-2,-396989,2100432 - DCLG,NNDR and RSG
Tendring DC,http://statistics.data.gov.uk/id/local-authority-district/22UN,Financial Services,1150 - Head of Resources Management & Central Admin Service Unit,4880 - Subscriptions Paid,03/01/2012,2091582-1,249,2111896 - Emap Ltd,LGC Renewal 00103309693
Tendring DC,http://statistics.data.gov.uk/id/local-authority-district/22UN,Financial Services,9880 - Collection Fund - Council Tax,R100 - Precept - ECC,03/01/2012,2091715-1,5574365,2100409 - Essex County Council,Precept 151211
Tendring DC,http://statistics.data.gov.uk/id/local-authority-district/22UN,Financial Services,9880 - Collection Fund - Council Tax,R110 - Council Tax Balance - ECC,03/01/2012,2091715-2,48964,2100409 - Essex County Council,Precept 151211
Tendring DC,http://statistics.data.gov.uk/id/local-authority-district/22UN,Financial Services,6683 - Second Homes Discount Scheme,8109 - Second Homes Discount Scheme - ECC Contribution,03/01/2012,2091715-3,-41777,2100409 - Essex County Council,Precept 151211
Tendring DC,http://statistics.data.gov.uk/id/local-authority-district/22UN,Financial Services,8660 - Fit for Purpose,5500 - Miscellaneous Expenses,03/01/2012,2091741-1,22960.81,REDACTED PERSONAL DATA,REDACTED PERSONAL DATA
Tendring DC,http://statistics.data.gov.uk/id/local-authority-district/22UN,Financial Services,8660 - Fit for Purpose,5500 - Miscellaneous Expenses,03/01/2012,2091742-1,69697.7,REDACTED PERSONAL DATA,REDACTED PERSONAL DATA
Tendring DC,http://statistics.data.gov.uk/id/local-authority-district/22UN,Financial Services,8971 - MIRS - Contributions Payable to the Pension Scheme,1816 - Superannuation Deficiency Contribution,10/01/2012,2091928-4,137750,2100419 - Essex County Council,Pension 00013
Tendring DC,http://statistics.data.gov.uk/id/local-authority-district/22UN,Financial Services,8971 - MIRS - Contributions Payable to the Pension Scheme,1810 - Superannuation  -  Financial Strain/Added Years,10/01/2012,2091928-5,16772.98,2100419 - Essex County Council,Pension 00013
Tendring DC,http://statistics.data.gov.uk/id/local-authority-district/22UN,Financial Services,8971 - MIRS - Contributions Payable to the Pension Scheme,1822 - Superannuation - Port Health Pensions etc.,10/01/2012,2091932-1,657.87,2100419 - Essex County Council,Port Health Authority
Tendring DC,http://statistics.data.gov.uk/id/local-authority-district/22UN,Financial Services,8660 - Fit for Purpose,5500 - Miscellaneous Expenses,10/01/2012,2091943-1,774.38,REDACTED PERSONAL DATA,REDACTED PERSONAL DATA
Tendring DC,http://statistics.data.gov.uk/id/local-authority-district/22UN,Financial Services,9880 - Collection Fund - Council Tax,R100 - Precept - ECC,23/01/2012,2092414-1,5574365,2100409 - Essex County Council,Precept
Tendring DC,http://statistics.data.gov.uk/id/local-authority-district/22UN,Financial Services,9880 - Collection Fund - Council Tax,R110 - Council Tax Balance - ECC,23/01/2012,2092414-2,48964,2100409 - Essex County Council,Precept
Tendring DC,http://statistics.data.gov.uk/id/local-authority-district/22UN,Financial Services,4520 - Land Charges,5448 - CON 29 Payments,23/01/2012,2092414-3,3918.7,2100409 - Essex County Council,Precept
Tendring DC,http://statistics.data.gov.uk/id/local-authority-district/22UN,Financial Services,6683 - Second Homes Discount Scheme,8109 - Second Homes Discount Scheme - ECC Contribution,23/01/2012,2092414-4,-41777,2100409 - Essex County Council,Precept
Tendring DC,http://statistics.data.gov.uk/id/local-authority-district/22UN,Financial Services,9900 - General Fund Balance Sheet,B262 - ECC Reimbursement Account,23/01/2012,2092414-5,-288966.2,2100409 - Essex County Council,Precept
Tendring DC,http://statistics.data.gov.uk/id/local-authority-district/22UN,Financial Services,8971 - MIRS - Contributions Payable to the Pension Scheme,1822 - Superannuation - Port Health Pensions etc.,31/01/2012,2092891-1,731.91,REDACTED PERSONAL DATA,REDACTED PERSONAL DATA
Tendring DC,http://statistics.data.gov.uk/id/local-authority-district/22UN,Financial Services,8971 - MIRS - Contributions Payable to the Pension Scheme,1816 - Superannuation Deficiency Contribution,31/01/2012,2092900-4,137750,REDACTED PERSONAL DATA,REDACTED PERSONAL DATA
Tendring DC,http://statistics.data.gov.uk/id/local-authority-district/22UN,Financial Services,8971 - MIRS - Contributions Payable to the Pension Scheme,1810 - Superannuation  -  Financial Strain/Added Years,31/01/2012,2092900-5,16769.07,REDACTED PERSONAL DATA,REDACTED PERSONAL DATA
Tendring DC,http://statistics.data.gov.uk/id/local-authority-district/22UN,Financial Services,9880 - Collection Fund - Council Tax,R101 - Precept - Essex Fire,03/01/2012,2091714-1,340694,2100469 - Essex Fire Authority,Precept 151211 Fire
Tendring DC,http://statistics.data.gov.uk/id/local-authority-district/22UN,Financial Services,9880 - Collection Fund - Council Tax,R111 - Council Tax Balance - Essex Fire,03/01/2012,2091714-2,2993,2100469 - Essex Fire Authority,Precept 151211 Fire
Tendring DC,http://statistics.data.gov.uk/id/local-authority-district/22UN,Financial Services,9880 - Collection Fund - Council Tax,R101 - Precept - Essex Fire,23/01/2012,2092412-1,340694,2100469 - Essex Fire Authority,Precept
Tendring DC,http://statistics.data.gov.uk/id/local-authority-district/22UN,Financial Services,9880 - Collection Fund - Council Tax,R111 - Council Tax Balance - Essex Fire,23/01/2012,2092412-2,2993,2100469 - Essex Fire Authority,Precept
Tendring DC,http://statistics.data.gov.uk/id/local-authority-district/22UN,Financial Services,9880 - Collection Fund - Council Tax,R102 - Precept - Essex Police,03/01/2012,2091713-1,677695,2100500 - Essex Police Authority,Precept
Tendring DC,http://statistics.data.gov.uk/id/local-authority-district/22UN,Financial Services,9880 - Collection Fund - Council Tax,R112 - Council Tax Balance - Essex Police,03/01/2012,2091713-2,5953,2100500 - Essex Police Authority,Precept
Tendring DC,http://statistics.data.gov.uk/id/local-authority-district/22UN,Financial Services,9880 - Collection Fund - Council Tax,R102 - Precept - Essex Police,23/01/2012,2092413-1,677695,2100500 - Essex Police Authority,Precept
Tendring DC,http://statistics.data.gov.uk/id/local-authority-district/22UN,Financial Services,9880 - Collection Fund - Council Tax,R112 - Council Tax Balance - Essex Police,23/01/2012,2092413-2,5953,2100500 - Essex Police Authority,Precept
Tendring DC,http://statistics.data.gov.uk/id/local-authority-district/22UN,Financial Services,1660 - Other Apportionable Overheads,4609 - Child Care Vouchers Management Fee,10/01/2012,2091947-2,80.76,REDACTED PERSONAL DATA,REDACTED PERSONAL DATA
Tendring DC,http://statistics.data.gov.uk/id/local-authority-district/22UN,Financial Services,8700 - Small Projects,4900 - Grants,31/01/2012,2092884-1,500,2100584 - Frinton & Walton Town Council,Contribution towards Frinton and Walton Christmas Lights
Tendring DC,http://statistics.data.gov.uk/id/local-authority-district/22UN,Financial Services,8700 - Small Projects,4900 - Grants,31/01/2012,2092884-2,500,2100584 - Frinton & Walton Town Council,Contribution towards Frinton and Walton Christmas Lights
Tendring DC,http://statistics.data.gov.uk/id/local-authority-district/22UN,Financial Services,8700 - Small Projects,4900 - Grants,31/01/2012,2092884-3,500,2100584 - Frinton & Walton Town Council,Contribution towards Frinton and Walton Christmas Lights
Tendring DC,http://statistics.data.gov.uk/id/local-authority-district/22UN,Financial Services,1180 - Benefit Fraud Investigation Service Unit,1700 - Training - Courses,24/01/2012,2092541-1,179,2101694 - GovNet Communications,Meeting
Tendring DC,http://statistics.data.gov.uk/id/local-authority-district/22UN,Financial Services,9900 - General Fund Balance Sheet,B382 - Rechargeable Works - Other,31/01/2012,2092832-1,1823.08,2103908 - Greenspeed Autostylistics,Excess / VAT MV11-05
Tendring DC,http://statistics.data.gov.uk/id/local-authority-district/22UN,Financial Services,9900 - General Fund Balance Sheet,B382 - Rechargeable Works - Other,31/01/2012,2092832-2,-1823.08,2103908 - Greenspeed Autostylistics,Excess / VAT MV11-05
Tendring DC,http://statistics.data.gov.uk/id/local-authority-district/22UN,Financial Services,9900 - General Fund Balance Sheet,B382 - Rechargeable Works - Other,31/01/2012,2092832-3,250,2103908 - Greenspeed Autostylistics,Excess / VAT MV11-05
Tendring DC,http://statistics.data.gov.uk/id/local-authority-district/22UN,Financial Services,9900 - General Fund Balance Sheet,B382 - Rechargeable Works - Other,24/01/2012,2092584-1,897,REDACTED PERSONAL DATA,REDACTED PERSONAL DATA
Tendring DC,http://statistics.data.gov.uk/id/local-authority-district/22UN,Financial Services,9900 - General Fund Balance Sheet,B382 - Rechargeable Works - Other,24/01/2012,2092584-2,-897,REDACTED PERSONAL DATA,REDACTED PERSONAL DATA
Tendring DC,http://statistics.data.gov.uk/id/local-authority-district/22UN,Financial Services,1180 - Benefit Fraud Investigation Service Unit,4460 - Legal & Professional Expenses,03/01/2012,2091619-1,1102.6,2100672 - Harris Cuffaro & Nichols Solicitors,
Tendring DC,http://statistics.data.gov.uk/id/local-authority-district/22UN,Financial Services,1180 - Benefit Fraud Investigation Service Unit,4460 - Legal & Professional Expenses,24/01/2012,2092539-1,2133.9,2100672 - Harris Cuffaro & Nichols Solicitors,Solicitor Costs
Tendring DC,http://statistics.data.gov.uk/id/local-authority-district/22UN,Financial Services,1300 - Legal Services Service Unit,4466 - Legal & Professional Expenses - Land Registry,09/01/2012,2091926-1,76,REDACTED PERSONAL DATA,REDACTED PERSONAL DATA
Tendring DC,http://statistics.data.gov.uk/id/local-authority-district/22UN,Financial Services,4660 - Public Health,5500 - Miscellaneous Expenses,09/01/2012,2091926-2,8,REDACTED PERSONAL DATA,REDACTED PERSONAL DATA
Tendring DC,http://statistics.data.gov.uk/id/local-authority-district/22UN,Financial Services,1580 - Head of Customer Service and Administration Service Unit,4462 - Legal Fees incl. Bailiffs re debt recovery,09/01/2012,2091926-3,332,REDACTED PERSONAL DATA,REDACTED PERSONAL DATA
Tendring DC,http://statistics.data.gov.uk/id/local-authority-district/22UN,Financial Services,1580 - Head of Customer Service and Administration Service Unit,4462 - Legal Fees incl. Bailiffs re debt recovery,09/01/2012,2091926-4,40,REDACTED PERSONAL DATA,REDACTED PERSONAL DATA
Tendring DC,http://statistics.data.gov.uk/id/local-authority-district/22UN,Financial Services,4300 - Dangerous Structures,4615 - Hired Services - Building Services,09/01/2012,2091926-5,16,REDACTED PERSONAL DATA,REDACTED PERSONAL DATA
Tendring DC,http://statistics.data.gov.uk/id/local-authority-district/22UN,Financial Services,1520 - Planning Management & Administration Service Unit,4624 - Hired Services - Land Registry,09/01/2012,2091926-6,86,REDACTED PERSONAL DATA,REDACTED PERSONAL DATA
Tendring DC,http://statistics.data.gov.uk/id/local-authority-district/22UN,Financial Services,H920 - DFGs,C400 - Grant payments,09/01/2012,2091926-7,8,REDACTED PERSONAL DATA,REDACTED PERSONAL DATA
Tendring DC,http://statistics.data.gov.uk/id/local-authority-district/22UN,Financial Services,4750 - Housing Disrepair,4080 - Materials & Consumables,09/01/2012,2091926-8,92,REDACTED PERSONAL DATA,REDACTED PERSONAL DATA
Tendring DC,http://statistics.data.gov.uk/id/local-authority-district/22UN,Financial Services,5140 - Homelessness,4680 - Bed & Breakfast Accommodation,09/01/2012,2091926-9,48,REDACTED PERSONAL DATA,REDACTED PERSONAL DATA
Tendring DC,http://statistics.data.gov.uk/id/local-authority-district/22UN,Financial Services,6640 - Treasury Management,5192 - Brokerage,09/01/2012,2091769-2,398.67,2107040 - King & Shaxson Limited,Fees re treasury management
Tendring DC,http://statistics.data.gov.uk/id/local-authority-district/22UN,Financial Services,8915 - Interest & Investment Income,9600 - External Investment Interest Receivable,09/01/2012,2091769-3,-2380.27,2107040 - King & Shaxson Limited,Fees re treasury management
Tendring DC,http://statistics.data.gov.uk/id/local-authority-district/22UN,Financial Services,1200 - Exchequer Service Unit,4300 - Printing & Stationery,10/01/2012,2091820-1,69.85,2110099 - Lyreco UK Ltd,Hole Punch
Tendring DC,http://statistics.data.gov.uk/id/local-authority-district/22UN,Financial Services,5680 - HRA Subsidy,6680 - HRA Negative Subsidy payment,06/01/2012,1047267-1,224523,2101081 - ODPM,HRA SURPLUS
Tendring DC,http://statistics.data.gov.uk/id/local-authority-district/22UN,Financial Services,5680 - HRA Subsidy,6680 - HRA Negative Subsidy payment,09/01/2012,2091922-1,224524,REDACTED PERSONAL DATA,REDACTED PERSONAL DATA
Tendring DC,http://statistics.data.gov.uk/id/local-authority-district/22UN,Financial Services,1200 - Exchequer Service Unit,4300 - Printing & Stationery,31/01/2012,2092653-1,40,2108638 - Prolog Print Media Ltd,P60's 11/12
Tendring DC,http://statistics.data.gov.uk/id/local-authority-district/22UN,Financial Services,8901 - Interest Payable and similar charges,7570 - Interest Payments,23/01/2012,2092418-2,108564.05,2101162 - Public Works Loan Board,Principal and Interest Payments
Tendring DC,http://statistics.data.gov.uk/id/local-authority-district/22UN,Financial Services,9900 - General Fund Balance Sheet,B382 - Rechargeable Works - Other,10/01/2012,2091818-1,150,REDACTED PERSONAL DATA,REDACTED PERSONAL DATA
Tendring DC,http://statistics.data.gov.uk/id/local-authority-district/22UN,Financial Services,9900 - General Fund Balance Sheet,B382 - Rechargeable Works - Other,10/01/2012,2091818-2,-150,REDACTED PERSONAL DATA,REDACTED PERSONAL DATA
Tendring DC,http://statistics.data.gov.uk/id/local-authority-district/22UN,Financial Services,9900 - General Fund Balance Sheet,B886 - Rail Warrants Allocation Holding Account,17/01/2012,2092085-1,773.1,2101174 - R S P Ltd,Rail Warrants
Tendring DC,http://statistics.data.gov.uk/id/local-authority-district/22UN,Financial Services,9900 - General Fund Balance Sheet,B654 - Petty Cash/Imprests,10/01/2012,2091979-1,60,2101386 - Tendring District Council,Sheltered Housing Wardens
Tendring DC,http://statistics.data.gov.uk/id/local-authority-district/22UN,Financial Services,9900 - General Fund Balance Sheet,B654 - Petty Cash/Imprests,24/01/2012,2092619-1,200,2101377 - Tendring District Council,Civic / Chairman
Tendring DC,http://statistics.data.gov.uk/id/local-authority-district/22UN,Financial Services,1140 - Audit Services Service Unit,4500 - Consultancy Fees,24/01/2012,1047129-1,1890,2111185 - TIAA Ltd,IT PROJECT MGT AUDIT
Tendring DC,http://statistics.data.gov.uk/id/local-authority-district/22UN,Financial Services,7380 - Industrial Estates,2115 - Grounds Maintenance External Contractors,10/01/2012,2091986-1,1000,REDACTED PERSONAL DATA,REDACTED PERSONAL DATA
Tendring DC,http://statistics.data.gov.uk/id/local-authority-district/22UN,Financial Services,8125 - Horticultural Services,4525 - St Pauls Travelers - PL Claims Handling,10/01/2012,2091987-1,5000,REDACTED PERSONAL DATA,REDACTED PERSONAL DATA
Tendring DC,http://statistics.data.gov.uk/id/local-authority-district/22UN,Financial Services,5920 - Open Spaces,4525 - St Pauls Travelers - PL Claims Handling,17/01/2012,2092358-1,1000,REDACTED PERSONAL DATA,REDACTED PERSONAL DATA
Tendring DC,http://statistics.data.gov.uk/id/local-authority-district/22UN,Financial Services,8025 - Car Parks - Off St,4597 - Hired Services - Payments to Contractors,17/01/2012,2092363-1,1000,REDACTED PERSONAL DATA,REDACTED PERSONAL DATA
Tendring DC,http://statistics.data.gov.uk/id/local-authority-district/22UN,Financial Services,1180 - Benefit Fraud Investigation Service Unit,4716 - Mobile Telephone Costs,31/01/2012,2092866-1,24.42,2101522 - Vodafone Corporate,
Tendring DC,http://statistics.data.gov.uk/id/local-authority-district/22UN,Financial Services,1100 - Executive Corporate Support Manager Service Unit,4716 - Mobile Telephone Costs,31/01/2012,2092882-1,39.8,2101522 - Vodafone Corporate,Vodafone
Tendring DC,http://statistics.data.gov.uk/id/local-authority-district/22UN,Financial Services,1090 - Management Team Service Unit,4716 - Mobile Telephone Costs,31/01/2012,2092882-2,20.55,2101522 - Vodafone Corporate,Vodafone
Tendring DC,http://statistics.data.gov.uk/id/local-authority-district/22UN,Financial Services,1760 - IT Direct Service Costs,4715 - Data Communication Charge,31/01/2012,2092882-3,182.62,2101522 - Vodafone Corporate,Vodafone
Tendring DC,http://statistics.data.gov.uk/id/local-authority-district/22UN,Financial Services,1925 - Central Purchasing,4716 - Mobile Telephone Costs,31/01/2012,2092883-1,11.28,2101522 - Vodafone Corporate,Vodafone
Tendring DC,http://statistics.data.gov.uk/id/local-authority-district/22UN,Housing Services,5480 - Repair & Maintenance,2092 - Plumbing,31/01/2012,1047193-1,210,REDACTED PERSONAL DATA,REDACTED PERSONAL DATA
Tendring DC,http://statistics.data.gov.uk/id/local-authority-district/22UN,Housing Services,5480 - Repair & Maintenance,2017 - Mechanical Equipment /Extract Fans,17/01/2012,2092265-1,483,REDACTED PERSONAL DATA,REDACTED PERSONAL DATA
Tendring DC,http://statistics.data.gov.uk/id/local-authority-district/22UN,Housing Services,5480 - Repair & Maintenance,2017 - Mechanical Equipment /Extract Fans,31/01/2012,2092679-1,710,REDACTED PERSONAL DATA,REDACTED PERSONAL DATA
Tendring DC,http://statistics.data.gov.uk/id/local-authority-district/22UN,Housing Services,5480 - Repair & Maintenance,2017 - Mechanical Equipment /Extract Fans,31/01/2012,2092680-1,571,REDACTED PERSONAL DATA,REDACTED PERSONAL DATA
Tendring DC,http://statistics.data.gov.uk/id/local-authority-district/22UN,Housing Services,5240 - Managing Tenancies,5242 - Tenant Relations,10/01/2012,2091828-1,10,REDACTED PERSONAL DATA,REDACTED PERSONAL DATA
Tendring DC,http://statistics.data.gov.uk/id/local-authority-district/22UN,Housing Services,5480 - Repair & Maintenance,4044 - Building & Safety Equipment,31/01/2012,1047243-1,3.96,REDACTED PERSONAL DATA,REDACTED PERSONAL DATA
Tendring DC,http://statistics.data.gov.uk/id/local-authority-district/22UN,Housing Services,5480 - Repair & Maintenance,2088 - Disabled Adaptations,10/01/2012,2091902-1,97,REDACTED PERSONAL DATA,REDACTED PERSONAL DATA
Tendring DC,http://statistics.data.gov.uk/id/local-authority-district/22UN,Housing Services,5480 - Repair & Maintenance,2088 - Disabled Adaptations,10/01/2012,2091902-2,278,REDACTED PERSONAL DATA,REDACTED PERSONAL DATA
Tendring DC,http://statistics.data.gov.uk/id/local-authority-district/22UN,Housing Services,5480 - Repair & Maintenance,2088 - Disabled Adaptations,10/01/2012,2091903-1,100,REDACTED PERSONAL DATA,REDACTED PERSONAL DATA
Tendring DC,http://statistics.data.gov.uk/id/local-authority-district/22UN,Housing Services,5480 - Repair & Maintenance,2088 - Disabled Adaptations,10/01/2012,2091903-2,285,REDACTED PERSONAL DATA,REDACTED PERSONAL DATA
Tendring DC,http://statistics.data.gov.uk/id/local-authority-district/22UN,Housing Services,5480 - Repair & Maintenance,2012 - Responsive Maintenance - Clearance And Cleaning,03/01/2012,1046951-1,50,REDACTED PERSONAL DATA,REDACTED PERSONAL DATA
Tendring DC,http://statistics.data.gov.uk/id/local-authority-district/22UN,Housing Services,5220 - Policy & Management,4312 - Tenancy Stationery,10/01/2012,2091889-1,75.72,REDACTED PERSONAL DATA,REDACTED PERSONAL DATA
Tendring DC,http://statistics.data.gov.uk/id/local-authority-district/22UN,Housing Services,5220 - Policy & Management,4312 - Tenancy Stationery,24/01/2012,2092429-1,88.34,2100111 - Banner Business Supplies Ltd,A4 White Paper
Tendring DC,http://statistics.data.gov.uk/id/local-authority-district/22UN,Housing Services,9920 - HRA Balance Sheet,B860 - Housing Rents - Cash,10/01/2012,2091989-1,106.24,REDACTED PERSONAL DATA,REDACTED PERSONAL DATA
Tendring DC,http://statistics.data.gov.uk/id/local-authority-district/22UN,Housing Services,5140 - Homelessness,4683 - Other Homelessness Expenses,10/01/2012,2091999-1,750,REDACTED PERSONAL DATA,REDACTED PERSONAL DATA
Tendring DC,http://statistics.data.gov.uk/id/local-authority-district/22UN,Housing Services,5240 - Managing Tenancies,5249 - Housing ASB Expenses,03/01/2012,1046966-1,123.73,REDACTED COMMERCIAL CONFIDENTIALITY,REDACTED COMMERCIAL CONFIDENTIALITY
Tendring DC,http://statistics.data.gov.uk/id/local-authority-district/22UN,Housing Services,5240 - Managing Tenancies,5249 - Housing ASB Expenses,03/01/2012,1046966-2,-22.75,REDACTED COMMERCIAL CONFIDENTIALITY,REDACTED COMMERCIAL CONFIDENTIALITY
Tendring DC,http://statistics.data.gov.uk/id/local-authority-district/22UN,Housing Services,5240 - Managing Tenancies,5242 - Tenant Relations,24/01/2012,1047121-1,97.5,REDACTED COMMERCIAL CONFIDENTIALITY,REDACTED COMMERCIAL CONFIDENTIALITY
Tendring DC,http://statistics.data.gov.uk/id/local-authority-district/22UN,Housing Services,5260 - Rent Collection And Accounting,4635 - Cash Collection Contract,03/01/2012,1046965-1,308.25,REDACTED PERSONAL DATA,REDACTED PERSONAL DATA
Tendring DC,http://statistics.data.gov.uk/id/local-authority-district/22UN,Housing Services,5260 - Rent Collection And Accounting,4635 - Cash Collection Contract,24/01/2012,2092404-1,-7.13,REDACTED COMMERCIAL CONFIDENTIALITY,REDACTED COMMERCIAL CONFIDENTIALITY
Tendring DC,http://statistics.data.gov.uk/id/local-authority-district/22UN,Housing Services,5260 - Rent Collection And Accounting,4635 - Cash Collection Contract,24/01/2012,2092564-1,24.87,REDACTED COMMERCIAL CONFIDENTIALITY,REDACTED COMMERCIAL CONFIDENTIALITY
Tendring DC,http://statistics.data.gov.uk/id/local-authority-district/22UN,Housing Services,5140 - Homelessness,4680 - Bed & Breakfast Accommodation,03/01/2012,2091601-1,245,REDACTED PERSONAL DATA,REDACTED PERSONAL DATA
Tendring DC,http://statistics.data.gov.uk/id/local-authority-district/22UN,Housing Services,5140 - Homelessness,4680 - Bed & Breakfast Accommodation,03/01/2012,2091602-1,245,REDACTED PERSONAL DATA,REDACTED PERSONAL DATA
Tendring DC,http://statistics.data.gov.uk/id/local-authority-district/22UN,Housing Services,5140 - Homelessness,4680 - Bed & Breakfast Accommodation,03/01/2012,2091603-1,315,REDACTED PERSONAL DATA,REDACTED PERSONAL DATA
Tendring DC,http://statistics.data.gov.uk/id/local-authority-district/22UN,Housing Services,5140 - Homelessness,4680 - Bed & Breakfast Accommodation,03/01/2012,2091604-1,315,REDACTED PERSONAL DATA,REDACTED PERSONAL DATA
Tendring DC,http://statistics.data.gov.uk/id/local-authority-district/22UN,Housing Services,5140 - Homelessness,4680 - Bed & Breakfast Accommodation,10/01/2012,2091790-1,320,REDACTED PERSONAL DATA,REDACTED PERSONAL DATA
Tendring DC,http://statistics.data.gov.uk/id/local-authority-district/22UN,Housing Services,5140 - Homelessness,4680 - Bed & Breakfast Accommodation,10/01/2012,2091791-1,420,REDACTED PERSONAL DATA,REDACTED PERSONAL DATA
Tendring DC,http://statistics.data.gov.uk/id/local-authority-district/22UN,Housing Services,5140 - Homelessness,4680 - Bed & Breakfast Accommodation,10/01/2012,2091792-1,70,REDACTED PERSONAL DATA,REDACTED PERSONAL DATA
Tendring DC,http://statistics.data.gov.uk/id/local-authority-district/22UN,Housing Services,5140 - Homelessness,4680 - Bed & Breakfast Accommodation,10/01/2012,2091793-1,360,REDACTED PERSONAL DATA,REDACTED PERSONAL DATA
Tendring DC,http://statistics.data.gov.uk/id/local-authority-district/22UN,Housing Services,5140 - Homelessness,4680 - Bed & Breakfast Accommodation,10/01/2012,2091794-1,360,REDACTED PERSONAL DATA,REDACTED PERSONAL DATA
Tendring DC,http://statistics.data.gov.uk/id/local-authority-district/22UN,Housing Services,5140 - Homelessness,4680 - Bed & Breakfast Accommodation,10/01/2012,2091795-1,300,REDACTED PERSONAL DATA,REDACTED PERSONAL DATA
Tendring DC,http://statistics.data.gov.uk/id/local-authority-district/22UN,Housing Services,5140 - Homelessness,4680 - Bed & Breakfast Accommodation,10/01/2012,2091796-1,280,REDACTED PERSONAL DATA,REDACTED PERSONAL DATA
Tendring DC,http://statistics.data.gov.uk/id/local-authority-district/22UN,Housing Services,5140 - Homelessness,4680 - Bed & Breakfast Accommodation,10/01/2012,2091797-1,280,REDACTED PERSONAL DATA,REDACTED PERSONAL DATA
Tendring DC,http://statistics.data.gov.uk/id/local-authority-district/22UN,Housing Services,5140 - Homelessness,4680 - Bed & Breakfast Accommodation,10/01/2012,2091798-1,175,REDACTED PERSONAL DATA,REDACTED PERSONAL DATA
Tendring DC,http://statistics.data.gov.uk/id/local-authority-district/22UN,Housing Services,5140 - Homelessness,4680 - Bed & Breakfast Accommodation,10/01/2012,2091799-1,175,REDACTED PERSONAL DATA,REDACTED PERSONAL DATA
Tendring DC,http://statistics.data.gov.uk/id/local-authority-district/22UN,Housing Services,5140 - Homelessness,4680 - Bed & Breakfast Accommodation,10/01/2012,2091800-1,125,REDACTED PERSONAL DATA,REDACTED PERSONAL DATA
Tendring DC,http://statistics.data.gov.uk/id/local-authority-district/22UN,Housing Services,5480 - Repair & Maintenance,2094 - Chimneys,24/01/2012,2092556-1,80,REDACTED PERSONAL DATA,REDACTED PERSONAL DATA
Tendring DC,http://statistics.data.gov.uk/id/local-authority-district/22UN,Housing Services,5360 - Sheltered Units,4404 - Service Agreement - Foundry Court,03/01/2012,1046968-1,1465.36,REDACTED COMMERCIAL CONFIDENTIALITY,REDACTED COMMERCIAL CONFIDENTIALITY
Tendring DC,http://statistics.data.gov.uk/id/local-authority-district/22UN,Housing Services,5240 - Managing Tenancies,5248 - Estate Management Expenses,24/01/2012,2092562-1,45,REDACTED PERSONAL DATA,REDACTED PERSONAL DATA
Tendring DC,http://statistics.data.gov.uk/id/local-authority-district/22UN,Housing Services,5260 - Rent Collection And Accounting,4460 - Legal & Professional Expenses,23/01/2012,2092420-1,1150,2100304 - CO-OP Bank,Visa Card Dec/Jan
Tendring DC,http://statistics.data.gov.uk/id/local-authority-district/22UN,Housing Services,6620 - Corporate Management - General,5190 - Bank Commission Charges,23/01/2012,2092420-2,2,2100304 - CO-OP Bank,Visa Card Dec/Jan
Tendring DC,http://statistics.data.gov.uk/id/local-authority-district/22UN,Housing Services,5340 - Communal Central Heating,2308 - Energy Costs - Gas (Including LPG),24/01/2012,2092432-1,8211.86,2104620 - Corona Energy Retail 4 Limited,Gas November 11
Tendring DC,http://statistics.data.gov.uk/id/local-authority-district/22UN,Housing Services,5360 - Sheltered Units,2308 - Energy Costs - Gas (Including LPG),24/01/2012,2092432-2,70.5,2104620 - Corona Energy Retail 4 Limited,Gas November 11
Tendring DC,http://statistics.data.gov.uk/id/local-authority-district/22UN,Housing Services,5140 - Homelessness,4683 - Other Homelessness Expenses,31/01/2012,2092887-1,400,REDACTED PERSONAL DATA,REDACTED PERSONAL DATA
Tendring DC,http://statistics.data.gov.uk/id/local-authority-district/22UN,Housing Services,5140 - Homelessness,4683 - Other Homelessness Expenses,10/01/2012,2092006-1,400,REDACTED PERSONAL DATA,REDACTED PERSONAL DATA
Tendring DC,http://statistics.data.gov.uk/id/local-authority-district/22UN,Housing Services,5140 - Homelessness,4683 - Other Homelessness Expenses,10/01/2012,2092001-1,600,REDACTED PERSONAL DATA,REDACTED PERSONAL DATA
Tendring DC,http://statistics.data.gov.uk/id/local-authority-district/22UN,Housing Services,5140 - Homelessness,4683 - Other Homelessness Expenses,10/01/2012,2092002-1,500,REDACTED PERSONAL DATA,REDACTED PERSONAL DATA
Tendring DC,http://statistics.data.gov.uk/id/local-authority-district/22UN,Housing Services,5480 - Repair & Maintenance,2067 - Other Minor Equipment  Servicing (Hoists Etc),03/01/2012,1046960-1,216,REDACTED PERSONAL DATA,REDACTED PERSONAL DATA
Tendring DC,http://statistics.data.gov.uk/id/local-authority-district/22UN,Housing Services,5480 - Repair & Maintenance,2017 - Mechanical Equipment /Extract Fans,17/01/2012,2092210-1,89,REDACTED PERSONAL DATA,REDACTED PERSONAL DATA
Tendring DC,http://statistics.data.gov.uk/id/local-authority-district/22UN,Housing Services,5480 - Repair & Maintenance,2060 - Fire Fighting Equipment Repairs,03/01/2012,1046954-1,18.9,REDACTED PERSONAL DATA,REDACTED PERSONAL DATA
Tendring DC,http://statistics.data.gov.uk/id/local-authority-district/22UN,Housing Services,5480 - Repair & Maintenance,2058 - Fire Alarms Repairs,03/01/2012,1046952-1,100,REDACTED PERSONAL DATA,REDACTED PERSONAL DATA
Tendring DC,http://statistics.data.gov.uk/id/local-authority-district/22UN,Housing Services,5480 - Repair & Maintenance,2058 - Fire Alarms Repairs,03/01/2012,1046962-1,125,REDACTED PERSONAL DATA,REDACTED PERSONAL DATA
Tendring DC,http://statistics.data.gov.uk/id/local-authority-district/22UN,Housing Services,5480 - Repair & Maintenance,2058 - Fire Alarms Repairs,03/01/2012,1046963-1,140,REDACTED PERSONAL DATA,REDACTED PERSONAL DATA
Tendring DC,http://statistics.data.gov.uk/id/local-authority-district/22UN,Housing Services,5480 - Repair & Maintenance,2058 - Fire Alarms Repairs,10/01/2012,1047054-1,50,REDACTED PERSONAL DATA,REDACTED PERSONAL DATA
Tendring DC,http://statistics.data.gov.uk/id/local-authority-district/22UN,Housing Services,5480 - Repair & Maintenance,2058 - Fire Alarms Repairs,10/01/2012,1047055-1,50,REDACTED PERSONAL DATA,REDACTED PERSONAL DATA
Tendring DC,http://statistics.data.gov.uk/id/local-authority-district/22UN,Housing Services,5480 - Repair & Maintenance,2058 - Fire Alarms Repairs,10/01/2012,1047056-1,367.2,REDACTED PERSONAL DATA,REDACTED PERSONAL DATA
Tendring DC,http://statistics.data.gov.uk/id/local-authority-district/22UN,Housing Services,5480 - Repair & Maintenance,2058 - Fire Alarms Repairs,10/01/2012,1047057-1,1832.9,REDACTED PERSONAL DATA,REDACTED PERSONAL DATA
Tendring DC,http://statistics.data.gov.uk/id/local-authority-district/22UN,Housing Services,5480 - Repair & Maintenance,2058 - Fire Alarms Repairs,10/01/2012,1047058-1,100,REDACTED PERSONAL DATA,REDACTED PERSONAL DATA
Tendring DC,http://statistics.data.gov.uk/id/local-authority-district/22UN,Housing Services,5480 - Repair & Maintenance,2058 - Fire Alarms Repairs,17/01/2012,2092382-1,50,2108583 - Firesite,Groom House
Tendring DC,http://statistics.data.gov.uk/id/local-authority-district/22UN,Housing Services,5480 - Repair & Maintenance,2058 - Fire Alarms Repairs,31/01/2012,2092678-1,50,REDACTED PERSONAL DATA,REDACTED PERSONAL DATA
Tendring DC,http://statistics.data.gov.uk/id/local-authority-district/22UN,Housing Services,5480 - Repair & Maintenance,2082 - CCTV repairs,10/01/2012,1047060-1,50,REDACTED PERSONAL DATA,REDACTED PERSONAL DATA
Tendring DC,http://statistics.data.gov.uk/id/local-authority-district/22UN,Housing Services,5480 - Repair & Maintenance,2082 - CCTV repairs,31/01/2012,2092681-1,93,REDACTED PERSONAL DATA,REDACTED PERSONAL DATA
Tendring DC,http://statistics.data.gov.uk/id/local-authority-district/22UN,Housing Services,5480 - Repair & Maintenance,2018 - Other  Responsive Repairs,24/01/2012,2092557-1,26.5,REDACTED PERSONAL DATA,REDACTED PERSONAL DATA
Tendring DC,http://statistics.data.gov.uk/id/local-authority-district/22UN,Housing Services,5140 - Homelessness,4683 - Other Homelessness Expenses,31/01/2012,2092885-1,475,REDACTED PERSONAL DATA,REDACTED PERSONAL DATA
Tendring DC,http://statistics.data.gov.uk/id/local-authority-district/22UN,Housing Services,5240 - Managing Tenancies,6625 - Tenants Compensation Scheme,10/01/2012,2091804-1,154,REDACTED COMMERCIAL CONFIDENTIALITY,REDACTED COMMERCIAL CONFIDENTIALITY
Tendring DC,http://statistics.data.gov.uk/id/local-authority-district/22UN,Housing Services,5240 - Managing Tenancies,6625 - Tenants Compensation Scheme,10/01/2012,2091804-2,10,REDACTED COMMERCIAL CONFIDENTIALITY,REDACTED COMMERCIAL CONFIDENTIALITY
Tendring DC,http://statistics.data.gov.uk/id/local-authority-district/22UN,Housing Services,5480 - Repair & Maintenance,2017 - Mechanical Equipment /Extract Fans,03/01/2012,1046961-1,50,REDACTED PERSONAL DATA,REDACTED PERSONAL DATA
Tendring DC,http://statistics.data.gov.uk/id/local-authority-district/22UN,Housing Services,5480 - Repair & Maintenance,2017 - Mechanical Equipment /Extract Fans,10/01/2012,1047065-1,345,REDACTED PERSONAL DATA,REDACTED PERSONAL DATA
Tendring DC,http://statistics.data.gov.uk/id/local-authority-district/22UN,Housing Services,5480 - Repair & Maintenance,2017 - Mechanical Equipment /Extract Fans,10/01/2012,1047066-1,305,REDACTED PERSONAL DATA,REDACTED PERSONAL DATA
Tendring DC,http://statistics.data.gov.uk/id/local-authority-district/22UN,Housing Services,5480 - Repair & Maintenance,2017 - Mechanical Equipment /Extract Fans,24/01/2012,2092386-1,50,REDACTED PERSONAL DATA,REDACTED PERSONAL DATA
Tendring DC,http://statistics.data.gov.uk/id/local-authority-district/22UN,Housing Services,5240 - Managing Tenancies,5242 - Tenant Relations,03/01/2012,2091671-1,250,REDACTED COMMERCIAL CONFIDENTIALITY,REDACTED COMMERCIAL CONFIDENTIALITY
Tendring DC,http://statistics.data.gov.uk/id/local-authority-district/22UN,Housing Services,5240 - Managing Tenancies,5242 - Tenant Relations,03/01/2012,1046957-1,88,REDACTED PERSONAL DATA,REDACTED PERSONAL DATA
Tendring DC,http://statistics.data.gov.uk/id/local-authority-district/22UN,Housing Services,5260 - Rent Collection And Accounting,4460 - Legal & Professional Expenses,10/01/2012,2091841-1,110,REDACTED COMMERCIAL CONFIDENTIALITY,REDACTED COMMERCIAL CONFIDENTIALITY
Tendring DC,http://statistics.data.gov.uk/id/local-authority-district/22UN,Housing Services,5260 - Rent Collection And Accounting,4460 - Legal & Professional Expenses,10/01/2012,2091842-1,110,REDACTED COMMERCIAL CONFIDENTIALITY,REDACTED COMMERCIAL CONFIDENTIALITY
Tendring DC,http://statistics.data.gov.uk/id/local-authority-district/22UN,Housing Services,5260 - Rent Collection And Accounting,4460 - Legal & Professional Expenses,24/01/2012,2092504-1,110,REDACTED COMMERCIAL CONFIDENTIALITY,REDACTED COMMERCIAL CONFIDENTIALITY
Tendring DC,http://statistics.data.gov.uk/id/local-authority-district/22UN,Housing Services,5260 - Rent Collection And Accounting,4460 - Legal & Professional Expenses,24/01/2012,2092505-1,110,REDACTED COMMERCIAL CONFIDENTIALITY,REDACTED COMMERCIAL CONFIDENTIALITY
Tendring DC,http://statistics.data.gov.uk/id/local-authority-district/22UN,Housing Services,5260 - Rent Collection And Accounting,4460 - Legal & Professional Expenses,24/01/2012,2092506-1,45,REDACTED COMMERCIAL CONFIDENTIALITY,REDACTED COMMERCIAL CONFIDENTIALITY
Tendring DC,http://statistics.data.gov.uk/id/local-authority-district/22UN,Housing Services,5260 - Rent Collection And Accounting,4460 - Legal & Professional Expenses,24/01/2012,2092507-1,45,REDACTED COMMERCIAL CONFIDENTIALITY,REDACTED COMMERCIAL CONFIDENTIALITY
Tendring DC,http://statistics.data.gov.uk/id/local-authority-district/22UN,Housing Services,H805 - Major Refurbishment of Heating,C200 - Main Contractor,03/01/2012,1046964-1,81.6,REDACTED PERSONAL DATA,REDACTED PERSONAL DATA
Tendring DC,http://statistics.data.gov.uk/id/local-authority-district/22UN,Housing Services,H805 - Major Refurbishment of Heating,C200 - Main Contractor,10/01/2012,1047063-1,41.28,REDACTED PERSONAL DATA,REDACTED PERSONAL DATA
Tendring DC,http://statistics.data.gov.uk/id/local-authority-district/22UN,Housing Services,H805 - Major Refurbishment of Heating,C200 - Main Contractor,17/01/2012,2092249-1,121.36,2100667 - Homebase Ltd,Various
Tendring DC,http://statistics.data.gov.uk/id/local-authority-district/22UN,Housing Services,H805 - Major Refurbishment of Heating,C200 - Main Contractor,24/01/2012,2092552-1,41.23,2100667 - Homebase Ltd,Langham Dr
Tendring DC,http://statistics.data.gov.uk/id/local-authority-district/22UN,Housing Services,1240 - Housing Services Service Unit,1700 - Training - Courses,17/01/2012,2092215-1,371.7,REDACTED COMMERCIAL CONFIDENTIALITY,REDACTED COMMERCIAL CONFIDENTIALITY
Tendring DC,http://statistics.data.gov.uk/id/local-authority-district/22UN,Housing Services,5240 - Managing Tenancies,5242 - Tenant Relations,03/01/2012,2091600-1,1354.5,REDACTED COMMERCIAL CONFIDENTIALITY,REDACTED COMMERCIAL CONFIDENTIALITY
Tendring DC,http://statistics.data.gov.uk/id/local-authority-district/22UN,Housing Services,5480 - Repair & Maintenance,2064 - Domestic Appliance Repairs,24/01/2012,2092516-1,49,REDACTED PERSONAL DATA,REDACTED PERSONAL DATA
Tendring DC,http://statistics.data.gov.uk/id/local-authority-district/22UN,Housing Services,5480 - Repair & Maintenance,2064 - Domestic Appliance Repairs,24/01/2012,2092517-1,60.5,REDACTED PERSONAL DATA,REDACTED PERSONAL DATA
Tendring DC,http://statistics.data.gov.uk/id/local-authority-district/22UN,Housing Services,5480 - Repair & Maintenance,2064 - Domestic Appliance Repairs,24/01/2012,2092518-1,49,REDACTED PERSONAL DATA,REDACTED PERSONAL DATA
Tendring DC,http://statistics.data.gov.uk/id/local-authority-district/22UN,Housing Services,5480 - Repair & Maintenance,2064 - Domestic Appliance Repairs,24/01/2012,2092519-1,49,REDACTED PERSONAL DATA,REDACTED PERSONAL DATA
Tendring DC,http://statistics.data.gov.uk/id/local-authority-district/22UN,Housing Services,5480 - Repair & Maintenance,2064 - Domestic Appliance Repairs,24/01/2012,2092520-1,142.63,REDACTED PERSONAL DATA,REDACTED PERSONAL DATA
Tendring DC,http://statistics.data.gov.uk/id/local-authority-district/22UN,Housing Services,5480 - Repair & Maintenance,2064 - Domestic Appliance Repairs,24/01/2012,2092521-1,54,REDACTED PERSONAL DATA,REDACTED PERSONAL DATA
Tendring DC,http://statistics.data.gov.uk/id/local-authority-district/22UN,Housing Services,5480 - Repair & Maintenance,2064 - Domestic Appliance Repairs,24/01/2012,2092522-1,49,REDACTED PERSONAL DATA,REDACTED PERSONAL DATA
Tendring DC,http://statistics.data.gov.uk/id/local-authority-district/22UN,Housing Services,5480 - Repair & Maintenance,2064 - Domestic Appliance Repairs,24/01/2012,2092523-1,49,REDACTED PERSONAL DATA,REDACTED PERSONAL DATA
Tendring DC,http://statistics.data.gov.uk/id/local-authority-district/22UN,Housing Services,5480 - Repair & Maintenance,2064 - Domestic Appliance Repairs,24/01/2012,2092524-1,49,REDACTED PERSONAL DATA,REDACTED PERSONAL DATA
Tendring DC,http://statistics.data.gov.uk/id/local-authority-district/22UN,Housing Services,5480 - Repair & Maintenance,2014 - Decoration Allowances,03/01/2012,1046953-1,910.16,REDACTED PERSONAL DATA,REDACTED PERSONAL DATA
Tendring DC,http://statistics.data.gov.uk/id/local-authority-district/22UN,Housing Services,5480 - Repair & Maintenance,2014 - Decoration Allowances,17/01/2012,2092213-1,679.01,REDACTED PERSONAL DATA,REDACTED PERSONAL DATA
Tendring DC,http://statistics.data.gov.uk/id/local-authority-district/22UN,Housing Services,5240 - Managing Tenancies,5242 - Tenant Relations,10/01/2012,2091834-1,10,REDACTED PERSONAL DATA,REDACTED PERSONAL DATA
Tendring DC,http://statistics.data.gov.uk/id/local-authority-district/22UN,Housing Services,5480 - Repair & Maintenance,2062 - Communal TV Aerials Repairs,03/01/2012,1046956-1,150,REDACTED PERSONAL DATA,REDACTED PERSONAL DATA
Tendring DC,http://statistics.data.gov.uk/id/local-authority-district/22UN,Housing Services,5480 - Repair & Maintenance,2062 - Communal TV Aerials Repairs,10/01/2012,1047064-1,45,REDACTED PERSONAL DATA,REDACTED PERSONAL DATA
Tendring DC,http://statistics.data.gov.uk/id/local-authority-district/22UN,Housing Services,5480 - Repair & Maintenance,2062 - Communal TV Aerials Repairs,10/01/2012,2091787-1,145,REDACTED PERSONAL DATA,REDACTED PERSONAL DATA
Tendring DC,http://statistics.data.gov.uk/id/local-authority-district/22UN,Housing Services,5480 - Repair & Maintenance,2056 - Electric Heating Repairs,17/01/2012,2092211-1,60,REDACTED PERSONAL DATA,REDACTED PERSONAL DATA
Tendring DC,http://statistics.data.gov.uk/id/local-authority-district/22UN,Housing Services,5480 - Repair & Maintenance,2062 - Communal TV Aerials Repairs,17/01/2012,2092212-1,45,REDACTED PERSONAL DATA,REDACTED PERSONAL DATA
Tendring DC,http://statistics.data.gov.uk/id/local-authority-district/22UN,Housing Services,5480 - Repair & Maintenance,2062 - Communal TV Aerials Repairs,31/01/2012,2092676-1,55,REDACTED PERSONAL DATA,REDACTED PERSONAL DATA
Tendring DC,http://statistics.data.gov.uk/id/local-authority-district/22UN,Housing Services,5480 - Repair & Maintenance,2062 - Communal TV Aerials Repairs,31/01/2012,2092677-1,45,REDACTED PERSONAL DATA,REDACTED PERSONAL DATA
Tendring DC,http://statistics.data.gov.uk/id/local-authority-district/22UN,Housing Services,5260 - Rent Collection And Accounting,4312 - Tenancy Stationery,24/01/2012,2092565-1,712.95,REDACTED COMMERCIAL CONFIDENTIALITY,REDACTED COMMERCIAL CONFIDENTIALITY
Tendring DC,http://statistics.data.gov.uk/id/local-authority-district/22UN,Housing Services,5260 - Rent Collection And Accounting,4312 - Tenancy Stationery,31/01/2012,2092668-1,3050,REDACTED COMMERCIAL CONFIDENTIALITY,REDACTED COMMERCIAL CONFIDENTIALITY
Tendring DC,http://statistics.data.gov.uk/id/local-authority-district/22UN,Housing Services,H800 - Structural Repairs,C200 - Main Contractor,10/01/2012,2091806-1,750,REDACTED PERSONAL DATA,REDACTED PERSONAL DATA
Tendring DC,http://statistics.data.gov.uk/id/local-authority-district/22UN,Housing Services,1240 - Housing Services Service Unit,1700 - Training - Courses,31/01/2012,2092667-1,365,REDACTED PERSONAL DATA,REDACTED PERSONAL DATA
Tendring DC,http://statistics.data.gov.uk/id/local-authority-district/22UN,Housing Services,5140 - Homelessness,4683 - Other Homelessness Expenses,10/01/2012,2092005-1,600,REDACTED PERSONAL DATA,REDACTED PERSONAL DATA
Tendring DC,http://statistics.data.gov.uk/id/local-authority-district/22UN,Housing Services,5220 - Policy & Management,5930 - Business Planning Expenses,24/01/2012,1047144-1,199,REDACTED COMMERCIAL CONFIDENTIALITY,REDACTED COMMERCIAL CONFIDENTIALITY
Tendring DC,http://statistics.data.gov.uk/id/local-authority-district/22UN,Housing Services,5220 - Policy & Management,4312 - Tenancy Stationery,03/01/2012,1046967-1,72.97,REDACTED COMMERCIAL CONFIDENTIALITY,REDACTED COMMERCIAL CONFIDENTIALITY
Tendring DC,http://statistics.data.gov.uk/id/local-authority-district/22UN,Housing Services,5240 - Managing Tenancies,4312 - Tenancy Stationery,31/01/2012,2092669-1,58.88,REDACTED COMMERCIAL CONFIDENTIALITY,REDACTED COMMERCIAL CONFIDENTIALITY
Tendring DC,http://statistics.data.gov.uk/id/local-authority-district/22UN,Housing Services,5240 - Managing Tenancies,4312 - Tenancy Stationery,31/01/2012,2092670-1,24.67,REDACTED COMMERCIAL CONFIDENTIALITY,REDACTED COMMERCIAL CONFIDENTIALITY
Tendring DC,http://statistics.data.gov.uk/id/local-authority-district/22UN,Housing Services,5480 - Repair & Maintenance,2017 - Mechanical Equipment /Extract Fans,03/01/2012,1046950-1,91,REDACTED PERSONAL DATA,REDACTED PERSONAL DATA
Tendring DC,http://statistics.data.gov.uk/id/local-authority-district/22UN,Housing Services,5480 - Repair & Maintenance,2017 - Mechanical Equipment /Extract Fans,03/01/2012,2091691-1,91,REDACTED PERSONAL DATA,REDACTED PERSONAL DATA
Tendring DC,http://statistics.data.gov.uk/id/local-authority-district/22UN,Housing Services,5480 - Repair & Maintenance,2017 - Mechanical Equipment /Extract Fans,17/01/2012,2092323-1,706.3,REDACTED PERSONAL DATA,REDACTED PERSONAL DATA
Tendring DC,http://statistics.data.gov.uk/id/local-authority-district/22UN,Housing Services,5480 - Repair & Maintenance,2017 - Mechanical Equipment /Extract Fans,17/01/2012,2092324-1,706.3,REDACTED PERSONAL DATA,REDACTED PERSONAL DATA
Tendring DC,http://statistics.data.gov.uk/id/local-authority-district/22UN,Housing Services,5240 - Managing Tenancies,5248 - Estate Management Expenses,03/01/2012,1046955-1,115.5,REDACTED PERSONAL DATA,REDACTED PERSONAL DATA
Tendring DC,http://statistics.data.gov.uk/id/local-authority-district/22UN,Housing Services,5140 - Homelessness,4680 - Bed & Breakfast Accommodation,10/01/2012,1047069-1,60,REDACTED PERSONAL DATA,REDACTED PERSONAL DATA
Tendring DC,http://statistics.data.gov.uk/id/local-authority-district/22UN,Housing Services,5140 - Homelessness,9032 - Homelessness Accommodation Charges,10/01/2012,1047069-2,-6.09,REDACTED PERSONAL DATA,REDACTED PERSONAL DATA
Tendring DC,http://statistics.data.gov.uk/id/local-authority-district/22UN,Housing Services,5140 - Homelessness,4680 - Bed & Breakfast Accommodation,10/01/2012,1047070-1,140,REDACTED PERSONAL DATA,REDACTED PERSONAL DATA
Tendring DC,http://statistics.data.gov.uk/id/local-authority-district/22UN,Housing Services,5140 - Homelessness,9032 - Homelessness Accommodation Charges,10/01/2012,1047070-2,-14.18,REDACTED PERSONAL DATA,REDACTED PERSONAL DATA
Tendring DC,http://statistics.data.gov.uk/id/local-authority-district/22UN,Housing Services,5140 - Homelessness,4680 - Bed & Breakfast Accommodation,03/01/2012,2091640-1,140,REDACTED PERSONAL DATA,REDACTED PERSONAL DATA
Tendring DC,http://statistics.data.gov.uk/id/local-authority-district/22UN,Housing Services,5140 - Homelessness,9032 - Homelessness Accommodation Charges,03/01/2012,2091640-2,-14.18,REDACTED PERSONAL DATA,REDACTED PERSONAL DATA
Tendring DC,http://statistics.data.gov.uk/id/local-authority-district/22UN,Housing Services,5140 - Homelessness,4680 - Bed & Breakfast Accommodation,03/01/2012,2091641-1,80,REDACTED PERSONAL DATA,REDACTED PERSONAL DATA
Tendring DC,http://statistics.data.gov.uk/id/local-authority-district/22UN,Housing Services,5140 - Homelessness,9032 - Homelessness Accommodation Charges,03/01/2012,2091641-2,-8.12,REDACTED PERSONAL DATA,REDACTED PERSONAL DATA
Tendring DC,http://statistics.data.gov.uk/id/local-authority-district/22UN,Housing Services,5140 - Homelessness,4680 - Bed & Breakfast Accommodation,03/01/2012,2091642-1,140,REDACTED PERSONAL DATA,REDACTED PERSONAL DATA
Tendring DC,http://statistics.data.gov.uk/id/local-authority-district/22UN,Housing Services,5140 - Homelessness,9032 - Homelessness Accommodation Charges,03/01/2012,2091642-2,-14.18,REDACTED PERSONAL DATA,REDACTED PERSONAL DATA
Tendring DC,http://statistics.data.gov.uk/id/local-authority-district/22UN,Housing Services,5140 - Homelessness,4680 - Bed & Breakfast Accommodation,03/01/2012,2091643-1,140,REDACTED PERSONAL DATA,REDACTED PERSONAL DATA
Tendring DC,http://statistics.data.gov.uk/id/local-authority-district/22UN,Housing Services,5140 - Homelessness,9032 - Homelessness Accommodation Charges,03/01/2012,2091643-2,-14.18,REDACTED PERSONAL DATA,REDACTED PERSONAL DATA
Tendring DC,http://statistics.data.gov.uk/id/local-authority-district/22UN,Housing Services,5140 - Homelessness,4680 - Bed & Breakfast Accommodation,17/01/2012,2092362-1,100,REDACTED COMMERCIAL CONFIDENTIALITY,REDACTED COMMERCIAL CONFIDENTIALITY
Tendring DC,http://statistics.data.gov.uk/id/local-authority-district/22UN,Housing Services,5140 - Homelessness,4683 - Other Homelessness Expenses,10/01/2012,2092000-1,550,REDACTED PERSONAL DATA,REDACTED PERSONAL DATA
Tendring DC,http://statistics.data.gov.uk/id/local-authority-district/22UN,Housing Services,5140 - Homelessness,4683 - Other Homelessness Expenses,31/01/2012,2092790-1,75,REDACTED PERSONAL DATA,REDACTED PERSONAL DATA
Tendring DC,http://statistics.data.gov.uk/id/local-authority-district/22UN,Housing Services,9920 - HRA Balance Sheet,B860 - Housing Rents - Cash,24/01/2012,2092498-1,148.12,REDACTED PERSONAL DATA,REDACTED PERSONAL DATA
Tendring DC,http://statistics.data.gov.uk/id/local-authority-district/22UN,Housing Services,9920 - HRA Balance Sheet,B860 - Housing Rents - Cash,24/01/2012,2092502-1,90,REDACTED PERSONAL DATA,REDACTED PERSONAL DATA
Tendring DC,http://statistics.data.gov.uk/id/local-authority-district/22UN,Housing Services,9920 - HRA Balance Sheet,B860 - Housing Rents - Cash,31/01/2012,2092789-1,167.1,REDACTED PERSONAL DATA,REDACTED PERSONAL DATA
Tendring DC,http://statistics.data.gov.uk/id/local-authority-district/22UN,Housing Services,9920 - HRA Balance Sheet,B860 - Housing Rents - Cash,24/01/2012,2092497-1,267.1,REDACTED PERSONAL DATA,REDACTED PERSONAL DATA
Tendring DC,http://statistics.data.gov.uk/id/local-authority-district/22UN,Housing Services,5240 - Managing Tenancies,5242 - Tenant Relations,10/01/2012,2091832-1,10,REDACTED PERSONAL DATA,REDACTED PERSONAL DATA
Tendring DC,http://statistics.data.gov.uk/id/local-authority-district/22UN,Housing Services,9920 - HRA Balance Sheet,B860 - Housing Rents - Cash,24/01/2012,2092496-1,24.97,REDACTED PERSONAL DATA,REDACTED PERSONAL DATA
Tendring DC,http://statistics.data.gov.uk/id/local-authority-district/22UN,Housing Services,9920 - HRA Balance Sheet,B860 - Housing Rents - Cash,10/01/2012,2091838-1,108.33,REDACTED PERSONAL DATA,REDACTED PERSONAL DATA
Tendring DC,http://statistics.data.gov.uk/id/local-authority-district/22UN,Housing Services,9920 - HRA Balance Sheet,B860 - Housing Rents - Cash,31/01/2012,2092787-1,161.9,REDACTED PERSONAL DATA,REDACTED PERSONAL DATA
Tendring DC,http://statistics.data.gov.uk/id/local-authority-district/22UN,Housing Services,5140 - Homelessness,4683 - Other Homelessness Expenses,17/01/2012,2092360-1,173.57,REDACTED PERSONAL DATA,REDACTED PERSONAL DATA
Tendring DC,http://statistics.data.gov.uk/id/local-authority-district/22UN,Housing Services,9920 - HRA Balance Sheet,B860 - Housing Rents - Cash,24/01/2012,2092501-1,110.4,REDACTED PERSONAL DATA,REDACTED PERSONAL DATA
Tendring DC,http://statistics.data.gov.uk/id/local-authority-district/22UN,Housing Services,9920 - HRA Balance Sheet,B860 - Housing Rents - Cash,24/01/2012,2092503-1,159.16,REDACTED PERSONAL DATA,REDACTED PERSONAL DATA
Tendring DC,http://statistics.data.gov.uk/id/local-authority-district/22UN,Housing Services,9920 - HRA Balance Sheet,B860 - Housing Rents - Cash,24/01/2012,2092499-1,137.22,REDACTED PERSONAL DATA,REDACTED PERSONAL DATA
Tendring DC,http://statistics.data.gov.uk/id/local-authority-district/22UN,Housing Services,9920 - HRA Balance Sheet,B860 - Housing Rents - Cash,31/01/2012,2092786-1,1.49,REDACTED PERSONAL DATA,REDACTED PERSONAL DATA
Tendring DC,http://statistics.data.gov.uk/id/local-authority-district/22UN,Housing Services,5240 - Managing Tenancies,5242 - Tenant Relations,10/01/2012,2091831-1,10,REDACTED PERSONAL DATA,REDACTED PERSONAL DATA
Tendring DC,http://statistics.data.gov.uk/id/local-authority-district/22UN,Housing Services,9920 - HRA Balance Sheet,B860 - Housing Rents - Cash,10/01/2012,2091840-1,157.29,REDACTED PERSONAL DATA,REDACTED PERSONAL DATA
Tendring DC,http://statistics.data.gov.uk/id/local-authority-district/22UN,Housing Services,9920 - HRA Balance Sheet,B860 - Housing Rents - Cash,10/01/2012,2091839-1,66.8,REDACTED PERSONAL DATA,REDACTED PERSONAL DATA
Tendring DC,http://statistics.data.gov.uk/id/local-authority-district/22UN,Housing Services,9920 - HRA Balance Sheet,B860 - Housing Rents - Cash,31/01/2012,2092788-1,28.98,REDACTED PERSONAL DATA,REDACTED PERSONAL DATA
Tendring DC,http://statistics.data.gov.uk/id/local-authority-district/22UN,Housing Services,5240 - Managing Tenancies,5242 - Tenant Relations,10/01/2012,2091833-1,10,REDACTED PERSONAL DATA,REDACTED PERSONAL DATA
Tendring DC,http://statistics.data.gov.uk/id/local-authority-district/22UN,Housing Services,9920 - HRA Balance Sheet,B860 - Housing Rents - Cash,10/01/2012,2091990-1,34.66,REDACTED PERSONAL DATA,REDACTED PERSONAL DATA
Tendring DC,http://statistics.data.gov.uk/id/local-authority-district/22UN,Housing Services,5140 - Homelessness,4683 - Other Homelessness Expenses,10/01/2012,2091835-1,580,REDACTED PERSONAL DATA,REDACTED PERSONAL DATA
Tendring DC,http://statistics.data.gov.uk/id/local-authority-district/22UN,Housing Services,5140 - Homelessness,4683 - Other Homelessness Expenses,10/01/2012,2092003-1,580,REDACTED PERSONAL DATA,REDACTED PERSONAL DATA
Tendring DC,http://statistics.data.gov.uk/id/local-authority-district/22UN,Housing Services,9920 - HRA Balance Sheet,B860 - Housing Rents - Cash,10/01/2012,2091991-1,860.96,REDACTED PERSONAL DATA,REDACTED PERSONAL DATA
Tendring DC,http://statistics.data.gov.uk/id/local-authority-district/22UN,Housing Services,5240 - Managing Tenancies,6625 - Tenants Compensation Scheme,31/01/2012,2092784-1,225,REDACTED PERSONAL DATA,REDACTED PERSONAL DATA
Tendring DC,http://statistics.data.gov.uk/id/local-authority-district/22UN,Housing Services,9920 - HRA Balance Sheet,B860 - Housing Rents - Cash,24/01/2012,1047156-1,114.76,REDACTED PERSONAL DATA,REDACTED PERSONAL DATA
Tendring DC,http://statistics.data.gov.uk/id/local-authority-district/22UN,Housing Services,9920 - HRA Balance Sheet,B860 - Housing Rents - Cash,24/01/2012,2092441-1,210.28,REDACTED PERSONAL DATA,REDACTED PERSONAL DATA
Tendring DC,http://statistics.data.gov.uk/id/local-authority-district/22UN,Housing Services,5240 - Managing Tenancies,5242 - Tenant Relations,10/01/2012,2091829-1,10,REDACTED PERSONAL DATA,REDACTED PERSONAL DATA
Tendring DC,http://statistics.data.gov.uk/id/local-authority-district/22UN,Housing Services,9920 - HRA Balance Sheet,B860 - Housing Rents - Cash,24/01/2012,2092443-1,446.36,REDACTED PERSONAL DATA,REDACTED PERSONAL DATA
Tendring DC,http://statistics.data.gov.uk/id/local-authority-district/22UN,Housing Services,9920 - HRA Balance Sheet,B860 - Housing Rents - Cash,24/01/2012,2092500-1,19.8,REDACTED PERSONAL DATA,REDACTED PERSONAL DATA
Tendring DC,http://statistics.data.gov.uk/id/local-authority-district/22UN,Housing Services,5140 - Homelessness,4683 - Other Homelessness Expenses,10/01/2012,2091996-1,400,REDACTED PERSONAL DATA,REDACTED PERSONAL DATA
Tendring DC,http://statistics.data.gov.uk/id/local-authority-district/22UN,Housing Services,5140 - Homelessness,4683 - Other Homelessness Expenses,10/01/2012,2091997-1,750,REDACTED PERSONAL DATA,REDACTED PERSONAL DATA
Tendring DC,http://statistics.data.gov.uk/id/local-authority-district/22UN,Housing Services,5140 - Homelessness,4683 - Other Homelessness Expenses,10/01/2012,2091805-1,190,REDACTED COMMERCIAL CONFIDENTIALITY,REDACTED COMMERCIAL CONFIDENTIALITY
Tendring DC,http://statistics.data.gov.uk/id/local-authority-district/22UN,Housing Services,5240 - Managing Tenancies,4644 - Energy Performance Certificate Costs,24/01/2012,2092554-1,1139.68,REDACTED PERSONAL DATA,REDACTED PERSONAL DATA
Tendring DC,http://statistics.data.gov.uk/id/local-authority-district/22UN,Housing Services,5140 - Homelessness,4683 - Other Homelessness Expenses,31/01/2012,2092886-1,274.4,REDACTED PERSONAL DATA,REDACTED PERSONAL DATA
Tendring DC,http://statistics.data.gov.uk/id/local-authority-district/22UN,Housing Services,5480 - Repair & Maintenance,2007 - Responsive Maintenance - Electrical Installations,31/01/2012,2092671-1,225,REDACTED PERSONAL DATA,REDACTED PERSONAL DATA
Tendring DC,http://statistics.data.gov.uk/id/local-authority-district/22UN,Housing Services,5480 - Repair & Maintenance,2007 - Responsive Maintenance - Electrical Installations,31/01/2012,2092672-1,212.4,REDACTED PERSONAL DATA,REDACTED PERSONAL DATA
Tendring DC,http://statistics.data.gov.uk/id/local-authority-district/22UN,Housing Services,5480 - Repair & Maintenance,2007 - Responsive Maintenance - Electrical Installations,31/01/2012,2092673-1,194.4,REDACTED PERSONAL DATA,REDACTED PERSONAL DATA
Tendring DC,http://statistics.data.gov.uk/id/local-authority-district/22UN,Housing Services,5480 - Repair & Maintenance,2007 - Responsive Maintenance - Electrical Installations,31/01/2012,2092674-1,295.2,REDACTED PERSONAL DATA,REDACTED PERSONAL DATA
Tendring DC,http://statistics.data.gov.uk/id/local-authority-district/22UN,Housing Services,5480 - Repair & Maintenance,2007 - Responsive Maintenance - Electrical Installations,31/01/2012,2092675-1,279,REDACTED PERSONAL DATA,REDACTED PERSONAL DATA
Tendring DC,http://statistics.data.gov.uk/id/local-authority-district/22UN,Housing Services,5420 - Communal Cleaning,2706 - Communal Areas Cleaning Expenses,10/01/2012,1047067-1,3521.58,REDACTED PERSONAL DATA,REDACTED PERSONAL DATA
Tendring DC,http://statistics.data.gov.uk/id/local-authority-district/22UN,Housing Services,5240 - Managing Tenancies,5248 - Estate Management Expenses,17/01/2012,2092269-1,95,2107884 - Pinnacle Essex,Mary Warner Road
Tendring DC,http://statistics.data.gov.uk/id/local-authority-district/22UN,Housing Services,5140 - Homelessness,4683 - Other Homelessness Expenses,10/01/2012,2092004-1,458,REDACTED PERSONAL DATA,REDACTED PERSONAL DATA
Tendring DC,http://statistics.data.gov.uk/id/local-authority-district/22UN,Housing Services,6000 - Beach Hut Sites,2100 - Building Repairs,10/01/2012,1047059-1,450,REDACTED COMMERCIAL CONFIDENTIALITY,REDACTED COMMERCIAL CONFIDENTIALITY
Tendring DC,http://statistics.data.gov.uk/id/local-authority-district/22UN,Housing Services,5220 - Policy & Management,4312 - Tenancy Stationery,17/01/2012,2092270-1,878.49,REDACTED COMMERCIAL CONFIDENTIALITY,REDACTED COMMERCIAL CONFIDENTIALITY
Tendring DC,http://statistics.data.gov.uk/id/local-authority-district/22UN,Housing Services,5220 - Policy & Management,4312 - Tenancy Stationery,17/01/2012,2092271-1,276.8,REDACTED COMMERCIAL CONFIDENTIALITY,REDACTED COMMERCIAL CONFIDENTIALITY
Tendring DC,http://statistics.data.gov.uk/id/local-authority-district/22UN,Housing Services,5480 - Repair & Maintenance,2000 - Responsive Maintenance - Miscellaneous,24/01/2012,2092614-1,154167.83,2101187 - Roalco Limited,Roalco
Tendring DC,http://statistics.data.gov.uk/id/local-authority-district/22UN,Housing Services,5240 - Managing Tenancies,5242 - Tenant Relations,10/01/2012,2091830-1,10,REDACTED PERSONAL DATA,REDACTED PERSONAL DATA
Tendring DC,http://statistics.data.gov.uk/id/local-authority-district/22UN,Housing Services,5240 - Managing Tenancies,5242 - Tenant Relations,03/01/2012,1046969-1,70,REDACTED COMMERCIAL CONFIDENTIALITY,REDACTED COMMERCIAL CONFIDENTIALITY
Tendring DC,http://statistics.data.gov.uk/id/local-authority-district/22UN,Housing Services,5240 - Managing Tenancies,5242 - Tenant Relations,17/01/2012,2092247-1,42.6,2101139 - Royal Mail,Large Response Post
Tendring DC,http://statistics.data.gov.uk/id/local-authority-district/22UN,Housing Services,H705 - Window/Door Replacement,C200 - Main Contractor,10/01/2012,2091802-1,915,REDACTED PERSONAL DATA,REDACTED PERSONAL DATA
Tendring DC,http://statistics.data.gov.uk/id/local-authority-district/22UN,Housing Services,H705 - Window/Door Replacement,C200 - Main Contractor,10/01/2012,2091803-1,465,REDACTED PERSONAL DATA,REDACTED PERSONAL DATA
Tendring DC,http://statistics.data.gov.uk/id/local-authority-district/22UN,Housing Services,5140 - Homelessness,4683 - Other Homelessness Expenses,31/01/2012,2092888-1,450,REDACTED PERSONAL DATA,REDACTED PERSONAL DATA
Tendring DC,http://statistics.data.gov.uk/id/local-authority-district/22UN,Housing Services,5240 - Managing Tenancies,5249 - Housing ASB Expenses,31/01/2012,2092769-1,263.16,REDACTED PERSONAL DATA,REDACTED PERSONAL DATA
Tendring DC,http://statistics.data.gov.uk/id/local-authority-district/22UN,Housing Services,5240 - Managing Tenancies,5249 - Housing ASB Expenses,31/01/2012,2092770-1,35.5,REDACTED PERSONAL DATA,REDACTED PERSONAL DATA
Tendring DC,http://statistics.data.gov.uk/id/local-authority-district/22UN,Housing Services,5480 - Repair & Maintenance,2062 - Communal TV Aerials Repairs,10/01/2012,1047068-1,163,REDACTED PERSONAL DATA,REDACTED PERSONAL DATA
Tendring DC,http://statistics.data.gov.uk/id/local-authority-district/22UN,Housing Services,5480 - Repair & Maintenance,2062 - Communal TV Aerials Repairs,17/01/2012,2092264-1,108,2101237 - Sound & Vision,Grove Avenue
Tendring DC,http://statistics.data.gov.uk/id/local-authority-district/22UN,Housing Services,5480 - Repair & Maintenance,2019 - Repair & Maintenance - Keys,24/01/2012,2092558-1,86.11,REDACTED PERSONAL DATA,REDACTED PERSONAL DATA
Tendring DC,http://statistics.data.gov.uk/id/local-authority-district/22UN,Housing Services,5480 - Repair & Maintenance,2019 - Repair & Maintenance - Keys,31/01/2012,2092665-1,121.7,REDACTED PERSONAL DATA,REDACTED PERSONAL DATA
Tendring DC,http://statistics.data.gov.uk/id/local-authority-district/22UN,Housing Services,5480 - Repair & Maintenance,2019 - Repair & Maintenance - Keys,31/01/2012,2092768-1,563.73,2101248 - Spectrum Security Services,Various
Tendring DC,http://statistics.data.gov.uk/id/local-authority-district/22UN,Housing Services,5240 - Managing Tenancies,5242 - Tenant Relations,10/01/2012,2091827-1,10,REDACTED PERSONAL DATA,REDACTED PERSONAL DATA
Tendring DC,http://statistics.data.gov.uk/id/local-authority-district/22UN,Housing Services,5480 - Repair & Maintenance,2075 - Gas Service Contract Servicing/Testing (Domestic I,17/01/2012,2092266-1,3811,2105559 - Sterling,103 checks and service visits
Tendring DC,http://statistics.data.gov.uk/id/local-authority-district/22UN,Housing Services,5240 - Managing Tenancies,5242 - Tenant Relations,03/01/2012,2091644-1,32,REDACTED PERSONAL DATA,REDACTED PERSONAL DATA
Tendring DC,http://statistics.data.gov.uk/id/local-authority-district/22UN,Housing Services,5240 - Managing Tenancies,5242 - Tenant Relations,17/01/2012,2092018-1,32,REDACTED PERSONAL DATA,REDACTED PERSONAL DATA
Tendring DC,http://statistics.data.gov.uk/id/local-authority-district/22UN,Housing Services,5140 - Homelessness,4680 - Bed & Breakfast Accommodation,10/01/2012,2091801-1,198,REDACTED PERSONAL DATA,REDACTED PERSONAL DATA
Tendring DC,http://statistics.data.gov.uk/id/local-authority-district/22UN,Housing Services,5140 - Homelessness,4683 - Other Homelessness Expenses,10/01/2012,2091998-1,150,REDACTED PERSONAL DATA,REDACTED PERSONAL DATA
Tendring DC,http://statistics.data.gov.uk/id/local-authority-district/22UN,Housing Services,5140 - Homelessness,4683 - Other Homelessness Expenses,24/01/2012,2092439-1,214.2,REDACTED PERSONAL DATA,REDACTED PERSONAL DATA
Tendring DC,http://statistics.data.gov.uk/id/local-authority-district/22UN,Housing Services,5140 - Homelessness,4680 - Bed & Breakfast Accommodation,17/01/2012,2092268-1,1100,REDACTED PERSONAL DATA,REDACTED PERSONAL DATA
Tendring DC,http://statistics.data.gov.uk/id/local-authority-district/22UN,Housing Services,5480 - Repair & Maintenance,2016 - PVCu Window And Door Repairs,03/01/2012,1046996-1,26.94,REDACTED PERSONAL DATA,REDACTED PERSONAL DATA
Tendring DC,http://statistics.data.gov.uk/id/local-authority-district/22UN,Housing Services,5480 - Repair & Maintenance,2016 - PVCu Window And Door Repairs,03/01/2012,1046997-1,52.75,REDACTED PERSONAL DATA,REDACTED PERSONAL DATA
Tendring DC,http://statistics.data.gov.uk/id/local-authority-district/22UN,Housing Services,5480 - Repair & Maintenance,2016 - PVCu Window And Door Repairs,03/01/2012,1046998-1,108.05,REDACTED PERSONAL DATA,REDACTED PERSONAL DATA
Tendring DC,http://statistics.data.gov.uk/id/local-authority-district/22UN,Housing Services,5480 - Repair & Maintenance,2016 - PVCu Window And Door Repairs,03/01/2012,1046999-1,25,REDACTED PERSONAL DATA,REDACTED PERSONAL DATA
Tendring DC,http://statistics.data.gov.uk/id/local-authority-district/22UN,Housing Services,5480 - Repair & Maintenance,2016 - PVCu Window And Door Repairs,03/01/2012,1047000-1,25,REDACTED PERSONAL DATA,REDACTED PERSONAL DATA
Tendring DC,http://statistics.data.gov.uk/id/local-authority-district/22UN,Housing Services,5480 - Repair & Maintenance,2016 - PVCu Window And Door Repairs,03/01/2012,1047001-1,25,REDACTED PERSONAL DATA,REDACTED PERSONAL DATA
Tendring DC,http://statistics.data.gov.uk/id/local-authority-district/22UN,Housing Services,5480 - Repair & Maintenance,2016 - PVCu Window And Door Repairs,03/01/2012,1047002-1,25,REDACTED PERSONAL DATA,REDACTED PERSONAL DATA
Tendring DC,http://statistics.data.gov.uk/id/local-authority-district/22UN,Housing Services,5480 - Repair & Maintenance,2016 - PVCu Window And Door Repairs,03/01/2012,1047003-1,25,REDACTED PERSONAL DATA,REDACTED PERSONAL DATA
Tendring DC,http://statistics.data.gov.uk/id/local-authority-district/22UN,Housing Services,5480 - Repair & Maintenance,2016 - PVCu Window And Door Repairs,31/01/2012,1047181-1,25,REDACTED PERSONAL DATA,REDACTED PERSONAL DATA
Tendring DC,http://statistics.data.gov.uk/id/local-authority-district/22UN,Housing Services,5480 - Repair & Maintenance,2016 - PVCu Window And Door Repairs,31/01/2012,1047182-1,25,REDACTED PERSONAL DATA,REDACTED PERSONAL DATA
Tendring DC,http://statistics.data.gov.uk/id/local-authority-district/22UN,Housing Services,5480 - Repair & Maintenance,2016 - PVCu Window And Door Repairs,31/01/2012,1047183-1,34.23,REDACTED PERSONAL DATA,REDACTED PERSONAL DATA
Tendring DC,http://statistics.data.gov.uk/id/local-authority-district/22UN,Housing Services,5480 - Repair & Maintenance,2016 - PVCu Window And Door Repairs,31/01/2012,1047184-1,25,REDACTED PERSONAL DATA,REDACTED PERSONAL DATA
Tendring DC,http://statistics.data.gov.uk/id/local-authority-district/22UN,Housing Services,5480 - Repair & Maintenance,2016 - PVCu Window And Door Repairs,31/01/2012,1047185-1,25,REDACTED PERSONAL DATA,REDACTED PERSONAL DATA
Tendring DC,http://statistics.data.gov.uk/id/local-authority-district/22UN,Housing Services,5480 - Repair & Maintenance,2016 - PVCu Window And Door Repairs,31/01/2012,1047186-1,25,REDACTED PERSONAL DATA,REDACTED PERSONAL DATA
Tendring DC,http://statistics.data.gov.uk/id/local-authority-district/22UN,Housing Services,5480 - Repair & Maintenance,2016 - PVCu Window And Door Repairs,31/01/2012,1047187-1,10.63,REDACTED PERSONAL DATA,REDACTED PERSONAL DATA
Tendring DC,http://statistics.data.gov.uk/id/local-authority-district/22UN,Housing Services,5480 - Repair & Maintenance,2016 - PVCu Window And Door Repairs,31/01/2012,1047188-1,29.12,REDACTED PERSONAL DATA,REDACTED PERSONAL DATA
Tendring DC,http://statistics.data.gov.uk/id/local-authority-district/22UN,Housing Services,5480 - Repair & Maintenance,2016 - PVCu Window And Door Repairs,31/01/2012,1047189-1,28.5,REDACTED PERSONAL DATA,REDACTED PERSONAL DATA
Tendring DC,http://statistics.data.gov.uk/id/local-authority-district/22UN,Housing Services,5480 - Repair & Maintenance,2016 - PVCu Window And Door Repairs,31/01/2012,1047190-1,38.48,REDACTED PERSONAL DATA,REDACTED PERSONAL DATA
Tendring DC,http://statistics.data.gov.uk/id/local-authority-district/22UN,Housing Services,5480 - Repair & Maintenance,2016 - PVCu Window And Door Repairs,31/01/2012,1047191-1,60.5,REDACTED PERSONAL DATA,REDACTED PERSONAL DATA
Tendring DC,http://statistics.data.gov.uk/id/local-authority-district/22UN,Housing Services,5480 - Repair & Maintenance,2016 - PVCu Window And Door Repairs,31/01/2012,1047192-1,25,REDACTED PERSONAL DATA,REDACTED PERSONAL DATA
Tendring DC,http://statistics.data.gov.uk/id/local-authority-district/22UN,Housing Services,5480 - Repair & Maintenance,2016 - PVCu Window And Door Repairs,03/01/2012,2091620-1,25.5,REDACTED PERSONAL DATA,REDACTED PERSONAL DATA
Tendring DC,http://statistics.data.gov.uk/id/local-authority-district/22UN,Housing Services,5480 - Repair & Maintenance,2081 - PVCU Window And Door Servicing,03/01/2012,2091621-1,371.86,REDACTED PERSONAL DATA,REDACTED PERSONAL DATA
Tendring DC,http://statistics.data.gov.uk/id/local-authority-district/22UN,Housing Services,5480 - Repair & Maintenance,2081 - PVCU Window And Door Servicing,03/01/2012,2091622-1,123.04,REDACTED PERSONAL DATA,REDACTED PERSONAL DATA
Tendring DC,http://statistics.data.gov.uk/id/local-authority-district/22UN,Housing Services,5480 - Repair & Maintenance,2081 - PVCU Window And Door Servicing,03/01/2012,2091623-1,158.63,REDACTED PERSONAL DATA,REDACTED PERSONAL DATA
Tendring DC,http://statistics.data.gov.uk/id/local-authority-district/22UN,Housing Services,5480 - Repair & Maintenance,2016 - PVCu Window And Door Repairs,03/01/2012,2091624-1,25,REDACTED PERSONAL DATA,REDACTED PERSONAL DATA
Tendring DC,http://statistics.data.gov.uk/id/local-authority-district/22UN,Housing Services,5480 - Repair & Maintenance,2016 - PVCu Window And Door Repairs,03/01/2012,2091625-1,25,REDACTED PERSONAL DATA,REDACTED PERSONAL DATA
Tendring DC,http://statistics.data.gov.uk/id/local-authority-district/22UN,Housing Services,5480 - Repair & Maintenance,2081 - PVCU Window And Door Servicing,03/01/2012,2091626-1,289.16,REDACTED PERSONAL DATA,REDACTED PERSONAL DATA
Tendring DC,http://statistics.data.gov.uk/id/local-authority-district/22UN,Housing Services,5480 - Repair & Maintenance,2081 - PVCU Window And Door Servicing,03/01/2012,2091627-1,337.35,REDACTED PERSONAL DATA,REDACTED PERSONAL DATA
Tendring DC,http://statistics.data.gov.uk/id/local-authority-district/22UN,Housing Services,5480 - Repair & Maintenance,2081 - PVCU Window And Door Servicing,03/01/2012,2091628-1,197.78,REDACTED PERSONAL DATA,REDACTED PERSONAL DATA
Tendring DC,http://statistics.data.gov.uk/id/local-authority-district/22UN,Housing Services,5480 - Repair & Maintenance,2016 - PVCu Window And Door Repairs,03/01/2012,2091629-1,30.26,REDACTED PERSONAL DATA,REDACTED PERSONAL DATA
Tendring DC,http://statistics.data.gov.uk/id/local-authority-district/22UN,Housing Services,5480 - Repair & Maintenance,2081 - PVCU Window And Door Servicing,03/01/2012,2091630-1,143.85,REDACTED PERSONAL DATA,REDACTED PERSONAL DATA
Tendring DC,http://statistics.data.gov.uk/id/local-authority-district/22UN,Housing Services,5480 - Repair & Maintenance,2081 - PVCU Window And Door Servicing,03/01/2012,2091631-1,108.85,REDACTED PERSONAL DATA,REDACTED PERSONAL DATA
Tendring DC,http://statistics.data.gov.uk/id/local-authority-district/22UN,Housing Services,5480 - Repair & Maintenance,2016 - PVCu Window And Door Repairs,03/01/2012,2091632-1,37.38,REDACTED PERSONAL DATA,REDACTED PERSONAL DATA
Tendring DC,http://statistics.data.gov.uk/id/local-authority-district/22UN,Housing Services,5480 - Repair & Maintenance,2016 - PVCu Window And Door Repairs,03/01/2012,2091633-1,81.53,REDACTED PERSONAL DATA,REDACTED PERSONAL DATA
Tendring DC,http://statistics.data.gov.uk/id/local-authority-district/22UN,Housing Services,5480 - Repair & Maintenance,2016 - PVCu Window And Door Repairs,03/01/2012,2091634-1,85.47,REDACTED PERSONAL DATA,REDACTED PERSONAL DATA
Tendring DC,http://statistics.data.gov.uk/id/local-authority-district/22UN,Housing Services,5480 - Repair & Maintenance,2016 - PVCu Window And Door Repairs,03/01/2012,2091635-1,34.51,REDACTED PERSONAL DATA,REDACTED PERSONAL DATA
Tendring DC,http://statistics.data.gov.uk/id/local-authority-district/22UN,Housing Services,5480 - Repair & Maintenance,2016 - PVCu Window And Door Repairs,03/01/2012,2091636-1,30.26,REDACTED PERSONAL DATA,REDACTED PERSONAL DATA
Tendring DC,http://statistics.data.gov.uk/id/local-authority-district/22UN,Housing Services,5480 - Repair & Maintenance,2016 - PVCu Window And Door Repairs,03/01/2012,2091637-1,42.5,REDACTED PERSONAL DATA,REDACTED PERSONAL DATA
Tendring DC,http://statistics.data.gov.uk/id/local-authority-district/22UN,Housing Services,5480 - Repair & Maintenance,2016 - PVCu Window And Door Repairs,03/01/2012,2091638-1,608.99,REDACTED PERSONAL DATA,REDACTED PERSONAL DATA
Tendring DC,http://statistics.data.gov.uk/id/local-authority-district/22UN,Housing Services,5480 - Repair & Maintenance,2016 - PVCu Window And Door Repairs,03/01/2012,2091639-1,35.71,REDACTED PERSONAL DATA,REDACTED PERSONAL DATA
Tendring DC,http://statistics.data.gov.uk/id/local-authority-district/22UN,Housing Services,5480 - Repair & Maintenance,2016 - PVCu Window And Door Repairs,10/01/2012,2091846-1,25,REDACTED PERSONAL DATA,REDACTED PERSONAL DATA
Tendring DC,http://statistics.data.gov.uk/id/local-authority-district/22UN,Housing Services,5480 - Repair & Maintenance,2016 - PVCu Window And Door Repairs,10/01/2012,2091847-1,25,REDACTED PERSONAL DATA,REDACTED PERSONAL DATA
Tendring DC,http://statistics.data.gov.uk/id/local-authority-district/22UN,Housing Services,5480 - Repair & Maintenance,2016 - PVCu Window And Door Repairs,10/01/2012,2091848-1,25,REDACTED PERSONAL DATA,REDACTED PERSONAL DATA
Tendring DC,http://statistics.data.gov.uk/id/local-authority-district/22UN,Housing Services,5480 - Repair & Maintenance,2016 - PVCu Window And Door Repairs,10/01/2012,2091849-1,25,REDACTED PERSONAL DATA,REDACTED PERSONAL DATA
Tendring DC,http://statistics.data.gov.uk/id/local-authority-district/22UN,Housing Services,5480 - Repair & Maintenance,2016 - PVCu Window And Door Repairs,10/01/2012,2091850-1,25,REDACTED PERSONAL DATA,REDACTED PERSONAL DATA
Tendring DC,http://statistics.data.gov.uk/id/local-authority-district/22UN,Housing Services,5480 - Repair & Maintenance,2016 - PVCu Window And Door Repairs,10/01/2012,2091851-1,32.17,REDACTED PERSONAL DATA,REDACTED PERSONAL DATA
Tendring DC,http://statistics.data.gov.uk/id/local-authority-district/22UN,Housing Services,5480 - Repair & Maintenance,2016 - PVCu Window And Door Repairs,10/01/2012,2091852-1,36.85,REDACTED PERSONAL DATA,REDACTED PERSONAL DATA
Tendring DC,http://statistics.data.gov.uk/id/local-authority-district/22UN,Housing Services,5480 - Repair & Maintenance,2016 - PVCu Window And Door Repairs,10/01/2012,2091853-1,34.51,REDACTED PERSONAL DATA,REDACTED PERSONAL DATA
Tendring DC,http://statistics.data.gov.uk/id/local-authority-district/22UN,Housing Services,5480 - Repair & Maintenance,2016 - PVCu Window And Door Repairs,10/01/2012,2091854-1,28.5,REDACTED PERSONAL DATA,REDACTED PERSONAL DATA
Tendring DC,http://statistics.data.gov.uk/id/local-authority-district/22UN,Housing Services,5480 - Repair & Maintenance,2016 - PVCu Window And Door Repairs,10/01/2012,2091855-1,95.24,REDACTED PERSONAL DATA,REDACTED PERSONAL DATA
Tendring DC,http://statistics.data.gov.uk/id/local-authority-district/22UN,Housing Services,5480 - Repair & Maintenance,2016 - PVCu Window And Door Repairs,10/01/2012,2091856-1,25,REDACTED PERSONAL DATA,REDACTED PERSONAL DATA
Tendring DC,http://statistics.data.gov.uk/id/local-authority-district/22UN,Housing Services,5480 - Repair & Maintenance,2016 - PVCu Window And Door Repairs,10/01/2012,2091857-1,25,REDACTED PERSONAL DATA,REDACTED PERSONAL DATA
Tendring DC,http://statistics.data.gov.uk/id/local-authority-district/22UN,Housing Services,5480 - Repair & Maintenance,2016 - PVCu Window And Door Repairs,10/01/2012,2091858-1,10.63,REDACTED PERSONAL DATA,REDACTED PERSONAL DATA
Tendring DC,http://statistics.data.gov.uk/id/local-authority-district/22UN,Housing Services,5480 - Repair & Maintenance,2016 - PVCu Window And Door Repairs,10/01/2012,2091859-1,25,REDACTED PERSONAL DATA,REDACTED PERSONAL DATA
Tendring DC,http://statistics.data.gov.uk/id/local-authority-district/22UN,Housing Services,5480 - Repair & Maintenance,2016 - PVCu Window And Door Repairs,10/01/2012,2091860-1,25,REDACTED PERSONAL DATA,REDACTED PERSONAL DATA
Tendring DC,http://statistics.data.gov.uk/id/local-authority-district/22UN,Housing Services,5480 - Repair & Maintenance,2016 - PVCu Window And Door Repairs,10/01/2012,2091861-1,10.63,REDACTED PERSONAL DATA,REDACTED PERSONAL DATA
Tendring DC,http://statistics.data.gov.uk/id/local-authority-district/22UN,Housing Services,5480 - Repair & Maintenance,2016 - PVCu Window And Door Repairs,10/01/2012,2091862-1,65.05,REDACTED PERSONAL DATA,REDACTED PERSONAL DATA
Tendring DC,http://statistics.data.gov.uk/id/local-authority-district/22UN,Housing Services,5480 - Repair & Maintenance,2016 - PVCu Window And Door Repairs,10/01/2012,2091863-1,68.41,REDACTED PERSONAL DATA,REDACTED PERSONAL DATA
Tendring DC,http://statistics.data.gov.uk/id/local-authority-district/22UN,Housing Services,5480 - Repair & Maintenance,2081 - PVCU Window And Door Servicing,10/01/2012,2091864-1,216.79,REDACTED PERSONAL DATA,REDACTED PERSONAL DATA
Tendring DC,http://statistics.data.gov.uk/id/local-authority-district/22UN,Housing Services,5480 - Repair & Maintenance,2016 - PVCu Window And Door Repairs,10/01/2012,2091865-1,74.64,REDACTED PERSONAL DATA,REDACTED PERSONAL DATA
Tendring DC,http://statistics.data.gov.uk/id/local-authority-district/22UN,Housing Services,5480 - Repair & Maintenance,2016 - PVCu Window And Door Repairs,10/01/2012,2091866-1,38.21,REDACTED PERSONAL DATA,REDACTED PERSONAL DATA
Tendring DC,http://statistics.data.gov.uk/id/local-authority-district/22UN,Housing Services,5480 - Repair & Maintenance,2016 - PVCu Window And Door Repairs,10/01/2012,2091867-1,69.23,REDACTED PERSONAL DATA,REDACTED PERSONAL DATA
Tendring DC,http://statistics.data.gov.uk/id/local-authority-district/22UN,Housing Services,5480 - Repair & Maintenance,2016 - PVCu Window And Door Repairs,10/01/2012,2091868-1,34.23,REDACTED PERSONAL DATA,REDACTED PERSONAL DATA
Tendring DC,http://statistics.data.gov.uk/id/local-authority-district/22UN,Housing Services,5480 - Repair & Maintenance,2016 - PVCu Window And Door Repairs,10/01/2012,2091869-1,55.86,REDACTED PERSONAL DATA,REDACTED PERSONAL DATA
Tendring DC,http://statistics.data.gov.uk/id/local-authority-district/22UN,Housing Services,5480 - Repair & Maintenance,2016 - PVCu Window And Door Repairs,10/01/2012,2091870-1,72.94,REDACTED PERSONAL DATA,REDACTED PERSONAL DATA
Tendring DC,http://statistics.data.gov.uk/id/local-authority-district/22UN,Housing Services,5480 - Repair & Maintenance,2081 - PVCU Window And Door Servicing,10/01/2012,2091871-1,91.24,REDACTED PERSONAL DATA,REDACTED PERSONAL DATA
Tendring DC,http://statistics.data.gov.uk/id/local-authority-district/22UN,Housing Services,5480 - Repair & Maintenance,2081 - PVCU Window And Door Servicing,10/01/2012,2091872-1,344.56,REDACTED PERSONAL DATA,REDACTED PERSONAL DATA
Tendring DC,http://statistics.data.gov.uk/id/local-authority-district/22UN,Housing Services,5480 - Repair & Maintenance,2016 - PVCu Window And Door Repairs,10/01/2012,2091873-1,31.74,REDACTED PERSONAL DATA,REDACTED PERSONAL DATA
Tendring DC,http://statistics.data.gov.uk/id/local-authority-district/22UN,Housing Services,5480 - Repair & Maintenance,2016 - PVCu Window And Door Repairs,10/01/2012,2091874-1,34.23,REDACTED PERSONAL DATA,REDACTED PERSONAL DATA
Tendring DC,http://statistics.data.gov.uk/id/local-authority-district/22UN,Housing Services,5480 - Repair & Maintenance,2016 - PVCu Window And Door Repairs,10/01/2012,2091875-1,69.45,REDACTED PERSONAL DATA,REDACTED PERSONAL DATA
Tendring DC,http://statistics.data.gov.uk/id/local-authority-district/22UN,Housing Services,5480 - Repair & Maintenance,2016 - PVCu Window And Door Repairs,10/01/2012,2091876-1,69.57,REDACTED PERSONAL DATA,REDACTED PERSONAL DATA
Tendring DC,http://statistics.data.gov.uk/id/local-authority-district/22UN,Housing Services,5480 - Repair & Maintenance,2016 - PVCu Window And Door Repairs,10/01/2012,2091877-1,25,REDACTED PERSONAL DATA,REDACTED PERSONAL DATA
Tendring DC,http://statistics.data.gov.uk/id/local-authority-district/22UN,Housing Services,5480 - Repair & Maintenance,2016 - PVCu Window And Door Repairs,10/01/2012,2091878-1,66.66,REDACTED PERSONAL DATA,REDACTED PERSONAL DATA
Tendring DC,http://statistics.data.gov.uk/id/local-authority-district/22UN,Housing Services,5480 - Repair & Maintenance,2016 - PVCu Window And Door Repairs,10/01/2012,2091879-1,46.13,REDACTED PERSONAL DATA,REDACTED PERSONAL DATA
Tendring DC,http://statistics.data.gov.uk/id/local-authority-district/22UN,Housing Services,5480 - Repair & Maintenance,2016 - PVCu Window And Door Repairs,10/01/2012,2091880-1,25,REDACTED PERSONAL DATA,REDACTED PERSONAL DATA
Tendring DC,http://statistics.data.gov.uk/id/local-authority-district/22UN,Housing Services,5480 - Repair & Maintenance,2016 - PVCu Window And Door Repairs,10/01/2012,2091881-1,69.57,REDACTED PERSONAL DATA,REDACTED PERSONAL DATA
Tendring DC,http://statistics.data.gov.uk/id/local-authority-district/22UN,Housing Services,5480 - Repair & Maintenance,2081 - PVCU Window And Door Servicing,10/01/2012,2091882-1,104.56,REDACTED PERSONAL DATA,REDACTED PERSONAL DATA
Tendring DC,http://statistics.data.gov.uk/id/local-authority-district/22UN,Housing Services,5480 - Repair & Maintenance,2016 - PVCu Window And Door Repairs,10/01/2012,2091883-1,605.91,REDACTED PERSONAL DATA,REDACTED PERSONAL DATA
Tendring DC,http://statistics.data.gov.uk/id/local-authority-district/22UN,Housing Services,5140 - Homelessness,4689 - Special Homelessness Projects Expenses,10/01/2012,2091884-1,92.85,REDACTED PERSONAL DATA,REDACTED PERSONAL DATA
Tendring DC,http://statistics.data.gov.uk/id/local-authority-district/22UN,Housing Services,5480 - Repair & Maintenance,2016 - PVCu Window And Door Repairs,10/01/2012,2091885-1,44.01,REDACTED PERSONAL DATA,REDACTED PERSONAL DATA
Tendring DC,http://statistics.data.gov.uk/id/local-authority-district/22UN,Housing Services,5480 - Repair & Maintenance,2016 - PVCu Window And Door Repairs,10/01/2012,2091906-1,25,REDACTED PERSONAL DATA,REDACTED PERSONAL DATA
Tendring DC,http://statistics.data.gov.uk/id/local-authority-district/22UN,Housing Services,5480 - Repair & Maintenance,2016 - PVCu Window And Door Repairs,10/01/2012,2091907-1,78.59,REDACTED PERSONAL DATA,REDACTED PERSONAL DATA
Tendring DC,http://statistics.data.gov.uk/id/local-authority-district/22UN,Housing Services,5480 - Repair & Maintenance,2016 - PVCu Window And Door Repairs,10/01/2012,2091908-1,50.05,REDACTED PERSONAL DATA,REDACTED PERSONAL DATA
Tendring DC,http://statistics.data.gov.uk/id/local-authority-district/22UN,Housing Services,5480 - Repair & Maintenance,2016 - PVCu Window And Door Repairs,10/01/2012,2091909-1,84.3,REDACTED PERSONAL DATA,REDACTED PERSONAL DATA
Tendring DC,http://statistics.data.gov.uk/id/local-authority-district/22UN,Housing Services,5480 - Repair & Maintenance,2016 - PVCu Window And Door Repairs,10/01/2012,2091910-1,10.63,REDACTED PERSONAL DATA,REDACTED PERSONAL DATA
Tendring DC,http://statistics.data.gov.uk/id/local-authority-district/22UN,Housing Services,5480 - Repair & Maintenance,2016 - PVCu Window And Door Repairs,10/01/2012,2091911-1,34.81,REDACTED PERSONAL DATA,REDACTED PERSONAL DATA
Tendring DC,http://statistics.data.gov.uk/id/local-authority-district/22UN,Housing Services,5480 - Repair & Maintenance,2016 - PVCu Window And Door Repairs,10/01/2012,2091912-1,27.92,REDACTED PERSONAL DATA,REDACTED PERSONAL DATA
Tendring DC,http://statistics.data.gov.uk/id/local-authority-district/22UN,Housing Services,5480 - Repair & Maintenance,2016 - PVCu Window And Door Repairs,10/01/2012,2091913-1,10.63,REDACTED PERSONAL DATA,REDACTED PERSONAL DATA
Tendring DC,http://statistics.data.gov.uk/id/local-authority-district/22UN,Housing Services,5480 - Repair & Maintenance,2016 - PVCu Window And Door Repairs,10/01/2012,2091914-1,28.17,REDACTED PERSONAL DATA,REDACTED PERSONAL DATA
Tendring DC,http://statistics.data.gov.uk/id/local-authority-district/22UN,Housing Services,5480 - Repair & Maintenance,2016 - PVCu Window And Door Repairs,10/01/2012,2091915-1,49.85,REDACTED PERSONAL DATA,REDACTED PERSONAL DATA
Tendring DC,http://statistics.data.gov.uk/id/local-authority-district/22UN,Housing Services,5480 - Repair & Maintenance,2016 - PVCu Window And Door Repairs,10/01/2012,2091916-1,69.57,REDACTED PERSONAL DATA,REDACTED PERSONAL DATA
Tendring DC,http://statistics.data.gov.uk/id/local-authority-district/22UN,Housing Services,5480 - Repair & Maintenance,2016 - PVCu Window And Door Repairs,10/01/2012,2091917-1,184.57,REDACTED PERSONAL DATA,REDACTED PERSONAL DATA
Tendring DC,http://statistics.data.gov.uk/id/local-authority-district/22UN,Housing Services,5480 - Repair & Maintenance,2016 - PVCu Window And Door Repairs,10/01/2012,2091918-1,10.63,REDACTED PERSONAL DATA,REDACTED PERSONAL DATA
Tendring DC,http://statistics.data.gov.uk/id/local-authority-district/22UN,Housing Services,5480 - Repair & Maintenance,2016 - PVCu Window And Door Repairs,10/01/2012,2091919-1,30.26,REDACTED PERSONAL DATA,REDACTED PERSONAL DATA
Tendring DC,http://statistics.data.gov.uk/id/local-authority-district/22UN,Housing Services,5480 - Repair & Maintenance,2016 - PVCu Window And Door Repairs,10/01/2012,2091920-1,34.23,REDACTED PERSONAL DATA,REDACTED PERSONAL DATA
Tendring DC,http://statistics.data.gov.uk/id/local-authority-district/22UN,Housing Services,5480 - Repair & Maintenance,2081 - PVCU Window And Door Servicing,10/01/2012,2091921-1,227.19,REDACTED PERSONAL DATA,REDACTED PERSONAL DATA
Tendring DC,http://statistics.data.gov.uk/id/local-authority-district/22UN,Housing Services,5480 - Repair & Maintenance,2016 - PVCu Window And Door Repairs,17/01/2012,2092206-1,34.51,REDACTED PERSONAL DATA,REDACTED PERSONAL DATA
Tendring DC,http://statistics.data.gov.uk/id/local-authority-district/22UN,Housing Services,5480 - Repair & Maintenance,2016 - PVCu Window And Door Repairs,17/01/2012,2092254-1,38.48,REDACTED PERSONAL DATA,REDACTED PERSONAL DATA
Tendring DC,http://statistics.data.gov.uk/id/local-authority-district/22UN,Housing Services,5480 - Repair & Maintenance,2016 - PVCu Window And Door Repairs,17/01/2012,2092255-1,34.51,REDACTED PERSONAL DATA,REDACTED PERSONAL DATA
Tendring DC,http://statistics.data.gov.uk/id/local-authority-district/22UN,Housing Services,5480 - Repair & Maintenance,2016 - PVCu Window And Door Repairs,17/01/2012,2092256-1,10.63,REDACTED PERSONAL DATA,REDACTED PERSONAL DATA
Tendring DC,http://statistics.data.gov.uk/id/local-authority-district/22UN,Housing Services,5480 - Repair & Maintenance,2016 - PVCu Window And Door Repairs,17/01/2012,2092257-1,25,REDACTED PERSONAL DATA,REDACTED PERSONAL DATA
Tendring DC,http://statistics.data.gov.uk/id/local-authority-district/22UN,Housing Services,5480 - Repair & Maintenance,2016 - PVCu Window And Door Repairs,17/01/2012,2092258-1,295.88,REDACTED PERSONAL DATA,REDACTED PERSONAL DATA
Tendring DC,http://statistics.data.gov.uk/id/local-authority-district/22UN,Housing Services,5480 - Repair & Maintenance,2016 - PVCu Window And Door Repairs,17/01/2012,2092259-1,68.27,REDACTED PERSONAL DATA,REDACTED PERSONAL DATA
Tendring DC,http://statistics.data.gov.uk/id/local-authority-district/22UN,Housing Services,5480 - Repair & Maintenance,2016 - PVCu Window And Door Repairs,17/01/2012,2092260-1,26.07,REDACTED PERSONAL DATA,REDACTED PERSONAL DATA
Tendring DC,http://statistics.data.gov.uk/id/local-authority-district/22UN,Housing Services,5480 - Repair & Maintenance,2016 - PVCu Window And Door Repairs,17/01/2012,2092261-1,50.51,REDACTED PERSONAL DATA,REDACTED PERSONAL DATA
Tendring DC,http://statistics.data.gov.uk/id/local-authority-district/22UN,Housing Services,5480 - Repair & Maintenance,2016 - PVCu Window And Door Repairs,17/01/2012,2092262-1,60.5,REDACTED PERSONAL DATA,REDACTED PERSONAL DATA
Tendring DC,http://statistics.data.gov.uk/id/local-authority-district/22UN,Housing Services,5480 - Repair & Maintenance,2016 - PVCu Window And Door Repairs,24/01/2012,2092458-1,34.51,REDACTED PERSONAL DATA,REDACTED PERSONAL DATA
Tendring DC,http://statistics.data.gov.uk/id/local-authority-district/22UN,Housing Services,5480 - Repair & Maintenance,2016 - PVCu Window And Door Repairs,24/01/2012,2092459-1,26.07,REDACTED PERSONAL DATA,REDACTED PERSONAL DATA
Tendring DC,http://statistics.data.gov.uk/id/local-authority-district/22UN,Housing Services,5480 - Repair & Maintenance,2016 - PVCu Window And Door Repairs,24/01/2012,2092460-1,43.7,REDACTED PERSONAL DATA,REDACTED PERSONAL DATA
Tendring DC,http://statistics.data.gov.uk/id/local-authority-district/22UN,Housing Services,5480 - Repair & Maintenance,2016 - PVCu Window And Door Repairs,24/01/2012,2092461-1,69.81,REDACTED PERSONAL DATA,REDACTED PERSONAL DATA
Tendring DC,http://statistics.data.gov.uk/id/local-authority-district/22UN,Housing Services,5480 - Repair & Maintenance,2016 - PVCu Window And Door Repairs,24/01/2012,2092462-1,25,REDACTED PERSONAL DATA,REDACTED PERSONAL DATA
Tendring DC,http://statistics.data.gov.uk/id/local-authority-district/22UN,Housing Services,5480 - Repair & Maintenance,2081 - PVCU Window And Door Servicing,24/01/2012,2092463-1,279.51,REDACTED PERSONAL DATA,REDACTED PERSONAL DATA
Tendring DC,http://statistics.data.gov.uk/id/local-authority-district/22UN,Housing Services,5480 - Repair & Maintenance,2016 - PVCu Window And Door Repairs,24/01/2012,2092464-1,28.5,REDACTED PERSONAL DATA,REDACTED PERSONAL DATA
Tendring DC,http://statistics.data.gov.uk/id/local-authority-district/22UN,Housing Services,5480 - Repair & Maintenance,2016 - PVCu Window And Door Repairs,24/01/2012,2092465-1,200.44,REDACTED PERSONAL DATA,REDACTED PERSONAL DATA
Tendring DC,http://statistics.data.gov.uk/id/local-authority-district/22UN,Housing Services,5480 - Repair & Maintenance,2016 - PVCu Window And Door Repairs,24/01/2012,2092466-1,128.95,REDACTED PERSONAL DATA,REDACTED PERSONAL DATA
Tendring DC,http://statistics.data.gov.uk/id/local-authority-district/22UN,Housing Services,5480 - Repair & Maintenance,2016 - PVCu Window And Door Repairs,31/01/2012,2092682-1,64.77,REDACTED PERSONAL DATA,REDACTED PERSONAL DATA
Tendring DC,http://statistics.data.gov.uk/id/local-authority-district/22UN,Housing Services,5480 - Repair & Maintenance,2016 - PVCu Window And Door Repairs,31/01/2012,2092683-1,37.52,REDACTED PERSONAL DATA,REDACTED PERSONAL DATA
Tendring DC,http://statistics.data.gov.uk/id/local-authority-district/22UN,Housing Services,5480 - Repair & Maintenance,2016 - PVCu Window And Door Repairs,31/01/2012,2092684-1,50.05,REDACTED PERSONAL DATA,REDACTED PERSONAL DATA
Tendring DC,http://statistics.data.gov.uk/id/local-authority-district/22UN,Housing Services,5480 - Repair & Maintenance,2016 - PVCu Window And Door Repairs,31/01/2012,2092685-1,115.23,REDACTED PERSONAL DATA,REDACTED PERSONAL DATA
Tendring DC,http://statistics.data.gov.uk/id/local-authority-district/22UN,Housing Services,5480 - Repair & Maintenance,2016 - PVCu Window And Door Repairs,31/01/2012,2092686-1,10.63,REDACTED PERSONAL DATA,REDACTED PERSONAL DATA
Tendring DC,http://statistics.data.gov.uk/id/local-authority-district/22UN,Housing Services,5480 - Repair & Maintenance,2016 - PVCu Window And Door Repairs,31/01/2012,2092687-1,69.57,REDACTED PERSONAL DATA,REDACTED PERSONAL DATA
Tendring DC,http://statistics.data.gov.uk/id/local-authority-district/22UN,Housing Services,5480 - Repair & Maintenance,2016 - PVCu Window And Door Repairs,31/01/2012,2092688-1,29.75,REDACTED PERSONAL DATA,REDACTED PERSONAL DATA
Tendring DC,http://statistics.data.gov.uk/id/local-authority-district/22UN,Housing Services,5480 - Repair & Maintenance,2016 - PVCu Window And Door Repairs,31/01/2012,2092689-1,82.69,REDACTED PERSONAL DATA,REDACTED PERSONAL DATA
Tendring DC,http://statistics.data.gov.uk/id/local-authority-district/22UN,Housing Services,5480 - Repair & Maintenance,2016 - PVCu Window And Door Repairs,31/01/2012,2092690-1,129.4,REDACTED PERSONAL DATA,REDACTED PERSONAL DATA
Tendring DC,http://statistics.data.gov.uk/id/local-authority-district/22UN,Housing Services,5480 - Repair & Maintenance,2016 - PVCu Window And Door Repairs,31/01/2012,2092691-1,50.05,REDACTED PERSONAL DATA,REDACTED PERSONAL DATA
Tendring DC,http://statistics.data.gov.uk/id/local-authority-district/22UN,Housing Services,5480 - Repair & Maintenance,2016 - PVCu Window And Door Repairs,31/01/2012,2092692-1,58.76,REDACTED PERSONAL DATA,REDACTED PERSONAL DATA
Tendring DC,http://statistics.data.gov.uk/id/local-authority-district/22UN,Housing Services,5480 - Repair & Maintenance,2016 - PVCu Window And Door Repairs,31/01/2012,2092693-1,33.12,REDACTED PERSONAL DATA,REDACTED PERSONAL DATA
Tendring DC,http://statistics.data.gov.uk/id/local-authority-district/22UN,Housing Services,5480 - Repair & Maintenance,2016 - PVCu Window And Door Repairs,31/01/2012,2092694-1,30.54,REDACTED PERSONAL DATA,REDACTED PERSONAL DATA
Tendring DC,http://statistics.data.gov.uk/id/local-authority-district/22UN,Housing Services,5480 - Repair & Maintenance,2016 - PVCu Window And Door Repairs,31/01/2012,2092695-1,44.51,REDACTED PERSONAL DATA,REDACTED PERSONAL DATA
Tendring DC,http://statistics.data.gov.uk/id/local-authority-district/22UN,Housing Services,5480 - Repair & Maintenance,2016 - PVCu Window And Door Repairs,31/01/2012,2092696-1,25.31,REDACTED PERSONAL DATA,REDACTED PERSONAL DATA
Tendring DC,http://statistics.data.gov.uk/id/local-authority-district/22UN,Housing Services,5480 - Repair & Maintenance,2016 - PVCu Window And Door Repairs,31/01/2012,2092698-1,36.85,REDACTED PERSONAL DATA,REDACTED PERSONAL DATA
Tendring DC,http://statistics.data.gov.uk/id/local-authority-district/22UN,Housing Services,5480 - Repair & Maintenance,2081 - PVCU Window And Door Servicing,31/01/2012,2092699-1,336.5,REDACTED PERSONAL DATA,REDACTED PERSONAL DATA
Tendring DC,http://statistics.data.gov.uk/id/local-authority-district/22UN,Housing Services,5480 - Repair & Maintenance,2016 - PVCu Window And Door Repairs,31/01/2012,2092700-1,10.63,REDACTED PERSONAL DATA,REDACTED PERSONAL DATA
Tendring DC,http://statistics.data.gov.uk/id/local-authority-district/22UN,Housing Services,5480 - Repair & Maintenance,2016 - PVCu Window And Door Repairs,31/01/2012,2092701-1,10.63,REDACTED PERSONAL DATA,REDACTED PERSONAL DATA
Tendring DC,http://statistics.data.gov.uk/id/local-authority-district/22UN,Housing Services,5480 - Repair & Maintenance,2016 - PVCu Window And Door Repairs,31/01/2012,2092702-1,34.23,REDACTED PERSONAL DATA,REDACTED PERSONAL DATA
Tendring DC,http://statistics.data.gov.uk/id/local-authority-district/22UN,Housing Services,5480 - Repair & Maintenance,2016 - PVCu Window And Door Repairs,31/01/2012,2092703-1,34.51,REDACTED PERSONAL DATA,REDACTED PERSONAL DATA
Tendring DC,http://statistics.data.gov.uk/id/local-authority-district/22UN,Housing Services,5480 - Repair & Maintenance,2016 - PVCu Window And Door Repairs,31/01/2012,2092704-1,25.49,REDACTED PERSONAL DATA,REDACTED PERSONAL DATA
Tendring DC,http://statistics.data.gov.uk/id/local-authority-district/22UN,Housing Services,5480 - Repair & Maintenance,2016 - PVCu Window And Door Repairs,31/01/2012,2092705-1,34.51,REDACTED PERSONAL DATA,REDACTED PERSONAL DATA
Tendring DC,http://statistics.data.gov.uk/id/local-authority-district/22UN,Housing Services,5480 - Repair & Maintenance,2016 - PVCu Window And Door Repairs,31/01/2012,2092706-1,40.45,REDACTED PERSONAL DATA,REDACTED PERSONAL DATA
Tendring DC,http://statistics.data.gov.uk/id/local-authority-district/22UN,Housing Services,5480 - Repair & Maintenance,2016 - PVCu Window And Door Repairs,31/01/2012,2092707-1,43.47,REDACTED PERSONAL DATA,REDACTED PERSONAL DATA
Tendring DC,http://statistics.data.gov.uk/id/local-authority-district/22UN,Housing Services,5480 - Repair & Maintenance,2016 - PVCu Window And Door Repairs,31/01/2012,2092708-1,108.71,REDACTED PERSONAL DATA,REDACTED PERSONAL DATA
Tendring DC,http://statistics.data.gov.uk/id/local-authority-district/22UN,Housing Services,5480 - Repair & Maintenance,2016 - PVCu Window And Door Repairs,31/01/2012,2092709-1,43.47,REDACTED PERSONAL DATA,REDACTED PERSONAL DATA
Tendring DC,http://statistics.data.gov.uk/id/local-authority-district/22UN,Housing Services,5480 - Repair & Maintenance,2016 - PVCu Window And Door Repairs,31/01/2012,2092710-1,52.75,REDACTED PERSONAL DATA,REDACTED PERSONAL DATA
Tendring DC,http://statistics.data.gov.uk/id/local-authority-district/22UN,Housing Services,5480 - Repair & Maintenance,2016 - PVCu Window And Door Repairs,31/01/2012,2092711-1,263.49,REDACTED PERSONAL DATA,REDACTED PERSONAL DATA
Tendring DC,http://statistics.data.gov.uk/id/local-authority-district/22UN,Housing Services,5480 - Repair & Maintenance,2016 - PVCu Window And Door Repairs,31/01/2012,2092712-1,34.51,REDACTED PERSONAL DATA,REDACTED PERSONAL DATA
Tendring DC,http://statistics.data.gov.uk/id/local-authority-district/22UN,Housing Services,5480 - Repair & Maintenance,2016 - PVCu Window And Door Repairs,31/01/2012,2092713-1,25.5,REDACTED PERSONAL DATA,REDACTED PERSONAL DATA
Tendring DC,http://statistics.data.gov.uk/id/local-authority-district/22UN,Housing Services,5480 - Repair & Maintenance,2016 - PVCu Window And Door Repairs,31/01/2012,2092714-1,28.5,REDACTED PERSONAL DATA,REDACTED PERSONAL DATA
Tendring DC,http://statistics.data.gov.uk/id/local-authority-district/22UN,Housing Services,5480 - Repair & Maintenance,2016 - PVCu Window And Door Repairs,31/01/2012,2092715-1,195.99,REDACTED PERSONAL DATA,REDACTED PERSONAL DATA
Tendring DC,http://statistics.data.gov.uk/id/local-authority-district/22UN,Housing Services,5480 - Repair & Maintenance,2016 - PVCu Window And Door Repairs,31/01/2012,2092716-1,25,REDACTED PERSONAL DATA,REDACTED PERSONAL DATA
Tendring DC,http://statistics.data.gov.uk/id/local-authority-district/22UN,Housing Services,5480 - Repair & Maintenance,2016 - PVCu Window And Door Repairs,31/01/2012,2092717-1,28.5,REDACTED PERSONAL DATA,REDACTED PERSONAL DATA
Tendring DC,http://statistics.data.gov.uk/id/local-authority-district/22UN,Housing Services,5480 - Repair & Maintenance,2081 - PVCU Window And Door Servicing,31/01/2012,2092718-1,205.46,REDACTED PERSONAL DATA,REDACTED PERSONAL DATA
Tendring DC,http://statistics.data.gov.uk/id/local-authority-district/22UN,Housing Services,5480 - Repair & Maintenance,2016 - PVCu Window And Door Repairs,31/01/2012,2092719-1,25,REDACTED PERSONAL DATA,REDACTED PERSONAL DATA
Tendring DC,http://statistics.data.gov.uk/id/local-authority-district/22UN,Housing Services,5480 - Repair & Maintenance,2016 - PVCu Window And Door Repairs,31/01/2012,2092720-1,183.82,REDACTED PERSONAL DATA,REDACTED PERSONAL DATA
Tendring DC,http://statistics.data.gov.uk/id/local-authority-district/22UN,Housing Services,5480 - Repair & Maintenance,2016 - PVCu Window And Door Repairs,31/01/2012,2092721-1,37.76,REDACTED PERSONAL DATA,REDACTED PERSONAL DATA
Tendring DC,http://statistics.data.gov.uk/id/local-authority-district/22UN,Housing Services,5480 - Repair & Maintenance,2018 - Other  Responsive Repairs,03/01/2012,1046958-1,130,REDACTED PERSONAL DATA,REDACTED PERSONAL DATA
Tendring DC,http://statistics.data.gov.uk/id/local-authority-district/22UN,Housing Services,5480 - Repair & Maintenance,2018 - Other  Responsive Repairs,03/01/2012,1046959-1,135,REDACTED PERSONAL DATA,REDACTED PERSONAL DATA
Tendring DC,http://statistics.data.gov.uk/id/local-authority-district/22UN,Housing Services,5480 - Repair & Maintenance,2064 - Domestic Appliance Repairs,10/01/2012,1047061-1,2402,REDACTED PERSONAL DATA,REDACTED PERSONAL DATA
